,Directorate,Supplier Name,Supplier Invoice No,Payment Date,Gross Invoice Value,Vat Amount,Vendor Id,Purpose of Expenditure,Description,Redact flag,Year,Period
1,Community and Housing,SOUTHPARK RESIDENTIAL HOME,885096,29-Sep-22,2965.2,0,19,Older People Placements - East,321017              Social Community Care Supplies & Services - Adult,A,2022,6
2,Community and Housing,SOUTHPARK RESIDENTIAL HOME,885339,29-Sep-22,2965.2,0,19,Older People Placements - East,321017              Social Community Care Supplies & Services - Adult,A,2022,6
3,Community and Housing,SOUTHPARK RESIDENTIAL HOME,885435,29-Sep-22,2965.2,0,19,Older People Placements - East,321017              Social Community Care Supplies & Services - Adult,A,2022,6
4,Community and Housing,POLISH CITIZENS COMMITTEE,885185,29-Sep-22,2937.76,0,71,Older People Placements - East,321017              Nursing & Residential Care Homes,A,2022,6
5,Community and Housing,ST TERESA`S HOME FOR THE ELDERLY,885201,29-Sep-22,3080,0,362,Older People Placements - East,321017              Nursing & Residential Care Homes,A,2022,6
6,Community and Housing,ST TERESA`S HOME FOR THE ELDERLY,885421,29-Sep-22,2443.16,0,362,Older People Placements - East,321017              Nursing & Residential Care Homes,A,2022,6
7,Community and Housing,THE WHITE HOUSE NURSING HOME,885415,29-Sep-22,3396,0,611,Older People Placements - East,321000              Social Community Care Supplies & Services - Adult,A,2022,6
8,"Children, Schools and Family",BLOSSOM HOUSE SCHOOL,8793,13-Sep-22,11878,0,777,Non-Delegated Statements,170000              Education,A,2022,6
9,"Children, Schools and Family",BLOSSOM HOUSE SCHOOL,8566,16-Sep-22,15250,0,777,Non-Delegated Statements,170000              Education,A,2022,6
10,Corporate Services,Quadient,84049992,06-Sep-22,15193.05,20,793,Post services,300000              Mail Services,A,2022,6
11,Corporate Services,Quadient,807646130,20-Sep-22,1351.18,0,793,Legal Shared Service,300000              Mail Services,A,2022,6
12,Unassigned,PERSEID SCHOOL,SCHOOLS 2223/6 A,06-Sep-22,694266.03,0,983,Schools,170000              Education,A,2022,6
13,Community and Housing,SUTTON NURSING HOMES LTD,885050,29-Sep-22,3056.44,0,1208,Older People Placements - East,321017              Nursing & Residential Care Homes,A,2022,6
14,Community and Housing,SUTTON NURSING HOMES LTD,885134,29-Sep-22,3087.16,0,1208,Older People Placements - East,321017              Nursing & Residential Care Homes,A,2022,6
15,Environment and Regeneration,LONDON BOROUGH OF CROYDON,3016360,12-Sep-22,317096.4,52849.4,1258,Commercial Waste,OLA,A,2022,6
16,Environment and Regeneration,LONDON BOROUGH OF CROYDON,3015882,12-Sep-22,160800,26800,1258,Waste Management,OLA,A,2022,6
17,Environment and Regeneration,LONDON BOROUGH OF CROYDON,3015524,20-Sep-22,9163.62,0,1258,PARK OPERATIONS,OLA,A,2022,6
18,Unassigned,L.B OF RICHMOND UPON THAMES,MSHA200STAN,09-Sep-22,3660,0,1353,Corporate Services,OLA,A,2022,6
19,Unassigned,L.B OF RICHMOND UPON THAMES,MHUSS200STAN,09-Sep-22,3660,0,1353,Corporate Services,OLA,A,2022,6
20,Community and Housing,L.B OF RICHMOND UPON THAMES,3001548332,13-Sep-22,40200,0,1353,Com Care Placement Contingency,OLA,A,2022,6
21,Corporate Services,L.B OF RICHMOND UPON THAMES,RC376792128M05D,15-Sep-22,13450,0,1353,SLLP Client Income,OLA,A,2022,6
22,Unassigned,MELROSE SPECIAL SCHOOL,SCHOOLS 2223/6 A,06-Sep-22,423998.86,0,1393,Schools,170000              Education,A,2022,6
23,Unassigned,WILLIAM MORRIS PRIMARY SCHOOL,SCHOOLS 2223/6 A,06-Sep-22,216338,0,1416,Schools,170000              Education,A,2022,6
24,Unassigned,ST THOMAS OF CANTERBURY PRIMARY,SCHOOLS 2223/6 A,06-Sep-22,300526,0,1418,Schools,170000              Education,A,2022,6
25,Unassigned,PRIORY C OF E MIDDLE SCHOOL,SCHOOLS 2223/6 A,06-Sep-22,136148,0,1420,Schools,170000              Education,A,2022,6
26,Unassigned,LIBERTY PRIMARY SCHOOL,SCHOOLS 2223/6 A,06-Sep-22,273692,0,1424,Schools,170000              Education,A,2022,6
27,Unassigned,HILLCROSS PRIMARY SCHOOL,SCHOOLS 2223/6 A,06-Sep-22,289764,0,1425,Schools,170000              Education,A,2022,6
28,Unassigned,CRANMER PRIMARY SCHOOL,SCHOOLS 2223/6 A,06-Sep-22,379552,0,1426,Schools,170000              Education,A,2022,6
29,Unassigned,WIMBLEDON COLLEGE SCHOOL,SCHOOLS 2223/6 A,06-Sep-22,971339.78,0,1428,Schools,170000              Education,A,2022,6
30,"Children, Schools and Family",URSULINE HIGH SCHOOL,HAFSUM22-P4,07-Sep-22,3060,0,1429,Holiday Act Food Prog grntfnd,170000              Education,A,2022,6
31,Unassigned,URSULINE HIGH SCHOOL,SCHOOLS 2223/6 A,06-Sep-22,1233386.01,0,1429,Schools,170000              Education,A,2022,6
32,Unassigned,RUTLISH SCHOOL,SCHOOLS 2223/6 A,06-Sep-22,1171509.42,0,1431,Schools,170000              Education,A,2022,6
33,Unassigned,RICARDS LODGE SECONDARY SCHOOL,SCHOOLS 2223/6 A,06-Sep-22,1082406.69,0,1433,Schools,170000              Education,A,2022,6
34,Unassigned,WIMBLEDON PARK PRIMARY SCHOOL,SCHOOLS 2223/6 A,06-Sep-22,334415.35,0,1436,Schools,170000              Education,A,2022,6
35,Unassigned,ST TERESA'S R C PRIMARY SCHOOL,SCHOOLS 2223/6 A,06-Sep-22,287008,0,1438,Schools,170000              Education,A,2022,6
36,Unassigned,ST MARYS CATHOLIC PRIMARY SCHOOL,SCHOOLS 2223/6 A,06-Sep-22,257617,0,1439,Schools,170000              Education,A,2022,6
37,Unassigned,ST MARKS PRIMARY SCHOOL,SCHOOLS 2223/6 A,06-Sep-22,164292,0,1440,Schools,170000              Education,A,2022,6
38,Unassigned,ST JOHN FISHER RC PRIMARY SCH.,SCHOOLS 2223/6 A,06-Sep-22,253777.01,0,1441,Schools,170000              Education,A,2022,6
39,Unassigned,SINGLEGATE PRIMARY SCHOOL,SCHOOLS 2223/6 A,06-Sep-22,389450,0,1442,Schools,170000              Education,A,2022,6
40,Unassigned,SHERWOOD PRIMARY SCHOOL,SCHOOLS 2223/6 A,06-Sep-22,241042.78,0,1443,Schools,170000              Education,A,2022,6
41,Unassigned,POPLAR PRIMARY SCHOOL,SCHOOLS 2223/6 A,06-Sep-22,420242.52,0,1444,Schools,170000              Education,A,2022,6
42,Unassigned,PELHAM PRIMARY SCHOOL,SCHOOLS 2223/6 A,06-Sep-22,260984.22,0,1445,Schools,170000              Education,A,2022,6
43,Unassigned,MORDEN PRIMARY SCHOOL,SCHOOLS 2223/6 A,06-Sep-22,156053,0,1446,Schools,170000              Education,A,2022,6
44,Unassigned,MERTON PARK PRIMARY SCHOOL,SCHOOLS 2223/6 A,06-Sep-22,140056,0,1447,Schools,170000              Education,A,2022,6
45,Unassigned,MERTON ABBEY PRIMARY SCHOOL,SCHOOLS 2223/6 A,06-Sep-22,154391,0,1448,Schools,170000              Education,A,2022,6
46,Unassigned,LONESOME PRIMARY SCHOOL,SCHOOLS 2223/6 A,06-Sep-22,249450.43,0,1450,Schools,170000              Education,A,2022,6
47,Unassigned,LONESOME PRIMARY SCHOOL,18PRE000004,27-Sep-22,5169.78,0,1450,Corporate Services,170000              Education,A,2022,6
48,Unassigned,LINKS PRIMARY SCHOOL,SCHOOLS 2223/6 A,06-Sep-22,268582.88,0,1451,Schools,170000              Education,A,2022,6
49,Unassigned,JOSEPH HOOD PRIMARY SCHOOL,SCHOOLS 2223/6 A,06-Sep-22,245849.82,0,1452,Schools,170000              Education,A,2022,6
50,Unassigned,HOLY TRINITY C OF E PRIMARY SCHOOL,SCHOOLS 2223/6 A,06-Sep-22,244003,0,1453,Schools,170000              Education,A,2022,6
51,Unassigned,HOLLYMOUNT PRIMARY SCHOOL,SCHOOLS 2223/6 A,06-Sep-22,260384.52,0,1454,Schools,170000              Education,A,2022,6
52,Unassigned,HATFEILD PRIMARY SCHOOL,SCHOOLS 2223/6 A,06-Sep-22,310091,0,1455,Schools,170000              Education,A,2022,6
53,Unassigned,HASLEMERE PRIMARY SCHOOL,SCHOOLS 2223/6 A,06-Sep-22,218324,0,1456,Schools,170000              Education,A,2022,6
54,Unassigned,GARFIELD PRIMARY SCHOOL,SCHOOLS 2223/6 A,06-Sep-22,213104.87,0,1460,Schools,170000              Education,A,2022,6
55,Unassigned,BOND PRIMARY SCHOOL,SCHOOLS 2223/6 A,06-Sep-22,257618,0,1462,Schools,170000              Education,A,2022,6
56,Unassigned,BISHOP GILPIN C OF E PRIMARY,SCHOOLS 2223/6 A,06-Sep-22,260947.99,0,1463,Schools,170000              Education,A,2022,6
57,Unassigned,ABBOTSBURY PRIMARY SCHOOL,SCHOOLS 2223/6 A,06-Sep-22,275601.37,0,1467,Schools,170000              Education,A,2022,6
58,Unassigned,WIMBLEDON CHASE PRIMARY SCHOOL,SCHOOLS 2223/6 A,06-Sep-22,423247,0,1469,Schools,170000              Education,A,2022,6
59,Unassigned,GORRINGE PARK PRIMARY SCHOOL,SCHOOLS 2223/6 A,06-Sep-22,286703.23,0,1470,Schools,170000              Education,A,2022,6
60,Unassigned,RAYNES PARK SECONDARY SCHOOL,SCHOOLS 2223/6 A,06-Sep-22,1086428.22,0,1471,Schools,170000              Education,A,2022,6
61,Unassigned,SS PETER AND PAUL RC PRIMARY SCH,SCHOOLS 2223/6 A,06-Sep-22,225702,0,1472,Schools,170000              Education,A,2022,6
62,Unassigned,DUNDONALD PRIMARY SCHOOL,SCHOOLS 2223/6 A,06-Sep-22,254546,0,1473,Schools,170000              Education,A,2022,6
63,Community and Housing,MERTON MENCAP,4105,27-Sep-22,640,0,1519,Learning Disabilities Placemnt,200000              Financial Services,A,2022,6
64,Community and Housing,MERTON MENCAP,4114,27-Sep-22,720,0,1519,Learning Disabilities Placemnt,200000              Financial Services,A,2022,6
65,Community and Housing,MERTON MENCAP,4106,28-Sep-22,640,0,1519,Learning Disabilities Placemnt,200000              Financial Services,A,2022,6
66,Community and Housing,MERTON MENCAP,4107,28-Sep-22,640,0,1519,Learning Disabilities Placemnt,200000              Financial Services,A,2022,6
67,Community and Housing,MERTON MENCAP,4108,28-Sep-22,640,0,1519,Learning Disabilities Placemnt,200000              Financial Services,A,2022,6
68,Community and Housing,MERTON MENCAP,4226,28-Sep-22,1120,0,1519,Learning Disabilities Placemnt,200000              Financial Services,A,2022,6
69,Community and Housing,MERTON MENCAP,4235,28-Sep-22,960,0,1519,Learning Disabilities Placemnt,200000              Financial Services,A,2022,6
70,Community and Housing,MERTON MENCAP,4232,28-Sep-22,960,0,1519,Learning Disabilities Placemnt,200000              Financial Services,A,2022,6
71,Community and Housing,MERTON MENCAP,4233,28-Sep-22,960,0,1519,Learning Disabilities Placemnt,200000              Financial Services,A,2022,6
72,Community and Housing,MERTON MENCAP,4234,30-Sep-22,960,0,1519,Learning Disabilities Placemnt,200000              Financial Services,A,2022,6
73,Community and Housing,MERTON MENCAP,4236,30-Sep-22,1440,0,1519,Learning Disabilities Placemnt,200000              Financial Services,A,2022,6
74,Unassigned,ALL SAINTS C OF E PRIMARY SCH,SCHOOLS 2223/6 A,06-Sep-22,222127,0,1680,Schools,170000              Education,A,2022,6
75,"Children, Schools and Family",REDACTED PERSONAL DATA,874918,02-Sep-22,1197,0,1801,Placements Under 18,321100              Social Community Care Supplies & Services - Children,R,2022,6
76,"Children, Schools and Family",REDACTED PERSONAL DATA,875026,02-Sep-22,514.75,0,1801,Placements Under 18,321100              Social Community Care Supplies & Services - Children,R,2022,6
77,"Children, Schools and Family",REDACTED PERSONAL DATA,876083,09-Sep-22,514.75,0,1801,Placements Under 18,321100              Social Community Care Supplies & Services - Children,R,2022,6
78,"Children, Schools and Family",REDACTED PERSONAL DATA,880974,16-Sep-22,514.75,0,1801,Placements Under 18,321100              Social Community Care Supplies & Services - Children,R,2022,6
79,"Children, Schools and Family",REDACTED PERSONAL DATA,883312,23-Sep-22,514.75,0,1801,Placements Under 18,321100              Social Community Care Supplies & Services - Children,R,2022,6
80,"Children, Schools and Family",REDACTED PERSONAL DATA,886610,30-Sep-22,514.75,0,1801,Placements Under 18,321100              Social Community Care Supplies & Services - Children,R,2022,6
81,Corporate Services,CIVICA UK LIMITED,C/RB251729,29-Sep-22,14058,2343,1873,Benefits Administration,270000              Information Communication Technology,A,2022,6
82,Corporate Services,CIVICA UK LIMITED,C/BN251715,29-Sep-22,2950.22,491.7,1873,Benefits Administration,270000              Information Communication Technology,A,2022,6
83,Corporate Services,CIVICA UK LIMITED,C/BN250530,12-Sep-22,4465.18,744.2,1873,Benefits Administration,270000              Information Communication Technology,A,2022,6
84,Corporate Services,CIVICA UK LIMITED,C/RB251862,03-Oct-22,36072,6012,1873,Local Taxation Services,270000              Information Communication Technology,A,2022,6
85,Corporate Services,CIVICA UK LIMITED,C/BN251714,29-Sep-22,3590.17,598.36,1873,Benefits Administration,270000              Information Communication Technology,A,2022,6
86,Corporate Services,CIVICA UK LIMITED,C/BN251713,29-Sep-22,688.97,114.83,1873,Benefits Administration,270000              Information Communication Technology,A,2022,6
87,"Children, Schools and Family",THE CHILDRENS TRUST,4765,20-Sep-22,3132.9,0,1980,Non-Delegated Statements,170000              Education,A,2022,6
88,"Children, Schools and Family",THE CHILDRENS TRUST,4764,23-Sep-22,7553.4,0,1980,Non-Delegated Statements,170000              Education,A,2022,6
89,"Children, Schools and Family",THE CHILDRENS TRUST,4766,23-Sep-22,5951.4,0,1980,Non-Delegated Statements,170000              Education,A,2022,6
90,Community and Housing,THE FRANCES TAYLOR FOUNDATION,885119,29-Sep-22,3812.04,0,2011,Learning Disabilities Placemnt,321017              Nursing & Residential Care Homes,A,2022,6
91,"Children, Schools and Family",ST JOSEPHS SCHOOL,T0002748,03-Oct-22,38038.33,0,2017,Non-Delegated Statements,170000              Education,A,2022,6
92,Unassigned,SACRED HEART R C PRIMARY SCH.,SCHOOLS 2223/6 A,06-Sep-22,192627,0,2076,Schools,170000              Education,A,2022,6
93,Corporate Services,LONDON BOROUGH OF SUTTON,"""SLLPINCOMEM0522",09-Sep-22,9500,0,2313,SLLP Client Income,OLA,A,2022,6
94,Corporate Services,GREENHAM TRADING LTD,07/472712,23-Sep-22,646.56,107.76,2445,Corporate Contracts - FM,130000              Cleaning & Janitorial,A,2022,6
95,Community and Housing,FREEWAYS TRUST LTD,885030,29-Sep-22,3229.2,0,2474,Learning Disabilities Placemnt,321017              Nursing & Residential Care Homes,A,2022,6
96,Unassigned,WIMBLEDON AND PUTNEY COMMON,2.02209E+11,26-Sep-22,37623.1,0,10566,WPCC,PRECEPT,A,2022,6
97,Community and Housing,CLOYDA LTD,885294,29-Sep-22,3294.48,0,10762,Older People Placements - East,321017              Nursing & Residential Care Homes,A,2022,6
98,Community and Housing,CHEGWORTH N.H. (BAYSWIFT LTD),885253,29-Sep-22,3056.4,0,11057,Learning Disabilities Placemnt,321000              Social Community Care Supplies & Services - Adult,A,2022,6
99,"Children, Schools and Family",REDACTED PERSONAL DATA,874975,02-Sep-22,580.36,0,11130,Placements Under 18,321100              Social Community Care Supplies & Services - Children,R,2022,6
100,"Children, Schools and Family",REDACTED PERSONAL DATA,876032,09-Sep-22,580.36,0,11130,Placements Under 18,321100              Social Community Care Supplies & Services - Children,R,2022,6
101,"Children, Schools and Family",REDACTED PERSONAL DATA,880922,16-Sep-22,580.36,0,11130,Placements Under 18,321100              Social Community Care Supplies & Services - Children,R,2022,6
102,"Children, Schools and Family",REDACTED PERSONAL DATA,883260,23-Sep-22,580.36,0,11130,Placements Under 18,321100              Social Community Care Supplies & Services - Children,R,2022,6
103,"Children, Schools and Family",REDACTED PERSONAL DATA,886535,30-Sep-22,580.36,0,11130,Placements Under 18,321100              Social Community Care Supplies & Services - Children,R,2022,6
104,Community and Housing,ASHCROFT CARE SERVICES,885252,29-Sep-22,6161.24,0,13287,Learning Disabilities Placemnt,321017              Nursing & Residential Care Homes,A,2022,6
105,Community and Housing,SHARE COMMUNITY LTD,230631,15-Sep-22,734.52,0,13487,Learning Disabilities Placemnt,321017              Nursing & Residential Care Homes,A,2022,6
106,Community and Housing,SHARE COMMUNITY LTD,230628,15-Sep-22,560.32,0,13487,Learning Disabilities Placemnt,321017              Nursing & Residential Care Homes,A,2022,6
107,Community and Housing,SHARE COMMUNITY LTD,230637,15-Sep-22,535.6,0,13487,Learning Disabilities Placemnt,321017              Nursing & Residential Care Homes,A,2022,6
108,Community and Housing,SHARE COMMUNITY LTD,230642,28-Sep-22,780,0,13487,Learning Disabilities Placemnt,321017              Nursing & Residential Care Homes,A,2022,6
109,Community and Housing,FITZROY SUPPORT,885362,29-Sep-22,8304.28,0,13535,Learning Disabilities Placemnt,321017              Nursing & Residential Care Homes,A,2022,6
110,Community and Housing,CANTERBURY OAST TRUST LTD,885042,29-Sep-22,2541.24,0,13566,Learning Disabilities Placemnt,321017              Nursing & Residential Care Homes,A,2022,6
111,Community and Housing,MACINTYRE,885056,29-Sep-22,5776,0,13585,Learning Disabilities Placemnt,321017              Nursing & Residential Care Homes,A,2022,6
112,Community and Housing,MACINTYRE,885226,29-Sep-22,5641.36,0,13585,Learning Disabilities Placemnt,321017              Nursing & Residential Care Homes,A,2022,6
113,Community and Housing,MACINTYRE,885332,29-Sep-22,5641.36,0,13585,Older People Placements - East,321017              Nursing & Residential Care Homes,A,2022,6
114,Community and Housing,MACINTYRE,885360,29-Sep-22,4825.24,0,13585,Learning Disabilities Placemnt,321017              Nursing & Residential Care Homes,A,2022,6
115,Community and Housing,KENT AUTISTIC TRUST,885340,29-Sep-22,7494.72,0,13670,Learning Disabilities Placemnt,321017              Nursing & Residential Care Homes,A,2022,6
116,Community and Housing,UNITED RESPONSE,VSMR786326BA,21-Sep-22,4837.78,806.3,14616,Learning Disabilities Placemnt,321000              Social Community Care Supplies & Services - Adult,A,2022,6
117,Community and Housing,UNITED RESPONSE,VSMR786326BO,21-Sep-22,4837.78,806.3,14616,Learning Disabilities Placemnt,321000              Social Community Care Supplies & Services - Adult,A,2022,6
118,Community and Housing,UNITED RESPONSE,VSMR786326ST,21-Sep-22,4837.78,806.3,14616,Learning Disabilities Placemnt,321000              Social Community Care Supplies & Services - Adult,A,2022,6
119,Community and Housing,UNITED RESPONSE,VSMR786326SV,21-Sep-22,4837.78,806.3,14616,Learning Disabilities Placemnt,321000              Social Community Care Supplies & Services - Adult,A,2022,6
120,Community and Housing,UNITED RESPONSE,VSMR786326,21-Sep-22,4837.78,806.3,14616,Learning Disabilities Placemnt,321000              Social Community Care Supplies & Services - Adult,A,2022,6
121,Environment and Regeneration,THE WANDLE INDUSTRIAL MUSEUM,2ND GRT OCT 22,03-Oct-22,2190,0,14885,Grants Programme,200000              Financial Services,A,2022,6
122,Environment and Regeneration,MERTON CHAMBER OF COMMERCE,CANONS BUSINESS,26-Sep-22,6000,0,15375,Senior Management & Support,180000              Environmental Services,A,2022,6
123,Corporate Services,INTELLIGENT FINISHING SYSTEMS,54058,27-Sep-22,1374.9,229.15,18138,PrintUnit-HighVolPhtcopying,300000              Mail Services,A,2022,6
124,Corporate Services,KINGSTON CORPORATION,M05LEGAL22/23',09-Sep-22,9170,0,21573,SLLP Client Income,180000              Environmental Services,A,2022,6
125,Unassigned, GREATER LONDON AUTHORITY (LPFA),2.02209E+11,12-Sep-22,25430.2,0,21763,London Pens Fund Auth,PRECEPT,A,2022,6
126,Environment and Regeneration,NORTH EAST MITCHAM COMM ASSOC,2ND GRT OCT 22,03-Oct-22,20690,0,27999,Grants Programme,321100              Social Community Care Supplies & Services - Children,A,2022,6
127,Community and Housing,TRINITY COURT NURSING HOME,885092,29-Sep-22,2861.6,0,30306,Older People Placements - East,321017              Nursing & Residential Care Homes,A,2022,6
128,Community and Housing,TRINITY COURT NURSING HOME,885227,29-Sep-22,2985.6,0,30306,Older People Placements - East,321017              Nursing & Residential Care Homes,A,2022,6
129,Community and Housing,TRINITY COURT NURSING HOME,885259,29-Sep-22,3063.24,0,30306,Older People Placements - East,321017              Nursing & Residential Care Homes,A,2022,6
130,Community and Housing,TRINITY COURT NURSING HOME,885273,29-Sep-22,3313.84,0,30306,Phys/Sens Placements - East,321017              Nursing & Residential Care Homes,A,2022,6
131,Community and Housing,TRINITY COURT NURSING HOME,885278,29-Sep-22,3149.6,0,30306,Phys/Sens Placements - East,321017              Nursing & Residential Care Homes,A,2022,6
132,Community and Housing,TRINITY COURT NURSING HOME,885296,29-Sep-22,3135.72,0,30306,Older People Placements - East,321017              Nursing & Residential Care Homes,A,2022,6
133,Community and Housing,TRINITY COURT NURSING HOME,885338,29-Sep-22,2985.6,0,30306,Older People Placements - East,321017              Nursing & Residential Care Homes,A,2022,6
134,Community and Housing,TRINITY COURT NURSING HOME,885345,29-Sep-22,2861.6,0,30306,Older People Placements - East,321017              Nursing & Residential Care Homes,A,2022,6
135,Community and Housing,TRINITY COURT NURSING HOME,885353,29-Sep-22,3063.24,0,30306,Older People Placements - East,321017              Nursing & Residential Care Homes,A,2022,6
136,Community and Housing,TRINITY COURT NURSING HOME,885412,29-Sep-22,2985.6,0,30306,Older People Placements - East,321017              Nursing & Residential Care Homes,A,2022,6
137,Community and Housing,TRINITY COURT NURSING HOME,885440,29-Sep-22,2876.32,0,30306,Older People Placements - East,321017              Nursing & Residential Care Homes,A,2022,6
138,Community and Housing,TRINITY COURT NURSING HOME,885441,29-Sep-22,3149.6,0,30306,Older People Placements - East,321017              Nursing & Residential Care Homes,A,2022,6
139,Community and Housing,TRINITY COURT NURSING HOME,885443,29-Sep-22,2521.12,0,30306,Older People Placements - East,321017              Nursing & Residential Care Homes,A,2022,6
140,Community and Housing,HAYDON PARK LODGE,885049,29-Sep-22,4680,0,31434,Learning Disabilities Placemnt,321017              Nursing & Residential Care Homes,A,2022,6
141,Community and Housing,HAYDON PARK LODGE,885183,29-Sep-22,3485,0,31434,Learning Disabilities Placemnt,321017              Nursing & Residential Care Homes,A,2022,6
142,Community and Housing,HAYDON PARK LODGE,885207,29-Sep-22,4591.44,0,31434,Learning Disabilities Placemnt,321017              Nursing & Residential Care Homes,A,2022,6
143,Community and Housing,HAYDON PARK LODGE,885281,29-Sep-22,5070.76,0,31434,Learning Disabilities Placemnt,321017              Nursing & Residential Care Homes,A,2022,6
144,Community and Housing,HAYDON PARK LODGE,885327,29-Sep-22,4420.08,0,31434,Learning Disabilities Placemnt,321017              Nursing & Residential Care Homes,A,2022,6
145,Community and Housing,Barchester Healthcare Wimbledon Beaumont,885000,28-Sep-22,18148.85,0,33384,Older People Placements - East,321017              Nursing & Residential Care Homes,A,2022,6
146,Community and Housing,Barchester Healthcare Wimbledon Beaumont,885145,29-Sep-22,3000,0,33384,Older People Placements - East,321017              Nursing & Residential Care Homes,A,2022,6
147,Environment and Regeneration,SOUTH MITCHAM COMMUNITY ASS,2ND GRT OCT 22,03-Oct-22,21440,0,33871,Grants Programme,190000              Facilities & Management Services,A,2022,6
148,Community and Housing,COMFORT CARE SERVICES (UK) LTD,SU0091/264,23-Sep-22,871.36,0,34932,Mental Health Placements,321000              Social Community Care Supplies & Services - Adult,A,2022,6
149,Community and Housing,COMFORT CARE SERVICES (UK) LTD,SU1102/1412,23-Sep-22,2380,0,34932,Mental Health Placements,321000              Social Community Care Supplies & Services - Adult,A,2022,6
150,Community and Housing,COMFORT CARE SERVICES (UK) LTD,SU1051/1091-1092,23-Sep-22,3295,0,34932,Mental Health Placements,321000              Social Community Care Supplies & Services - Adult,A,2022,6
151,Community and Housing,COMFORT CARE SERVICES (UK) LTD,SU0266/1356,23-Sep-22,2380,0,34932,Mental Health Placements,321000              Social Community Care Supplies & Services - Adult,A,2022,6
152,Community and Housing,COMFORT CARE SERVICES (UK) LTD,SU0133/1051,23-Sep-22,2380,0,34932,Mental Health Placements,321000              Social Community Care Supplies & Services - Adult,A,2022,6
153,Community and Housing,COMFORT CARE SERVICES (UK) LTD,SU0146/1297,23-Sep-22,2380,0,34932,Mental Health Placements,321000              Social Community Care Supplies & Services - Adult,A,2022,6
154,Community and Housing,COMFORT CARE SERVICES (UK) LTD,SU0184/862,23-Sep-22,2380,0,34932,Mental Health Placements,321000              Social Community Care Supplies & Services - Adult,A,2022,6
155,Community and Housing,COMFORT CARE SERVICES (UK) LTD,SU0298/863,23-Sep-22,2380,0,34932,Mental Health Placements,321000              Social Community Care Supplies & Services - Adult,A,2022,6
156,Community and Housing,COMFORT CARE SERVICES (UK) LTD,SU0201/1298,23-Sep-22,2380,0,34932,Mental Health Placements,321000              Social Community Care Supplies & Services - Adult,A,2022,6
157,Community and Housing,COMFORT CARE SERVICES (UK) LTD,SU0208/1411,23-Sep-22,2380,0,34932,Mental Health Placements,321000              Social Community Care Supplies & Services - Adult,A,2022,6
158,Community and Housing,COMFORT CARE SERVICES (UK) LTD,SU0210/1016,23-Sep-22,2380,0,34932,Mental Health Placements,321000              Social Community Care Supplies & Services - Adult,A,2022,6
159,Community and Housing,COMFORT CARE SERVICES (UK) LTD,SU0291/1017,23-Sep-22,2380,0,34932,Mental Health Placements,321000              Social Community Care Supplies & Services - Adult,A,2022,6
160,Community and Housing,COMFORT CARE SERVICES (UK) LTD,SU0294/1401,23-Sep-22,2380,0,34932,Mental Health Placements,321000              Social Community Care Supplies & Services - Adult,A,2022,6
161,"Children, Schools and Family",CASTLE KINDERGARTEN,P2 22 UPFRONTPAY,07-Sep-22,27938.3,0,35082,EARLY YEARS NURSERY GRANTS,170000              Education,A,2022,6
162,"Children, Schools and Family",CROWN KINDERGARTEN,P2 22 UPFRONTPAY,07-Sep-22,9535.68,0,35084,EARLY YEARS NURSERY GRANTS,170000              Education,A,2022,6
163,"Children, Schools and Family",JIGSAW DAY NURSERY,P2 22 UPFRONTPAY,07-Sep-22,22202.88,0,35097,EARLY YEARS NURSERY GRANTS,170000              Education,A,2022,6
164,"Children, Schools and Family",NURSERY ON THE GREEN,P2 22 UPFRONTPAY,07-Sep-22,7934.64,0,35101,EARLY YEARS NURSERY GRANTS,170000              Education,A,2022,6
165,"Children, Schools and Family",URSULINE PREPARATORY SCHOOL,P2 22 UPFRONTPAY,07-Sep-22,25746.34,0,35109,EARLY YEARS NURSERY GRANTS,170000              Education,A,2022,6
166,"Children, Schools and Family",WILLINGTON SCH.FOUNDATION LTD,P2 22 UPFRONTPAY,07-Sep-22,13263.26,0,35111,EARLY YEARS NURSERY GRANTS,170000              Education,A,2022,6
167,Unassigned,ST MATTHEW'S C OF E PRIMARY,SCHOOLS 2223/6 A,06-Sep-22,124262.17,0,36050,Schools,170000              Education,A,2022,6
168,"Children, Schools and Family",LITTLE LEARNERS,P2 22 UPFRONTPAY,07-Sep-22,4091.69,0,39413,EARLY YEARS NURSERY GRANTS,170000              Education,A,2022,6
169,Environment and Regeneration,I AND  J BUSHELL LTD,4632,26-Sep-22,13512,2252,42221,Nature Conservation,"390000              Works - Construction, Repair & Maintenance",A,2022,6
170,Unassigned,SURREY COUNTY COUNCIL,9500302370,13-Sep-22,827.81,0,46682,MSJCB I&E,OLA,A,2022,6
171,Community and Housing,JESMUND CARE LTD,884891,28-Sep-22,3300,0,46751,Older People Placements - East,321017              Nursing & Residential Care Homes,A,2022,6
172,Community and Housing,JESMUND CARE LTD,885279,29-Sep-22,4000,0,46751,Older People Placements - East,321017              Nursing & Residential Care Homes,A,2022,6
173,Community and Housing,JESMUND CARE LTD,885397,29-Sep-22,3600,0,46751,Older People Placements - East,321017              Nursing & Residential Care Homes,A,2022,6
174,Environment and Regeneration,COLLIERS WOOD COMMUNITY ASSOC,2ND GRT OCT 22,03-Oct-22,6845,0,48016,Grants Programme,200000              Financial Services,A,2022,6
175,Corporate Services,MERTON CITIZEN ADVICE BUREAU,SP GRT OCT 22,28-Sep-22,177500,0,48029,VOLUNTARY SECTOR COORDINATION,200000              Financial Services,A,2022,6
176,"Children, Schools and Family",UNIVERSITY OF BIRMINGHAM,81086778,26-Sep-22,3540,0,48543,Sensory Team,170000              Education,A,2022,6
177,Corporate Services,EXPERIAN LTD,IAA3002637070,23-Sep-22,549.22,91.54,49765,Local Taxation Services,200000              Financial Services,A,2022,6
178,Community and Housing,REDACTED PERSONAL DATA,877150,13-Sep-22,4900.28,0,50448,Older People Placements - East,DIRECT PAYMENTS,R,2022,6
179,Community and Housing,LINKAGE COMMUNITY TR.LONG-STAY,885316,29-Sep-22,3340.08,0,52552,Learning Disabilities Placemnt,321017              Nursing & Residential Care Homes,A,2022,6
180,Community and Housing,RUTLAND HOUSE CARE HOME,885200,29-Sep-22,3156,0,53424,Older People Placements - East,321017              Nursing & Residential Care Homes,A,2022,6
181,"Children, Schools and Family",HASLEMERE HOUSE DAY NURSERY,P2 22 UPFRONTPAY,07-Sep-22,24334.8,0,55612,EARLY YEARS NURSERY GRANTS,170000              Education,A,2022,6
182,Community and Housing,CLIFTON MANOR,885429,29-Sep-22,4022.16,0,56118,Learning Disabilities Placemnt,321017              Nursing & Residential Care Homes,A,2022,6
183,Community and Housing,PARK LODGE,885167,29-Sep-22,2940,0,56878,Learning Disabilities Placemnt,321017              Nursing & Residential Care Homes,A,2022,6
184,Community and Housing,PARK LODGE,885257,29-Sep-22,3026.8,0,56878,Learning Disabilities Placemnt,321017              Nursing & Residential Care Homes,A,2022,6
185,Unassigned,CRICKET GREEN SCHOOL,SCHOOLS 2223/6 A,06-Sep-22,616680.29,0,57057,Schools,170000              Education,A,2022,6
186,Corporate Services,GREENWORKS,436206,30-Sep-22,655.58,109.26,57234,Corporate Contracts - FM,"390000              Works - Construction, Repair & Maintenance",A,2022,6
187,"Children, Schools and Family",PEARSON EDUCATION LTD.,3612053,29-Sep-22,1216.5,202.75,57285,Language & Learning Service,170000              Education,A,2022,6
188,Corporate Services,MERTON VOLUNTARY SERV COUNCIL,5177,23-Sep-22,10416.67,0,57560,Healthwatch,190000              Facilities & Management Services,A,2022,6
189,Environment and Regeneration,MERTON VOLUNTARY SERV COUNCIL,5178,22-Sep-22,2281.4,0,57560,HLF Canons,190000              Facilities & Management Services,A,2022,6
190,Corporate Services,JADE SECURITY SERVICE LTD,4227,27-Sep-22,2773.75,462.29,57563,Cash Collections,200000              Financial Services,A,2022,6
191,"Children, Schools and Family",CANBURY SCHOOL LIMITED,39S5,09-Sep-22,10365,0,57830,Non-Delegated Statements,170000              Education,A,2022,6
192,"Children, Schools and Family",CANBURY SCHOOL LIMITED,397S,09-Sep-22,8778.33,0,57830,Non-Delegated Statements,170000              Education,A,2022,6
193,"Children, Schools and Family",CANBURY SCHOOL LIMITED,39S2,09-Sep-22,13085,0,57830,Non-Delegated Statements,170000              Education,A,2022,6
194,"Children, Schools and Family",CANBURY SCHOOL LIMITED,39S6,09-Sep-22,9578.33,0,57830,Non-Delegated Statements,170000              Education,A,2022,6
195,"Children, Schools and Family",CANBURY SCHOOL LIMITED,39S1,09-Sep-22,9345,0,57830,Non-Delegated Statements,170000              Education,A,2022,6
196,"Children, Schools and Family",CANBURY SCHOOL LIMITED,39S7,09-Sep-22,11073.33,0,57830,Non-Delegated Statements,170000              Education,A,2022,6
197,"Children, Schools and Family",CANBURY SCHOOL LIMITED,3979,09-Sep-22,12151.66,0,57830,Non-Delegated Statements,170000              Education,A,2022,6
198,"Children, Schools and Family",CANBURY SCHOOL LIMITED,3980,09-Sep-22,12151.66,0,57830,Non-Delegated Statements,170000              Education,A,2022,6
199,"Children, Schools and Family",CANBURY SCHOOL LIMITED,3976,15-Sep-22,12718.33,0,57830,Non-Delegated Statements,170000              Education,A,2022,6
200,Community and Housing,WALSINGHAM,885137,29-Sep-22,5486.52,0,58466,Learning Disabilities Placemnt,321017              Nursing & Residential Care Homes,A,2022,6
201,Community and Housing,WALSINGHAM,885314,29-Sep-22,5486.4,0,58466,Learning Disabilities Placemnt,321017              Nursing & Residential Care Homes,A,2022,6
202,Community and Housing,WALSINGHAM,885371,29-Sep-22,5552.64,0,58466,Learning Disabilities Placemnt,321017              Nursing & Residential Care Homes,A,2022,6
203,Community and Housing,WALSINGHAM,885376,29-Sep-22,5476.12,0,58466,Learning Disabilities Placemnt,321017              Nursing & Residential Care Homes,A,2022,6
204,Community and Housing,CARE UK,880976,16-Sep-22,3030.9,0,58851,Older People Placements - East,321017              Nursing & Residential Care Homes,A,2022,6
205,Community and Housing,CARE UK,880977,16-Sep-22,2306.8,0,58851,Older People Placements - East,321017              Nursing & Residential Care Homes,A,2022,6
206,Community and Housing,CARE UK,885028,29-Sep-22,3229.52,0,58851,Older People Placements - East,321017              Nursing & Residential Care Homes,A,2022,6
207,Community and Housing,CARE UK,885046,29-Sep-22,3800,0,58851,Older People Placements - East,321017              Nursing & Residential Care Homes,A,2022,6
208,Community and Housing,CARE UK,885048,29-Sep-22,3143.16,0,58851,Older People Placements - East,321017              Nursing & Residential Care Homes,A,2022,6
209,Community and Housing,CARE UK,885082,29-Sep-22,3229.52,0,58851,Older People Placements - East,321017              Nursing & Residential Care Homes,A,2022,6
210,Community and Housing,CARE UK,885205,29-Sep-22,3264.32,0,58851,Older People Placements - East,321017              Nursing & Residential Care Homes,A,2022,6
211,Community and Housing,CARE UK,885305,29-Sep-22,3229.52,0,58851,Older People Placements - East,321017              Nursing & Residential Care Homes,A,2022,6
212,Community and Housing,CARE UK,885383,29-Sep-22,3736,0,58851,Older People Placements - East,321017              Nursing & Residential Care Homes,A,2022,6
213,Community and Housing,CARE UK,885393,29-Sep-22,4000,0,58851,Older People Placements - East,321017              Nursing & Residential Care Homes,A,2022,6
214,Community and Housing,CARE UK,885396,29-Sep-22,3229.52,0,58851,Older People Placements - East,321017              Nursing & Residential Care Homes,A,2022,6
215,Community and Housing,CARE UK,885401,29-Sep-22,3143.16,0,58851,Older People Placements - East,321017              Nursing & Residential Care Homes,A,2022,6
216,"Children, Schools and Family",ST MICHAEL'S FELLOWSHIP,C3043/2100,14-Sep-22,20101.33,0,59560,Placements Under 18,280000              Legal Services,A,2022,6
217,Corporate Services,BRITISH TELECOMMUNICATIONS PLC,Q083L7,12-Sep-22,15714.82,2619.13,62082,IT-Telecomms,270000              Information Communication Technology,A,2022,6
218,Community and Housing,BARONS LODGE NURSING HOME,885088,29-Sep-22,1716,0,62371,Mental Health Placements,321017              Nursing & Residential Care Homes,A,2022,6
219,Community and Housing,BARONS LODGE NURSING HOME,885275,29-Sep-22,3502,0,62371,Mental Health Placements,321017              Nursing & Residential Care Homes,A,2022,6
220,Community and Housing,BARONS LODGE NURSING HOME,885286,29-Sep-22,4200,0,62371,Mental Health Placements,321017              Nursing & Residential Care Homes,A,2022,6
221,Community and Housing,BARONS LODGE NURSING HOME,885344,29-Sep-22,2678,0,62371,Learning Disabilities Placemnt,321017              Nursing & Residential Care Homes,A,2022,6
222,Community and Housing,BARONS LODGE NURSING HOME,885349,29-Sep-22,4360,0,62371,Mental Health Placements,321017              Nursing & Residential Care Homes,A,2022,6
223,Community and Housing,BARONS LODGE NURSING HOME,885354,29-Sep-22,4360,0,62371,Older People Placements - East,321017              Nursing & Residential Care Homes,A,2022,6
224,Community and Housing,BARONS LODGE NURSING HOME,885355,29-Sep-22,3807.2,0,62371,Learning Disabilities Placemnt,321017              Nursing & Residential Care Homes,A,2022,6
225,Community and Housing,BARONS LODGE NURSING HOME,885390,29-Sep-22,3502,0,62371,Older People Placements - East,321017              Nursing & Residential Care Homes,A,2022,6
226,"Children, Schools and Family",OPEN COLLEGE NETWORK LONDON,25266,16-Sep-22,680,0,62916,Quality Improvement,170000              Education,A,2022,6
227,Community and Housing,SANCTUARY CARE LTD,885058,29-Sep-22,3117.52,0,63458,Learning Disabilities Placemnt,321017              Nursing & Residential Care Homes,A,2022,6
228,Community and Housing,THE REGARD PARTNERSHIP LTD,885041,29-Sep-22,6220.72,0,63796,Learning Disabilities Placemnt,321017              Nursing & Residential Care Homes,A,2022,6
229,Community and Housing,THE REGARD PARTNERSHIP LTD,885133,29-Sep-22,6010.48,0,63796,Learning Disabilities Placemnt,321017              Nursing & Residential Care Homes,A,2022,6
230,Community and Housing,THE REGARD PARTNERSHIP LTD,885152,29-Sep-22,9681.96,0,63796,Learning Disabilities Placemnt,321017              Nursing & Residential Care Homes,A,2022,6
231,Community and Housing,THE REGARD PARTNERSHIP LTD,885165,29-Sep-22,5765,0,63796,Learning Disabilities Placemnt,321017              Nursing & Residential Care Homes,A,2022,6
232,Community and Housing,THE REGARD PARTNERSHIP LTD,885264,29-Sep-22,6126.52,0,63796,Learning Disabilities Placemnt,321017              Nursing & Residential Care Homes,A,2022,6
233,Community and Housing,THE REGARD PARTNERSHIP LTD,885372,29-Sep-22,4901.24,0,63796,Learning Disabilities Placemnt,321017              Nursing & Residential Care Homes,A,2022,6
234,"Children, Schools and Family",CAROUSEL DAY NURSERY,P2 22 UPFRONTPAY,07-Sep-22,30606.24,0,66990,EARLY YEARS NURSERY GRANTS,170000              Education,A,2022,6
235,"Children, Schools and Family",PLAYDAYS DAY NURSERY,P2 22 UPFRONTPAY,07-Sep-22,866.88,0,66992,EARLY YEARS NURSERY GRANTS,170000              Education,A,2022,6
236,Community and Housing,NAS SERVICES LIMITED,ACR2382178,20-Sep-22,1893.6,315.6,68929,Mental Health Placements,321100              Social Community Care Supplies & Services - Children,A,2022,6
237,Community and Housing,NAS SERVICES LIMITED,ACR2382179,20-Sep-22,1893.6,315.6,68929,Mental Health Placements,321100              Social Community Care Supplies & Services - Children,A,2022,6
238,Community and Housing,NAS SERVICES LIMITED,ACR2382180,20-Sep-22,1893.6,315.6,68929,Mental Health Placements,321100              Social Community Care Supplies & Services - Children,A,2022,6
239,Community and Housing,NAS SERVICES LIMITED,ACR2382181,20-Sep-22,1735.8,289.3,68929,Mental Health Placements,321100              Social Community Care Supplies & Services - Children,A,2022,6
240,Community and Housing,NAS SERVICES LIMITED,ASU2380469,15-Sep-22,4546.8,757.8,68929,Mental Health Placements,321100              Social Community Care Supplies & Services - Children,A,2022,6
241,Unassigned,LEE VALLEY REGIONAL PARK AUTH.,2.02209E+11,20-Sep-22,14935.26,0,70554,Lee Valley Regional Park,PRECEPT,A,2022,6
242,Community and Housing,TRANSPORT TRADING LIMITED [SE1 0AL],2ND QTR 22/23 CO,05-Sep-22,1169226.78,0,71407,Concessionary Fares,360000              Passenger Transport,A,2022,6
243,"Children, Schools and Family",INTEGRATED SERVICES PROGRAMME,2200003839,23-Sep-22,14617.16,0,72728,Non-Delegated Statements,321100              Social Community Care Supplies & Services - Children,A,2022,6
244,"Children, Schools and Family",ETHELBERT SPECIALIST HOMES LTD,LL/0822/534,06-Sep-22,15032.7,0,72942,Placements Under 18,321100              Social Community Care Supplies & Services - Children,A,2022,6
245,"Children, Schools and Family",ETHELBERT SPECIALIST HOMES LTD,BH/0822/506,06-Sep-22,6787.58,0,72942,Placements Under 18,321100              Social Community Care Supplies & Services - Children,A,2022,6
246,Environment and Regeneration,NEC Software Solutions UK Limited,91464984,29-Sep-22,10200,1700,72946,Reg. Serv - Shared Mgnt Costs,190000              Facilities & Management Services,A,2022,6
247,Environment and Regeneration,GOLDEN SOVEREIGN COACHES,SE629376,26-Sep-22,955,0,73186,Passenger Transport,380000              Vehicle Management,A,2022,6
248,"Children, Schools and Family",JANCETT CHILDCARE AND  JACE TRNG,P2 22 UPFRONTPAY,07-Sep-22,31552.64,0,75578,EARLY YEARS NURSERY GRANTS,260000              Human Resources,A,2022,6
249,Community and Housing,BRANDON TRUST,885052,29-Sep-22,4054,0,76126,Learning Disabilities Placemnt,321017              Nursing & Residential Care Homes,A,2022,6
250,"Children, Schools and Family",DICKY BIRDS PRE SCHOOL NURSERY,P2 22 UPFRONTPAY,07-Sep-22,35674.8,0,76508,EARLY YEARS NURSERY GRANTS,170000              Education,A,2022,6
251,Unassigned,LONDON BOROUGH OF SUTTON,BAILFF AUG 22,27-Sep-22,109329.11,0,76615,Corporate Services,OLA,A,2022,6
252,Community and Housing,BRITISH GAS TRADING LTD,850050246601SEPT,15-Sep-22,570.14,27.14,76976,Supported Living Team,370000              Utilities,A,2022,6
253,Community and Housing,BRITISH GAS TRADING LTD,850050248477SEPT,21-Sep-22,758.36,35.94,76976,Supported Living Team,370000              Utilities,A,2022,6
254,Unassigned,POST OFFICE LTD,MERTON22/23PO10,12-Sep-22,13982.95,0,77066,Adults Social Care,200000              Financial Services,A,2022,6
255,Unassigned,POST OFFICE LTD,MERTON22/23PO11,28-Sep-22,15538.75,0,77066,Adults Social Care,200000              Financial Services,A,2022,6
256,Environment and Regeneration,SIGNWAY SUPPLIES,54020,15-Sep-22,1775.52,295.92,77568,Reactive Maintenance,100000              Building Construction Materials,A,2022,6
257,Community and Housing,ABBEY HOUSE RESIDENTIAL HOMES,883848,27-Sep-22,958.32,0,78937,Older People Placements - East,321017              Nursing & Residential Care Homes,A,2022,6
258,Community and Housing,ABBEY HOUSE RESIDENTIAL HOMES,883849,27-Sep-22,1115.76,0,78937,Older People Placements - East,321017              Nursing & Residential Care Homes,A,2022,6
259,Community and Housing,ABBEY HOUSE RESIDENTIAL HOMES,885053,29-Sep-22,2859.72,0,78937,Older People Placements - East,321017              Nursing & Residential Care Homes,A,2022,6
260,Community and Housing,ABBEY HOUSE RESIDENTIAL HOMES,885072,29-Sep-22,3337.76,0,78937,Older People Placements - East,321017              Nursing & Residential Care Homes,A,2022,6
261,Community and Housing,ABBEY HOUSE RESIDENTIAL HOMES,885075,29-Sep-22,5520,0,78937,Mental Health Placements,321017              Nursing & Residential Care Homes,A,2022,6
262,"Children, Schools and Family",SOUTHWARK COUNCIL,10010628067,23-Sep-22,37092,0,81552,Fostering Recruit/Assessment,OLA,A,2022,6
263,Community and Housing,REDACTED PERSONAL DATA,876784,13-Sep-22,5088.12,0,81639,Older People Placements - East,DIRECT PAYMENTS,R,2022,6
264,Environment and Regeneration,SOUTH WIMBLEDON COMMUNITY ASSO,2ND GRT OCT 22,03-Oct-22,3035,0,82339,Grants Programme,"390000              Works - Construction, Repair & Maintenance",A,2022,6
265,"Children, Schools and Family",DEE'S DAY NURSERY,P2 22 UPFRONTPAY,07-Sep-22,12136.32,0,82343,EARLY YEARS NURSERY GRANTS,170000              Education,A,2022,6
266,Corporate Services,IRON MOUNTAIN (UK) LTD,17147428,22-Sep-22,971.14,161.86,82409,IT-Telecomms,270000              Information Communication Technology,A,2022,6
267,Environment and Regeneration,S.GRUNDON (WASTE) LTD.,W157993,20-Sep-22,718.56,119.76,82593,Waste Disposal,180000              Environmental Services,A,2022,6
268,Community and Housing,ASKEWS AND HOLTS LIBRARY SRV LTD,6747880,16-Sep-22,527.93,0,82770,Media Fund,200000              Financial Services,A,2022,6
269,Community and Housing,ASKEWS AND HOLTS LIBRARY SRV LTD,6754144,30-Sep-22,744.92,0,82770,Media Fund,200000              Financial Services,A,2022,6
270,Unassigned,GREATER LONDON AUTHORITY,2.02209E+11,12-Sep-22,3076302.89,0,83050,Collection Fund,PRECEPT,A,2022,6
271,Unassigned,GREATER LONDON AUTHORITY,2.02209E+11,26-Sep-22,189714,0,83050,Collection Fund,PRECEPT,A,2022,6
272,Unassigned,GREATER LONDON AUTHORITY,2.02209E+11,12-Sep-22,2167916,0,83050,Collection Fund,PRECEPT,A,2022,6
273,Unassigned,MALMESBURY PRIMARY SCHOOL,SCHOOLS 2223/6 A,06-Sep-22,291337,0,83593,Schools,170000              Education,A,2022,6
274,Community and Housing,ALLSOP AND FRANCIS LTD,144179,06-Sep-22,660,110,85114,Meadowsweet Res Home,"390000              Works - Construction, Repair & Maintenance",A,2022,6
275,Environment and Regeneration,NEWSQUEST MEDIA GROUP LTD,40205709,14-Sep-22,543.6,90.6,85566,Development Control,190000              Facilities & Management Services,A,2022,6
276,Environment and Regeneration,NEWSQUEST MEDIA GROUP LTD,40450919,14-Sep-22,521.86,86.98,85566,Development Control,190000              Facilities & Management Services,A,2022,6
277,Capital,NEWSQUEST MEDIA GROUP LTD,40898677,29-Sep-22,2544.05,424.01,85566,Highways & Footways,190000              Facilities & Management Services,A,2022,6
278,Environment and Regeneration,NEWSQUEST MEDIA GROUP LTD,40005463,14-Sep-22,543.6,90.6,85566,Development Control,190000              Facilities & Management Services,A,2022,6
279,Environment and Regeneration,NEWSQUEST MEDIA GROUP LTD,40912094,03-Oct-22,3669.3,611.55,85566,CPZ Implementation & Consult,190000              Facilities & Management Services,A,2022,6
280,Environment and Regeneration,NEWSQUEST MEDIA GROUP LTD,40504340,14-Sep-22,608.83,101.47,85566,Development Control,190000              Facilities & Management Services,A,2022,6
281,Environment and Regeneration,NEWSQUEST MEDIA GROUP LTD,40562467,14-Sep-22,543.6,90.6,85566,Development Control,190000              Facilities & Management Services,A,2022,6
282,Environment and Regeneration,NEWSQUEST MEDIA GROUP LTD,40580876,20-Sep-22,521.86,86.98,85566,Development Control,190000              Facilities & Management Services,A,2022,6
283,Environment and Regeneration,DAWSON RENTALS BUS AND COACH,950536,23-Sep-22,1186.26,197.71,86003,Transport-Contract Hire,180000              Environmental Services,A,2022,6
284,Community and Housing,L.B.RICHMOND UPON THAMES,3001543551,08-Sep-22,34604,0,86993,OP/PS Mgt AD Adult Social Care,OLA,A,2022,6
285,"Children, Schools and Family",CENTRE ACADEMY LONDON,SAU122-14,13-Sep-22,14300,0,88689,Non-Delegated Statements,170000              Education,A,2022,6
286,"Children, Schools and Family",CENTRE ACADEMY LONDON,SAUI22-15,13-Sep-22,14300,0,88689,Non-Delegated Statements,170000              Education,A,2022,6
287,"Children, Schools and Family",CENTRE ACADEMY LONDON,SAUI2213,13-Sep-22,14300,0,88689,Non-Delegated Statements,170000              Education,A,2022,6
288,"Children, Schools and Family",LONDON GRID FOR LEARNING TRUST,2020012628,29-Sep-22,1170,195,90449, Schools IT Support,270000              Information Communication Technology,A,2022,6
289,Community and Housing,SUPREME CARE SERVICES LIMITED,85434,01-Sep-22,747.04,0,91840,Older People Placements - East,321000              Social Community Care Supplies & Services - Adult,A,2022,6
290,Community and Housing,SUPREME CARE SERVICES LIMITED,85433,01-Sep-22,815.86,0,91840,Older People Placements - East,321000              Social Community Care Supplies & Services - Adult,A,2022,6
291,Community and Housing,SUPREME CARE SERVICES LIMITED,85431,01-Sep-22,2988.16,0,91840,Older People Placements - East,321000              Social Community Care Supplies & Services - Adult,A,2022,6
292,"Children, Schools and Family",OWN LIFE LTD - 14+ Team - FC,220748,15-Sep-22,1542.85,257.14,92197,CIC Care Exp under 18 staffing,321100              Social Community Care Supplies & Services - Children,A,2022,6
293,Community and Housing,THE GARWOOD FOUNDATION,BHF/MW/AUG22,28-Sep-22,737.4,0,92268,Older People Placements - East,321000              Social Community Care Supplies & Services - Adult,A,2022,6
294,Community and Housing,THE GARWOOD FOUNDATION,BHF/MW/SEP22,28-Sep-22,737.4,0,92268,Older People Placements - East,321000              Social Community Care Supplies & Services - Adult,A,2022,6
295,Community and Housing,Allied Healthcare,AHCP4/88,01-Sep-22,686.99,0,92896,Older People Placements - East,321000              Social Community Care Supplies & Services - Adult,A,2022,6
296,Community and Housing,Allied Healthcare,AHCP4/40,01-Sep-22,1064.52,0,92896,Phys/Sens Placements - East,321000              Social Community Care Supplies & Services - Adult,A,2022,6
297,Community and Housing,Allied Healthcare,AHC  P4/63,01-Sep-22,672.47,0,92896,Older People Placements - East,321000              Social Community Care Supplies & Services - Adult,A,2022,6
298,Community and Housing,Allied Healthcare,AHCP4/49,01-Sep-22,2767.25,0,92896,Older People Placements - East,321000              Social Community Care Supplies & Services - Adult,A,2022,6
299,Community and Housing,Allied Healthcare,AHCP4/43,01-Sep-22,1627.47,0,92896,Older People Placements - East,321000              Social Community Care Supplies & Services - Adult,A,2022,6
300,Community and Housing,Allied Healthcare,AHCP4/23,01-Sep-22,1111.06,0,92896,Learning Disabilities Placemnt,321000              Social Community Care Supplies & Services - Adult,A,2022,6
301,Community and Housing,Allied Healthcare,AHCP4/37,01-Sep-22,2767.25,0,92896,Older People Placements - East,321000              Social Community Care Supplies & Services - Adult,A,2022,6
302,Community and Housing,Allied Healthcare,AHCP4/4,01-Sep-22,1552.11,0,92896,Older People Placements - East,321000              Social Community Care Supplies & Services - Adult,A,2022,6
303,Community and Housing,Allied Healthcare,AHCP4/53,01-Sep-22,779.96,0,92896,Older People Placements - East,321000              Social Community Care Supplies & Services - Adult,A,2022,6
304,Community and Housing,Allied Healthcare,AHCP428,01-Sep-22,1841.16,0,92896,Older People Placements - East,321000              Social Community Care Supplies & Services - Adult,A,2022,6
305,Community and Housing,Allied Healthcare,AHCP4/62,01-Sep-22,2561.14,0,92896,Older People Placements - East,321000              Social Community Care Supplies & Services - Adult,A,2022,6
306,Community and Housing,Allied Healthcare,AHCP4/82,01-Sep-22,2592.46,0,92896,Older People Placements - East,321000              Social Community Care Supplies & Services - Adult,A,2022,6
307,Community and Housing,Allied Healthcare,AHCP4/16,01-Sep-22,2529.1,0,92896,Older People Placements - East,321000              Social Community Care Supplies & Services - Adult,A,2022,6
308,Community and Housing,Allied Healthcare,AHCP4/79,01-Sep-22,628.78,0,92896,Older People Placements - East,321000              Social Community Care Supplies & Services - Adult,A,2022,6
309,Community and Housing,Allied Healthcare,AHCP4/9,01-Sep-22,562.44,0,92896,Learning Disabilities Placemnt,321000              Social Community Care Supplies & Services - Adult,A,2022,6
310,Community and Housing,Allied Healthcare,AHCP4/76,01-Sep-22,3180.24,0,92896,Phys/Sens Placements - East,321000              Social Community Care Supplies & Services - Adult,A,2022,6
311,Community and Housing,Allied Healthcare,AHCP4/12,01-Sep-22,1325.1,0,92896,Older People Placements - East,321000              Social Community Care Supplies & Services - Adult,A,2022,6
312,Community and Housing,Allied Healthcare,AHCP4/73,01-Sep-22,2536.23,0,92896,Older People Placements - East,321000              Social Community Care Supplies & Services - Adult,A,2022,6
313,Community and Housing,Allied Healthcare,AHCP4/29,01-Sep-22,1056.73,0,92896,Older People Placements - East,321000              Social Community Care Supplies & Services - Adult,A,2022,6
314,Community and Housing,Allied Healthcare,AHCP4/3,01-Sep-22,1353.23,0,92896,Older People Placements - East,321000              Social Community Care Supplies & Services - Adult,A,2022,6
315,Community and Housing,Allied Healthcare,AHCP4/39,01-Sep-22,2323.1,0,92896,Phys/Sens Placements - East,321000              Social Community Care Supplies & Services - Adult,A,2022,6
316,Community and Housing,Allied Healthcare,AHCP4/20,01-Sep-22,715.11,0,92896,Older People Placements - East,321000              Social Community Care Supplies & Services - Adult,A,2022,6
317,Community and Housing,Allied Healthcare,AHCP4/84,01-Sep-22,2964.1,0,92896,Older People Placements - East,321000              Social Community Care Supplies & Services - Adult,A,2022,6
318,Community and Housing,Allied Healthcare,AHCP4/35,01-Sep-22,608.85,0,92896,Older People Placements - East,321000              Social Community Care Supplies & Services - Adult,A,2022,6
319,Community and Housing,Allied Healthcare,AHCP4/55,01-Sep-22,820.15,0,92896,Older People Placements - East,321000              Social Community Care Supplies & Services - Adult,A,2022,6
320,Community and Housing,Allied Healthcare,AHCP4/14,01-Sep-22,530.04,0,92896,Older People Placements - East,321000              Social Community Care Supplies & Services - Adult,A,2022,6
321,Community and Housing,Allied Healthcare,AHCP4/56,01-Sep-22,629.92,0,92896,Older People Placements - East,321000              Social Community Care Supplies & Services - Adult,A,2022,6
322,Community and Housing,Allied Healthcare,AHCP4/27,01-Sep-22,1892.17,0,92896,Older People Placements - East,321000              Social Community Care Supplies & Services - Adult,A,2022,6
323,Community and Housing,Allied Healthcare,AHCP4/48,01-Sep-22,2755.78,0,92896,Older People Placements - East,321000              Social Community Care Supplies & Services - Adult,A,2022,6
324,Community and Housing,Allied Healthcare,AHCP4/6,01-Sep-22,1875.72,0,92896,Older People Placements - East,321000              Social Community Care Supplies & Services - Adult,A,2022,6
325,Community and Housing,Allied Healthcare,AHCP4/81,01-Sep-22,1374.22,0,92896,Older People Placements - East,321000              Social Community Care Supplies & Services - Adult,A,2022,6
326,Community and Housing,Allied Healthcare,AHCP4/67,01-Sep-22,650.21,0,92896,Older People Placements - East,321000              Social Community Care Supplies & Services - Adult,A,2022,6
327,Community and Housing,Allied Healthcare,AHCP4/86,01-Sep-22,2693.24,0,92896,Older People Placements - East,321000              Social Community Care Supplies & Services - Adult,A,2022,6
328,Community and Housing,Allied Healthcare,AHCP4/24,01-Sep-22,1181.78,0,92896,Older People Placements - East,321000              Social Community Care Supplies & Services - Adult,A,2022,6
329,Community and Housing,Allied Healthcare,AHCP4/50,01-Sep-22,560.78,0,92896,Older People Placements - East,321000              Social Community Care Supplies & Services - Adult,A,2022,6
330,Community and Housing,Allied Healthcare,AHCP4/78,01-Sep-22,1041.52,0,92896,Older People Placements - East,321000              Social Community Care Supplies & Services - Adult,A,2022,6
331,Community and Housing,Allied Healthcare,AHCP4/7,01-Sep-22,1949.64,0,92896,Older People Placements - East,321000              Social Community Care Supplies & Services - Adult,A,2022,6
332,Community and Housing,Allied Healthcare,AHCP4/42,01-Sep-22,1068.2,0,92896,Older People Placements - East,321000              Social Community Care Supplies & Services - Adult,A,2022,6
333,Community and Housing,Allied Healthcare,AHCP4/2,01-Sep-22,806.67,0,92896,Older People Placements - East,321000              Social Community Care Supplies & Services - Adult,A,2022,6
334,Community and Housing,Allied Healthcare,AHCP4/91,01-Sep-22,3260.15,0,92896,Phys/Sens Placements - East,321000              Social Community Care Supplies & Services - Adult,A,2022,6
335,Community and Housing,Allied Healthcare,2641062078/88,07-Sep-22,630.85,0,92896,Older People Placements - East,321000              Social Community Care Supplies & Services - Adult,A,2022,6
336,Community and Housing,Allied Healthcare,2641062078/11,07-Sep-22,549.44,0,92896,Learning Disabilities Placemnt,321000              Social Community Care Supplies & Services - Adult,A,2022,6
337,Community and Housing,Allied Healthcare,2641062078/50,07-Sep-22,619.38,0,92896,Older People Placements - East,321000              Social Community Care Supplies & Services - Adult,A,2022,6
338,Community and Housing,Allied Healthcare,2641062078/47,07-Sep-22,915.6,0,92896,Phys/Sens Placements - East,321000              Social Community Care Supplies & Services - Adult,A,2022,6
339,Community and Housing,Allied Healthcare,2641062078/72,07-Sep-22,701.16,0,92896,Older People Placements - East,321000              Social Community Care Supplies & Services - Adult,A,2022,6
340,Community and Housing,Allied Healthcare,2641062078/73,07-Sep-22,1007.03,0,92896,Older People Placements - East,321000              Social Community Care Supplies & Services - Adult,A,2022,6
341,Community and Housing,Allied Healthcare,2641062078/102,07-Sep-22,1575.62,0,92896,Older People Placements - East,321000              Social Community Care Supplies & Services - Adult,A,2022,6
342,Community and Housing,Allied Healthcare,2641062078/56,07-Sep-22,2459.87,0,92896,Older People Placements - East,321000              Social Community Care Supplies & Services - Adult,A,2022,6
343,Community and Housing,Allied Healthcare,2641062078/38,07-Sep-22,1657.89,0,92896,Older People Placements - East,321000              Social Community Care Supplies & Services - Adult,A,2022,6
344,Community and Housing,Allied Healthcare,2641062078/27,07-Sep-22,1164.69,0,92896,Learning Disabilities Placemnt,321000              Social Community Care Supplies & Services - Adult,A,2022,6
345,Community and Housing,Allied Healthcare,2641062078/44,07-Sep-22,2763.51,0,92896,Older People Placements - East,321000              Social Community Care Supplies & Services - Adult,A,2022,6
346,Community and Housing,Allied Healthcare,2641062078/6,07-Sep-22,1670.94,0,92896,Older People Placements - East,321000              Social Community Care Supplies & Services - Adult,A,2022,6
347,Community and Housing,Allied Healthcare,2641062078/60,07-Sep-22,745.55,0,92896,Older People Placements - East,321000              Social Community Care Supplies & Services - Adult,A,2022,6
348,Community and Housing,Allied Healthcare,2641062078/33,07-Sep-22,2609.74,0,92896,Older People Placements - East,321000              Social Community Care Supplies & Services - Adult,A,2022,6
349,Community and Housing,Allied Healthcare,2641062078/91,07-Sep-22,2620.16,0,92896,Older People Placements - East,321000              Social Community Care Supplies & Services - Adult,A,2022,6
350,Community and Housing,Allied Healthcare,2641062078/85,07-Sep-22,2323.19,0,92896,Phys/Sens Placements - East,321000              Social Community Care Supplies & Services - Adult,A,2022,6
351,Community and Housing,Allied Healthcare,2641062078/14,07-Sep-22,1362.96,0,92896,Older People Placements - East,321000              Social Community Care Supplies & Services - Adult,A,2022,6
352,Community and Housing,Allied Healthcare,2641062078/43,07-Sep-22,642.32,0,92896,Older People Placements - East,321000              Social Community Care Supplies & Services - Adult,A,2022,6
353,Community and Housing,Allied Healthcare,2641062078/82,07-Sep-22,2512.87,0,92896,Older People Placements - East,321000              Social Community Care Supplies & Services - Adult,A,2022,6
354,Community and Housing,Allied Healthcare,2641062078/34,07-Sep-22,1068.2,0,92896,Older People Placements - East,321000              Social Community Care Supplies & Services - Adult,A,2022,6
355,Community and Housing,Allied Healthcare,2641062078/5,07-Sep-22,1384.14,0,92896,Older People Placements - East,321000              Social Community Care Supplies & Services - Adult,A,2022,6
356,Community and Housing,Allied Healthcare,2641062078/46,07-Sep-22,2315.42,0,92896,Phys/Sens Placements - East,321000              Social Community Care Supplies & Services - Adult,A,2022,6
357,Community and Housing,Allied Healthcare,2641062078/23,07-Sep-22,740.11,0,92896,Older People Placements - East,321000              Social Community Care Supplies & Services - Adult,A,2022,6
358,Community and Housing,Allied Healthcare,2641062078/24,07-Sep-22,675.48,0,92896,Older People Placements - East,321000              Social Community Care Supplies & Services - Adult,A,2022,6
359,Community and Housing,Allied Healthcare,2641062078/93,07-Sep-22,543.59,0,92896,Older People Placements - East,321000              Social Community Care Supplies & Services - Adult,A,2022,6
360,Community and Housing,Allied Healthcare,2641062078/100,07-Sep-22,2112.04,0,92896,Older People Placements - East,321000              Social Community Care Supplies & Services - Adult,A,2022,6
361,Community and Housing,Allied Healthcare,2641062078/62,07-Sep-22,791.75,0,92896,Older People Placements - East,321000              Social Community Care Supplies & Services - Adult,A,2022,6
362,Community and Housing,Allied Healthcare,2641062078/16,07-Sep-22,530.04,0,92896,Older People Placements - East,321000              Social Community Care Supplies & Services - Adult,A,2022,6
363,Community and Housing,Allied Healthcare,2641062078/63,07-Sep-22,715.61,0,92896,Older People Placements - East,321000              Social Community Care Supplies & Services - Adult,A,2022,6
364,Community and Housing,Allied Healthcare,2641062078/32,07-Sep-22,1589.6,0,92896,Older People Placements - East,321000              Social Community Care Supplies & Services - Adult,A,2022,6
365,Community and Housing,Allied Healthcare,2641062078/55,07-Sep-22,2740.5,0,92896,Older People Placements - East,321000              Social Community Care Supplies & Services - Adult,A,2022,6
366,Community and Housing,Allied Healthcare,2641062078/8,07-Sep-22,973.27,0,92896,Older People Placements - East,321000              Social Community Care Supplies & Services - Adult,A,2022,6
367,Community and Housing,Allied Healthcare,2641062078/90,07-Sep-22,1389.36,0,92896,Older People Placements - East,321000              Social Community Care Supplies & Services - Adult,A,2022,6
368,Community and Housing,Allied Healthcare,2641062078/96,07-Sep-22,692.07,0,92896,Older People Placements - East,321000              Social Community Care Supplies & Services - Adult,A,2022,6
369,Community and Housing,Allied Healthcare,2641062078/76,07-Sep-22,624.92,0,92896,Older People Placements - East,321000              Social Community Care Supplies & Services - Adult,A,2022,6
370,Community and Housing,Allied Healthcare,2641062078/95,07-Sep-22,2628.1,0,92896,Older People Placements - East,321000              Social Community Care Supplies & Services - Adult,A,2022,6
371,Community and Housing,Allied Healthcare,2641062078/28,07-Sep-22,1181.78,0,92896,Older People Placements - East,321000              Social Community Care Supplies & Services - Adult,A,2022,6
372,Community and Housing,Allied Healthcare,2641062078/87,07-Sep-22,1034.83,0,92896,Older People Placements - East,321000              Social Community Care Supplies & Services - Adult,A,2022,6
373,Community and Housing,Allied Healthcare,2641062078/9,07-Sep-22,1916.09,0,92896,Older People Placements - East,321000              Social Community Care Supplies & Services - Adult,A,2022,6
374,Community and Housing,Allied Healthcare,2641062078/49,07-Sep-22,1068.2,0,92896,Older People Placements - East,321000              Social Community Care Supplies & Services - Adult,A,2022,6
375,Community and Housing,Allied Healthcare,2641062078/4,07-Sep-22,796.78,0,92896,Older People Placements - East,321000              Social Community Care Supplies & Services - Adult,A,2022,6
376,Community and Housing,Allied Healthcare,1221/79,20-Sep-22,588.41,0,92896,Older People Placements - East,321000              Social Community Care Supplies & Services - Adult,A,2022,6
377,Community and Housing,Allied Healthcare,1221/21,20-Sep-22,754.04,0,92896,Learning Disabilities Placemnt,321000              Social Community Care Supplies & Services - Adult,A,2022,6
378,Community and Housing,Allied Healthcare,1221/48,20-Sep-22,642.32,0,92896,Older People Placements - East,321000              Social Community Care Supplies & Services - Adult,A,2022,6
379,Community and Housing,Allied Healthcare,1221/65,20-Sep-22,701.16,0,92896,Older People Placements - East,321000              Social Community Care Supplies & Services - Adult,A,2022,6
380,Community and Housing,Allied Healthcare,1221/62,20-Sep-22,728.01,0,92896,Older People Placements - East,321000              Social Community Care Supplies & Services - Adult,A,2022,6
381,Community and Housing,Allied Healthcare,1221/66,20-Sep-22,1031.86,0,92896,Older People Placements - East,321000              Social Community Care Supplies & Services - Adult,A,2022,6
382,Community and Housing,Allied Healthcare,1221/92,20-Sep-22,1922.71,0,92896,Older People Placements - East,321000              Social Community Care Supplies & Services - Adult,A,2022,6
383,Community and Housing,Allied Healthcare,1221/25,20-Sep-22,1022.22,0,92896,Older People Placements - East,321000              Social Community Care Supplies & Services - Adult,A,2022,6
384,Community and Housing,Allied Healthcare,1221/41,20-Sep-22,1031.96,0,92896,Older People Placements - East,321000              Social Community Care Supplies & Services - Adult,A,2022,6
385,Community and Housing,Allied Healthcare,1221/12,20-Sep-22,4114.89,0,92896,Phys/Sens Placements - East,321000              Social Community Care Supplies & Services - Adult,A,2022,6
386,Community and Housing,Allied Healthcare,1221/54,20-Sep-22,2715.64,0,92896,Older People Placements - East,321000              Social Community Care Supplies & Services - Adult,A,2022,6
387,Community and Housing,Allied Healthcare,1221/37,20-Sep-22,1637.56,0,92896,Older People Placements - East,321000              Social Community Care Supplies & Services - Adult,A,2022,6
388,Community and Housing,Allied Healthcare,1221/27,20-Sep-22,1263.87,0,92896,Learning Disabilities Placemnt,321000              Social Community Care Supplies & Services - Adult,A,2022,6
389,Community and Housing,Allied Healthcare,1221/43,20-Sep-22,2740.57,0,92896,Older People Placements - East,321000              Social Community Care Supplies & Services - Adult,A,2022,6
390,Community and Housing,Allied Healthcare,1221/6,20-Sep-22,1666.43,0,92896,Older People Placements - East,321000              Social Community Care Supplies & Services - Adult,A,2022,6
391,Community and Housing,Allied Healthcare,1221/57,20-Sep-22,665.26,0,92896,Older People Placements - East,321000              Social Community Care Supplies & Services - Adult,A,2022,6
392,Community and Housing,Allied Healthcare,1221/32,20-Sep-22,2025.23,0,92896,Older People Placements - East,321000              Social Community Care Supplies & Services - Adult,A,2022,6
393,Community and Housing,Allied Healthcare,1221/82,20-Sep-22,2523.6,0,92896,Older People Placements - East,321000              Social Community Care Supplies & Services - Adult,A,2022,6
394,Community and Housing,Allied Healthcare,1221/14,20-Sep-22,1249.38,0,92896,Older People Placements - East,321000              Social Community Care Supplies & Services - Adult,A,2022,6
395,Community and Housing,Allied Healthcare,1221/42,20-Sep-22,642.32,0,92896,Older People Placements - East,321000              Social Community Care Supplies & Services - Adult,A,2022,6
396,Community and Housing,Allied Healthcare,1221/74,20-Sep-22,2546.9,0,92896,Older People Placements - East,321000              Social Community Care Supplies & Services - Adult,A,2022,6
397,Community and Housing,Allied Healthcare,1221/33,20-Sep-22,1068.2,0,92896,Older People Placements - East,321000              Social Community Care Supplies & Services - Adult,A,2022,6
398,Community and Housing,Allied Healthcare,1221/5,20-Sep-22,1338.67,0,92896,Older People Placements - East,321000              Social Community Care Supplies & Services - Adult,A,2022,6
399,Community and Housing,Allied Healthcare,1221/45,20-Sep-22,2330.55,0,92896,Phys/Sens Placements - East,321000              Social Community Care Supplies & Services - Adult,A,2022,6
400,Community and Housing,Allied Healthcare,1221/24,20-Sep-22,731.5,0,92896,Older People Placements - East,321000              Social Community Care Supplies & Services - Adult,A,2022,6
401,Community and Housing,Allied Healthcare,1221/39,20-Sep-22,670.74,0,92896,Older People Placements - East,321000              Social Community Care Supplies & Services - Adult,A,2022,6
402,Community and Housing,Allied Healthcare,1221/90,20-Sep-22,1722.96,0,92896,Older People Placements - East,321000              Social Community Care Supplies & Services - Adult,A,2022,6
403,Community and Housing,Allied Healthcare,1221/16,20-Sep-22,530.04,0,92896,Older People Placements - East,321000              Social Community Care Supplies & Services - Adult,A,2022,6
404,Community and Housing,Allied Healthcare,1221/60,20-Sep-22,679.1,0,92896,Older People Placements - East,321000              Social Community Care Supplies & Services - Adult,A,2022,6
405,Community and Housing,Allied Healthcare,1221/31,20-Sep-22,1820.23,0,92896,Older People Placements - East,321000              Social Community Care Supplies & Services - Adult,A,2022,6
406,Community and Housing,Allied Healthcare,1221/53,20-Sep-22,2778.72,0,92896,Older People Placements - East,321000              Social Community Care Supplies & Services - Adult,A,2022,6
407,Community and Housing,Allied Healthcare,1221/81,20-Sep-22,1389.36,0,92896,Older People Placements - East,321000              Social Community Care Supplies & Services - Adult,A,2022,6
408,Community and Housing,Allied Healthcare,1221/69,20-Sep-22,639.85,0,92896,Older People Placements - East,321000              Social Community Care Supplies & Services - Adult,A,2022,6
409,Community and Housing,Allied Healthcare,1221/85,20-Sep-22,2545.83,0,92896,Older People Placements - East,321000              Social Community Care Supplies & Services - Adult,A,2022,6
410,Community and Housing,Allied Healthcare,1221/28,20-Sep-22,1181.78,0,92896,Older People Placements - East,321000              Social Community Care Supplies & Services - Adult,A,2022,6
411,Community and Housing,Allied Healthcare,1221/78,20-Sep-22,984.72,0,92896,Older People Placements - East,321000              Social Community Care Supplies & Services - Adult,A,2022,6
412,Community and Housing,Allied Healthcare,1221/9,20-Sep-22,1699.56,0,92896,Older People Placements - East,321000              Social Community Care Supplies & Services - Adult,A,2022,6
413,Community and Housing,Allied Healthcare,1221/4,20-Sep-22,809.9,0,92896,Older People Placements - East,321000              Social Community Care Supplies & Services - Adult,A,2022,6
414,Community and Housing,Allied Healthcare,RF/264/1062699,21-Sep-22,843.04,0,92896,Older People Placements - East,321000              Social Community Care Supplies & Services - Adult,A,2022,6
415,Community and Housing,Allied Healthcare,RF/264/1062698,21-Sep-22,2030.68,0,92896,Older People Placements - East,321000              Social Community Care Supplies & Services - Adult,A,2022,6
416,Community and Housing,Allied Healthcare,BH 290822,27-Sep-22,850.28,0,92896,Older People Placements - East,321000              Social Community Care Supplies & Services - Adult,A,2022,6
417,Community and Housing,Allied Healthcare,RF/264/1061885,28-Sep-22,637.49,0,92896,Older People Placements - East,321000              Social Community Care Supplies & Services - Adult,A,2022,6
418,"Children, Schools and Family",BUILDING BLOCKS NURSERY,P2 22 UPFRONTPAY,07-Sep-22,32016.77,0,93437,EARLY YEARS NURSERY GRANTS,170000              Education,A,2022,6
419,Community and Housing,CARE MANAGEMENT GROUP,397000622,13-Sep-22,4961.72,0,93533,Learning Disabilities Placemnt,321017              Nursing & Residential Care Homes,A,2022,6
420,Community and Housing,CARE MANAGEMENT GROUP,885034,29-Sep-22,4593.88,0,93533,Mental Health Placements,321017              Nursing & Residential Care Homes,A,2022,6
421,Community and Housing,CARE MANAGEMENT GROUP,885083,29-Sep-22,6572.16,0,93533,Learning Disabilities Placemnt,321017              Nursing & Residential Care Homes,A,2022,6
422,Community and Housing,CARE MANAGEMENT GROUP,885100,29-Sep-22,6279.2,0,93533,Learning Disabilities Placemnt,321017              Nursing & Residential Care Homes,A,2022,6
423,Community and Housing,CARE MANAGEMENT GROUP,885203,29-Sep-22,5936.6,0,93533,Learning Disabilities Placemnt,321017              Nursing & Residential Care Homes,A,2022,6
424,Community and Housing,CARE MANAGEMENT GROUP,885242,29-Sep-22,8733.64,0,93533,Phys/Sens Placements - East,321017              Nursing & Residential Care Homes,A,2022,6
425,Community and Housing,CARE MANAGEMENT GROUP,885276,29-Sep-22,7712.12,0,93533,Learning Disabilities Placemnt,321017              Nursing & Residential Care Homes,A,2022,6
426,Community and Housing,CARE MANAGEMENT GROUP,885404,29-Sep-22,7974.36,0,93533,Learning Disabilities Placemnt,321017              Nursing & Residential Care Homes,A,2022,6
427,"Children, Schools and Family",ST OLAVES NURSERY,P2 22 UPFRONTPAY,07-Sep-22,11534.88,0,94303,EARLY YEARS NURSERY GRANTS,170000              Education,A,2022,6
428,Community and Housing,A AND R CARE LTD,885091,29-Sep-22,3300,0,94357,Older People Placements - East,321017              Nursing & Residential Care Homes,A,2022,6
429,Community and Housing,A AND R CARE LTD,885341,29-Sep-22,3400,0,94357,Older People Placements - East,321017              Nursing & Residential Care Homes,A,2022,6
430,Community and Housing,A AND R CARE LTD,885369,29-Sep-22,3809.6,0,94357,Older People Placements - East,321017              Nursing & Residential Care Homes,A,2022,6
431,Community and Housing,A AND R CARE LTD,885432,29-Sep-22,3824.32,0,94357,Phys/Sens Placements - East,321017              Nursing & Residential Care Homes,A,2022,6
432,"Children, Schools and Family",JCDECAUX UNITED KINGDOM,SF/I192765,27-Sep-22,558,93,94678,Fostering Recruit/Assessment,190000              Facilities & Management Services,A,2022,6
433,Corporate Services,COMMONSIDE COMMUNITY DEV TRUST,SP GRT OCT 22,28-Sep-22,4050,0,95839,VOLUNTARY SECTOR COORDINATION,321000              Social Community Care Supplies & Services - Adult,A,2022,6
434,Community and Housing,Aspens Charities Ltd,34466,13-Sep-22,17318.36,0,96019,Learning Disabilities Placemnt,321017              Nursing & Residential Care Homes,A,2022,6
435,Community and Housing,Aspens Charities Ltd,885225,29-Sep-22,8954.28,0,96019,Learning Disabilities Placemnt,321017              Nursing & Residential Care Homes,A,2022,6
436,Corporate Services,HEIDELBERG GRAPHIC EQUIP. LTD,1875687879,23-Sep-22,763.2,127.2,96535,Printing,190000              Facilities & Management Services,A,2022,6
437,Community and Housing,REDACTED PERSONAL DATA,876776,13-Sep-22,4260.16,0,96859,Learning Disabilities Placemnt,DIRECT PAYMENTS,R,2022,6
438,Community and Housing,Rosenmanor Ltd,885221,29-Sep-22,2924.24,0,97808,Mental Health Placements,321017              Nursing & Residential Care Homes,A,2022,6
439,Community and Housing,MERTON COMMUNITY TRANSPORT,16630,22-Sep-22,907.2,151.2,98164,Learning Disabilities Placemnt,360000              Passenger Transport,A,2022,6
440,"Children, Schools and Family",MERTON COMMUNITY TRANSPORT,16632,27-Sep-22,901.2,150.2,98164, Youth Service,360000              Passenger Transport,A,2022,6
441,Unassigned,BEECHOLME PRIMARY ACADEMY,SCHOOLS 2223/6 A,06-Sep-22,7984,0,98168,Schools,170000              Education,A,2022,6
442,"Children, Schools and Family",Evolve Housing + Support,3130,20-Sep-22,2750,0,98536,UASC Care Leavers Over 18,321000              Social Community Care Supplies & Services - Adult,A,2022,6
443,"Children, Schools and Family",Evolve Housing + Support,3123,20-Sep-22,1850,0,98536,UASC Care Leavers Over 18,321000              Social Community Care Supplies & Services - Adult,A,2022,6
444,"Children, Schools and Family",Evolve Housing + Support,3124,20-Sep-22,1850,0,98536,Placements Over 18,321000              Social Community Care Supplies & Services - Adult,A,2022,6
445,"Children, Schools and Family",Evolve Housing + Support,3121,20-Sep-22,2750,0,98536,UASC Care Leavers Over 18,321000              Social Community Care Supplies & Services - Adult,A,2022,6
446,"Children, Schools and Family",Evolve Housing + Support,3120,20-Sep-22,2750,0,98536,UASC Care Leavers Over 18,321000              Social Community Care Supplies & Services - Adult,A,2022,6
447,"Children, Schools and Family",REDACTED PERSONAL DATA,876238,12-Sep-22,869.5,0,101120,Fostering Recruit/Assessment,290000              Arts & Leisure Services,R,2022,6
448,"Children, Schools and Family",REDACTED PERSONAL DATA,883560,26-Sep-22,869.5,0,101120,Fostering Recruit/Assessment,290000              Arts & Leisure Services,R,2022,6
449,Unassigned,WEST WIMBLEDON PRIMARY SCHOOL,SCHOOLS 2223/6 A,06-Sep-22,315210.55,0,101674,Schools,170000              Education,A,2022,6
450,"Children, Schools and Family",DEE'S DAYS NURSERY,P2 22 UPFRONTPAY,07-Sep-22,6935.04,0,103590,EARLY YEARS NURSERY GRANTS,170000              Education,A,2022,6
451,Community and Housing,HILLDALE AND NORTHVIEW,885188,29-Sep-22,2072.52,0,103592,Older People Placements - East,321000              Social Community Care Supplies & Services - Adult,A,2022,6
452,Community and Housing,BUPA CARE HOMES,885059,29-Sep-22,3154.12,0,105027,Older People Placements - East,321017              Nursing & Residential Care Homes,A,2022,6
453,Community and Housing,BUPA CARE HOMES,885064,29-Sep-22,3289.24,0,105027,Older People Placements - East,321017              Nursing & Residential Care Homes,A,2022,6
454,Community and Housing,BUPA CARE HOMES,885066,29-Sep-22,3289.24,0,105027,Older People Placements - East,321017              Nursing & Residential Care Homes,A,2022,6
455,Community and Housing,BUPA CARE HOMES,885090,29-Sep-22,3154.12,0,105027,Older People Placements - East,321017              Nursing & Residential Care Homes,A,2022,6
456,Community and Housing,BUPA CARE HOMES,885136,29-Sep-22,2703.53,0,105027,Older People Placements - East,321017              Nursing & Residential Care Homes,A,2022,6
457,Community and Housing,BUPA CARE HOMES,885142,29-Sep-22,3289.24,0,105027,Older People Placements - East,321017              Nursing & Residential Care Homes,A,2022,6
458,Community and Housing,BUPA CARE HOMES,885155,29-Sep-22,3154.12,0,105027,Older People Placements - East,321017              Nursing & Residential Care Homes,A,2022,6
459,Community and Housing,BUPA CARE HOMES,885176,29-Sep-22,3154.12,0,105027,Older People Placements - East,321017              Nursing & Residential Care Homes,A,2022,6
460,Community and Housing,BUPA CARE HOMES,885196,29-Sep-22,3154.12,0,105027,Older People Placements - East,321017              Nursing & Residential Care Homes,A,2022,6
461,Community and Housing,BUPA CARE HOMES,885251,29-Sep-22,3154.12,0,105027,Older People Placements - East,321017              Nursing & Residential Care Homes,A,2022,6
462,Community and Housing,BUPA CARE HOMES,885265,29-Sep-22,3289.24,0,105027,Older People Placements - East,321017              Nursing & Residential Care Homes,A,2022,6
463,Community and Housing,BUPA CARE HOMES,885268,29-Sep-22,3154.12,0,105027,Older People Placements - East,321017              Nursing & Residential Care Homes,A,2022,6
464,Community and Housing,BUPA CARE HOMES,885311,29-Sep-22,3289.24,0,105027,Older People Placements - East,321017              Nursing & Residential Care Homes,A,2022,6
465,Community and Housing,BUPA CARE HOMES,885321,29-Sep-22,4321.08,0,105027,Phys/Sens Placements - East,321017              Nursing & Residential Care Homes,A,2022,6
466,Community and Housing,BUPA CARE HOMES,885335,29-Sep-22,3569.4,0,105027,Older People Placements - East,321017              Nursing & Residential Care Homes,A,2022,6
467,Community and Housing,BUPA CARE HOMES,885365,29-Sep-22,3154.12,0,105027,Older People Placements - East,321017              Nursing & Residential Care Homes,A,2022,6
468,Community and Housing,BUPA CARE HOMES,885449,29-Sep-22,3154.12,0,105027,Older People Placements - East,321017              Nursing & Residential Care Homes,A,2022,6
469,Community and Housing,REDACTED PERSONAL DATA,876853,13-Sep-22,2689.24,0,105300,Learning Disabilities Placemnt,DIRECT PAYMENTS,R,2022,6
470,"Children, Schools and Family",NEWSCHOOLS (MERTON) LIMITED,NSM01034,27-Sep-22,4060473.91,676745.65,106428, PFI Unitary Charges,200000              Financial Services,A,2022,6
471,"Children, Schools and Family",NEWSCHOOLS (MERTON) LIMITED,NSM01035,27-Sep-22,180000,30000,106428, PFI Unitary Charges,200000              Financial Services,A,2022,6
472,Capital,ASCENDIT LIFTS LTD,39104,21-Sep-22,5543,0,107196,Disabled Facilities Grant,"390000              Works - Construction, Repair & Maintenance",A,2022,6
473,Capital,ASCENDIT LIFTS LTD,38887,29-Sep-22,6856,0,107196,Disabled Facilities Grant,"390000              Works - Construction, Repair & Maintenance",A,2022,6
474,Unassigned,ENVIRONMENT AGENCY,2.02209E+11,30-Sep-22,44615.1,0,108067,Flood Defence,PRECEPT,A,2022,6
475,"Children, Schools and Family",The Eveline Day and Nursery Schools Ltd,P2 22 UPFRONTPAY,07-Sep-22,24272.64,0,108282,EARLY YEARS NURSERY GRANTS,170000              Education,A,2022,6
476,Environment and Regeneration,R.J.H.WELDING,RH/6498/A,26-Sep-22,660,110,108287,Barrow and Bins Replacement,180000              Environmental Services,A,2022,6
477,Community and Housing,REDACTED PERSONAL DATA,880129,16-Sep-22,789.04,0,110403,MH Housing Support Placements,321000              Social Community Care Supplies & Services - Adult,R,2022,6
478,Community and Housing,REDACTED PERSONAL DATA,880131,16-Sep-22,1052.04,0,110403,Learning Disabilities Placemnt,321000              Social Community Care Supplies & Services - Adult,R,2022,6
479,Community and Housing,REDACTED PERSONAL DATA,880132,16-Sep-22,780.68,0,110403,MH Housing Support Placements,321000              Social Community Care Supplies & Services - Adult,R,2022,6
480,Community and Housing,REDACTED PERSONAL DATA,880145,16-Sep-22,780.68,0,110403,MH Housing Support Placements,321000              Social Community Care Supplies & Services - Adult,R,2022,6
481,Community and Housing,REDACTED PERSONAL DATA,880146,16-Sep-22,789.04,0,110403,MH Housing Support Placements,321000              Social Community Care Supplies & Services - Adult,R,2022,6
482,Community and Housing,REDACTED PERSONAL DATA,880157,16-Sep-22,1235.28,0,110403,Phys/Sens Placements - East,321000              Social Community Care Supplies & Services - Adult,R,2022,6
483,Community and Housing,REDACTED PERSONAL DATA,880161,16-Sep-22,780.68,0,110403,Mental Health Placements,321000              Social Community Care Supplies & Services - Adult,R,2022,6
484,Community and Housing,REDACTED PERSONAL DATA,880165,16-Sep-22,780.68,0,110403,MH Housing Support Placements,321000              Social Community Care Supplies & Services - Adult,R,2022,6
485,Community and Housing,REDACTED PERSONAL DATA,880177,16-Sep-22,780.68,0,110403,MH Housing Support Placements,321000              Social Community Care Supplies & Services - Adult,R,2022,6
486,Community and Housing,REDACTED PERSONAL DATA,880178,16-Sep-22,780.68,0,110403,Mental Health Placements,321000              Social Community Care Supplies & Services - Adult,R,2022,6
487,Community and Housing,REDACTED PERSONAL DATA,880180,16-Sep-22,520.48,0,110403,MH Housing Support Placements,321000              Social Community Care Supplies & Services - Adult,R,2022,6
488,Community and Housing,REDACTED PERSONAL DATA,880181,16-Sep-22,1040.92,0,110403,Phys/Sens Placements - East,321000              Social Community Care Supplies & Services - Adult,R,2022,6
489,Community and Housing,REDACTED PERSONAL DATA,880183,16-Sep-22,2240,0,110403,Mental Health Placements,321000              Social Community Care Supplies & Services - Adult,R,2022,6
490,Community and Housing,REDACTED PERSONAL DATA,880137,16-Sep-22,780.68,0,110406,LD Housing Support Placements,321000              Social Community Care Supplies & Services - Adult,R,2022,6
491,"Children, Schools and Family",REDACTED PERSONAL DATA,876310,12-Sep-22,580.68,0,112660,Fostering Recruit/Assessment,321100              Social Community Care Supplies & Services - Children,R,2022,6
492,"Children, Schools and Family",REDACTED PERSONAL DATA,883633,26-Sep-22,580.68,0,112660,Fostering Recruit/Assessment,321100              Social Community Care Supplies & Services - Children,R,2022,6
493,Community and Housing,MEADBANK NURSING CENTRE,882206,21-Sep-22,755.52,0,113139,Phys/Sens Placements - East,321017              Nursing & Residential Care Homes,A,2022,6
494,Community and Housing,MEADBANK NURSING CENTRE,882208,21-Sep-22,691.2,0,113139,Older People Placements - East,321017              Nursing & Residential Care Homes,A,2022,6
495,Community and Housing,MEADBANK NURSING CENTRE,885246,29-Sep-22,4110.6,0,113139,Phys/Sens Placements - East,321017              Nursing & Residential Care Homes,A,2022,6
496,Community and Housing,MEADBANK NURSING CENTRE,885430,29-Sep-22,2995.28,0,113139,Older People Placements - East,321017              Nursing & Residential Care Homes,A,2022,6
497,"Children, Schools and Family",REDACTED PERSONAL DATA,876269,15-Sep-22,1059.31,0,113452,Adoption placements,321100              Social Community Care Supplies & Services - Children,R,2022,6
498,"Children, Schools and Family",REDACTED PERSONAL DATA,883594,26-Sep-22,557.94,0,113452,Fostering Recruit/Assessment,321100              Social Community Care Supplies & Services - Children,R,2022,6
499,Community and Housing,EARLSFIELD PROPERTIES,MR R AHMAD & MRS,08-Sep-22,1600,0,113904,Homelessness Prevention,200000              Financial Services,A,2022,6
500,"Children, Schools and Family",Dicky Birds Pre Sch. Nurseries Dundonald,P2 22 UPFRONTPAY,07-Sep-22,13870.08,0,114041,EARLY YEARS NURSERY GRANTS,170000              Education,A,2022,6
501,Community and Housing,MIHOMECARE LIMITED,LIVE1W-268676,02-Sep-22,1113.7,0,114370,Learning Disabilities Placemnt,321000              Social Community Care Supplies & Services - Adult,A,2022,6
502,Community and Housing,MIHOMECARE LIMITED,LIVE1W-268689,09-Sep-22,1113.7,0,114370,Learning Disabilities Placemnt,321000              Social Community Care Supplies & Services - Adult,A,2022,6
503,Community and Housing,MIHOMECARE LIMITED,LIVE1W-268820,09-Sep-22,1113.7,0,114370,Learning Disabilities Placemnt,321000              Social Community Care Supplies & Services - Adult,A,2022,6
504,Community and Housing,MIHOMECARE LIMITED,LIVE1W-268810,09-Sep-22,1113.7,0,114370,Learning Disabilities Placemnt,321000              Social Community Care Supplies & Services - Adult,A,2022,6
505,Community and Housing,MIHOMECARE LIMITED,LIVE1W-268926,09-Sep-22,1113.7,0,114370,Learning Disabilities Placemnt,321000              Social Community Care Supplies & Services - Adult,A,2022,6
506,Community and Housing,MIHOMECARE LIMITED,LIVE1W-268954,09-Sep-22,1113.7,0,114370,Learning Disabilities Placemnt,321000              Social Community Care Supplies & Services - Adult,A,2022,6
507,Community and Housing,MIHOMECARE LIMITED,LIVE1W-268949,09-Sep-22,1113.7,0,114370,Learning Disabilities Placemnt,321000              Social Community Care Supplies & Services - Adult,A,2022,6
508,Community and Housing,MIHOMECARE LIMITED,LIVE1W-247389,09-Sep-22,1039.8,0,114370,Learning Disabilities Placemnt,321000              Social Community Care Supplies & Services - Adult,A,2022,6
509,Community and Housing,MIHOMECARE LIMITED,LIVE1W-269048,15-Sep-22,1113.7,0,114370,Learning Disabilities Placemnt,321000              Social Community Care Supplies & Services - Adult,A,2022,6
510,Community and Housing,MIHOMECARE LIMITED,LIVE1W269078,15-Sep-22,1113.7,0,114370,Learning Disabilities Placemnt,321000              Social Community Care Supplies & Services - Adult,A,2022,6
511,Community and Housing,MIHOMECARE LIMITED,LIVE1W269056,15-Sep-22,1113.7,0,114370,Learning Disabilities Placemnt,321000              Social Community Care Supplies & Services - Adult,A,2022,6
512,Community and Housing,MIHOMECARE LIMITED,LIVE1W-269144,15-Sep-22,1113.7,0,114370,Learning Disabilities Placemnt,321000              Social Community Care Supplies & Services - Adult,A,2022,6
513,Community and Housing,MIHOMECARE LIMITED,LIVE1W-269150,15-Sep-22,1113.7,0,114370,Learning Disabilities Placemnt,321000              Social Community Care Supplies & Services - Adult,A,2022,6
514,Community and Housing,MIHOMECARE LIMITED,LIVE1W-269156,15-Sep-22,1113.7,0,114370,Learning Disabilities Placemnt,321000              Social Community Care Supplies & Services - Adult,A,2022,6
515,Community and Housing,MIHOMECARE LIMITED,LIVE1W-269172,20-Sep-22,1113.7,0,114370,Learning Disabilities Placemnt,321000              Social Community Care Supplies & Services - Adult,A,2022,6
516,Community and Housing,MIHOMECARE LIMITED,LIVE1W-269015,15-Sep-22,954.6,0,114370,Learning Disabilities Placemnt,321000              Social Community Care Supplies & Services - Adult,A,2022,6
517,Community and Housing,MIHOMECARE LIMITED,LIVE1W-269236,30-Sep-22,1113.7,0,114370,Learning Disabilities Placemnt,321000              Social Community Care Supplies & Services - Adult,A,2022,6
518,Community and Housing,REDACTED PERSONAL DATA,880139,16-Sep-22,780.68,0,114970,MH Housing Support Placements,321000              Social Community Care Supplies & Services - Adult,R,2022,6
519,Community and Housing,REDACTED PERSONAL DATA,880141,16-Sep-22,1783,0,114970,Mental Health Placements,321000              Social Community Care Supplies & Services - Adult,R,2022,6
520,Community and Housing,REDACTED PERSONAL DATA,880158,16-Sep-22,1511.64,0,114970,Mental Health Placements,321000              Social Community Care Supplies & Services - Adult,R,2022,6
521,Community and Housing,REDACTED PERSONAL DATA,880173,16-Sep-22,1052.08,0,114970,MH Housing Support Placements,321000              Social Community Care Supplies & Services - Adult,R,2022,6
522,Community and Housing,REDACTED PERSONAL DATA,880160,21-Sep-22,1040.92,0,114970,Hospital To Home,321000              Social Community Care Supplies & Services - Adult,R,2022,6
523,Community and Housing,ASTRA HOMES,AK/0922,08-Sep-22,2034.24,0,114991,Mental Health Placements,321000              Social Community Care Supplies & Services - Adult,A,2022,6
524,Community and Housing,ASTRA HOMES,GB/09/22,08-Sep-22,1978.12,0,114991,Mental Health Placements,321000              Social Community Care Supplies & Services - Adult,A,2022,6
525,Community and Housing,ASTRA HOMES,EC/09/22,08-Sep-22,2071.68,0,114991,Mental Health Placements,321000              Social Community Care Supplies & Services - Adult,A,2022,6
526,Community and Housing,ASTRA HOMES,MJ/09/22,08-Sep-22,1816.76,0,114991,Mental Health Placements,321000              Social Community Care Supplies & Services - Adult,A,2022,6
527,"Children, Schools and Family",The Eveline Day Nursery Grand Drive,P2 22 UPFRONTPAY,07-Sep-22,37275.84,0,116784,EARLY YEARS NURSERY GRANTS,170000              Education,A,2022,6
528,Community and Housing,GRANGE COTTAGE LIMITED,885099,29-Sep-22,2680,0,117931,Older People Placements - East,321017              Nursing & Residential Care Homes,A,2022,6
529,Community and Housing,GRANGE COTTAGE LIMITED,885154,29-Sep-22,2680,0,117931,Older People Placements - East,321017              Nursing & Residential Care Homes,A,2022,6
530,Community and Housing,GRANGE COTTAGE LIMITED,885157,29-Sep-22,3200,0,117931,Older People Placements - East,321017              Nursing & Residential Care Homes,A,2022,6
531,Community and Housing,GRANGE COTTAGE LIMITED,885261,29-Sep-22,3600,0,117931,Older People Placements - East,321017              Nursing & Residential Care Homes,A,2022,6
532,Community and Housing,GRANGE COTTAGE LIMITED,885352,29-Sep-22,2680,0,117931,Older People Placements - East,321017              Nursing & Residential Care Homes,A,2022,6
533,Community and Housing,REDACTED PERSONAL DATA,880135,16-Sep-22,789.04,0,117970,MH Housing Support Placements,321000              Social Community Care Supplies & Services - Adult,R,2022,6
534,Community and Housing,REDACTED PERSONAL DATA,880148,16-Sep-22,1052.08,0,117970,Mental Health Placements,321000              Social Community Care Supplies & Services - Adult,R,2022,6
535,Community and Housing,REDACTED PERSONAL DATA,880170,16-Sep-22,1052.08,0,117970,Mental Health Placements,321000              Social Community Care Supplies & Services - Adult,R,2022,6
536,Community and Housing,L'ARCHE,885381,29-Sep-22,3094.6,0,118483,Learning Disabilities Placemnt,321017              Nursing & Residential Care Homes,A,2022,6
537,Community and Housing,Alexander House,881049,16-Sep-22,920.09,0,119109,Older People Placements - East,321017              Nursing & Residential Care Homes,A,2022,6
538,Community and Housing,Alexander House,885115,29-Sep-22,3100,0,119109,Older People Placements - East,321017              Nursing & Residential Care Homes,A,2022,6
539,Community and Housing,Alexander House,885190,29-Sep-22,3220.32,0,119109,Older People Placements - East,321017              Nursing & Residential Care Homes,A,2022,6
540,"Children, Schools and Family",REDACTED PERSONAL DATA,P2 22 UPFRONTPAY,07-Sep-22,967.68,0,119701,EARLY YEARS NURSERY GRANTS,200000              Financial Services,R,2022,6
541,"Children, Schools and Family",PLAYDAYS DAY NURSERY,P2 22 UPFRONTPAY,07-Sep-22,9668.4,0,121668,EARLY YEARS NURSERY GRANTS,170000              Education,A,2022,6
542,Environment and Regeneration,KINGDOM SECURITY LTD,SER-00033455INV,22-Sep-22,11334.02,1889.04,123458,Vestry Hall,260000              Human Resources,A,2022,6
543,Community and Housing,REDACTED PERSONAL DATA,876591,13-Sep-22,1412.4,0,124097,Older People Placements - East,DIRECT PAYMENTS,R,2022,6
544,Community and Housing,UNITED RESPONSE,883808,27-Sep-22,894.82,149.14,125227,Learning Disabilities Placemnt,321000              Social Community Care Supplies & Services - Adult,A,2022,6
545,Community and Housing,UNITED RESPONSE,883811,27-Sep-22,894.82,149.14,125227,Learning Disabilities Placemnt,321000              Social Community Care Supplies & Services - Adult,A,2022,6
546,Community and Housing,UNITED RESPONSE,883812,27-Sep-22,894.82,149.14,125227,Learning Disabilities Placemnt,321000              Social Community Care Supplies & Services - Adult,A,2022,6
547,Community and Housing,UNITED RESPONSE,883818,27-Sep-22,894.82,149.14,125227,Learning Disabilities Placemnt,321000              Social Community Care Supplies & Services - Adult,A,2022,6
548,Community and Housing,UNITED RESPONSE,883823,27-Sep-22,894.82,149.14,125227,Learning Disabilities Placemnt,321000              Social Community Care Supplies & Services - Adult,A,2022,6
549,Community and Housing,UNITED RESPONSE,883824,27-Sep-22,894.82,149.14,125227,Learning Disabilities Placemnt,321000              Social Community Care Supplies & Services - Adult,A,2022,6
550,Community and Housing,UNITED RESPONSE,885070,29-Sep-22,7605.02,1267.5,125227,Learning Disabilities Placemnt,321000              Social Community Care Supplies & Services - Adult,A,2022,6
551,Community and Housing,UNITED RESPONSE,885107,29-Sep-22,7605.02,1267.5,125227,Learning Disabilities Placemnt,321000              Social Community Care Supplies & Services - Adult,A,2022,6
552,Community and Housing,UNITED RESPONSE,885122,29-Sep-22,7605.02,1267.5,125227,Learning Disabilities Placemnt,321000              Social Community Care Supplies & Services - Adult,A,2022,6
553,Community and Housing,UNITED RESPONSE,885181,29-Sep-22,7605.02,1267.5,125227,Learning Disabilities Placemnt,321000              Social Community Care Supplies & Services - Adult,A,2022,6
554,Community and Housing,UNITED RESPONSE,885219,29-Sep-22,7605.02,1267.5,125227,Learning Disabilities Placemnt,321000              Social Community Care Supplies & Services - Adult,A,2022,6
555,Community and Housing,UNITED RESPONSE,885333,29-Sep-22,7605.02,1267.5,125227,Learning Disabilities Placemnt,321000              Social Community Care Supplies & Services - Adult,A,2022,6
556,Community and Housing,REDACTED PERSONAL DATA,876667,13-Sep-22,1336.44,0,125642,Phys/Sens Placements - East,DIRECT PAYMENTS,R,2022,6
557,Community and Housing,REDACTED PERSONAL DATA,876738,13-Sep-22,890.96,0,126189,Older People Placements - East,DIRECT PAYMENTS,R,2022,6
558,Community and Housing,KELSTONE COURT NURSING HOME,881051,16-Sep-22,1071.43,0,126473,Older People Placements - East,321017              Nursing & Residential Care Homes,A,2022,6
559,Community and Housing,KELSTONE COURT NURSING HOME,881053,16-Sep-22,1928.57,0,126473,Older People Placements - East,321017              Nursing & Residential Care Homes,A,2022,6
560,Community and Housing,KELSTONE COURT NURSING HOME,883850,28-Sep-22,1178.57,0,126473,Older People Placements - East,321017              Nursing & Residential Care Homes,A,2022,6
561,Community and Housing,KELSTONE COURT NURSING HOME,883851,28-Sep-22,1668.57,0,126473,Older People Placements - East,321017              Nursing & Residential Care Homes,A,2022,6
562,Community and Housing,KELSTONE COURT NURSING HOME,883852,28-Sep-22,938.57,0,126473,Older People Placements - East,321017              Nursing & Residential Care Homes,A,2022,6
563,Community and Housing,KELSTONE COURT NURSING HOME,883853,28-Sep-22,8035.72,0,126473,Older People Placements - East,321017              Nursing & Residential Care Homes,A,2022,6
564,Community and Housing,KELSTONE COURT NURSING HOME,885032,29-Sep-22,2920,0,126473,Older People Placements - East,321017              Nursing & Residential Care Homes,A,2022,6
565,Community and Housing,KELSTONE COURT NURSING HOME,885055,29-Sep-22,3000,0,126473,Older People Placements - East,321017              Nursing & Residential Care Homes,A,2022,6
566,Community and Housing,KELSTONE COURT NURSING HOME,885131,29-Sep-22,3000,0,126473,Older People Placements - East,321017              Nursing & Residential Care Homes,A,2022,6
567,Community and Housing,KELSTONE COURT NURSING HOME,885148,29-Sep-22,2920,0,126473,Older People Placements - East,321017              Nursing & Residential Care Homes,A,2022,6
568,Community and Housing,KELSTONE COURT NURSING HOME,885149,29-Sep-22,2678.57,0,126473,Older People Placements - East,321017              Nursing & Residential Care Homes,A,2022,6
569,Community and Housing,KELSTONE COURT NURSING HOME,885153,29-Sep-22,2920,0,126473,Older People Placements - East,321017              Nursing & Residential Care Homes,A,2022,6
570,Community and Housing,KELSTONE COURT NURSING HOME,885163,29-Sep-22,2785.71,0,126473,Older People Placements - East,321017              Nursing & Residential Care Homes,A,2022,6
571,Community and Housing,KELSTONE COURT NURSING HOME,885230,29-Sep-22,2920,0,126473,Older People Placements - East,321017              Nursing & Residential Care Homes,A,2022,6
572,Community and Housing,KELSTONE COURT NURSING HOME,885269,29-Sep-22,2920,0,126473,Older People Placements - East,321017              Nursing & Residential Care Homes,A,2022,6
573,Community and Housing,KELSTONE COURT NURSING HOME,885271,29-Sep-22,2920,0,126473,Older People Placements - East,321017              Nursing & Residential Care Homes,A,2022,6
574,Community and Housing,KELSTONE COURT NURSING HOME,885304,29-Sep-22,2944.32,0,126473,Older People Placements - East,321017              Nursing & Residential Care Homes,A,2022,6
575,Community and Housing,KELSTONE COURT NURSING HOME,885310,29-Sep-22,3000,0,126473,Older People Placements - East,321017              Nursing & Residential Care Homes,A,2022,6
576,Community and Housing,KELSTONE COURT NURSING HOME,885350,29-Sep-22,2920,0,126473,Older People Placements - East,321017              Nursing & Residential Care Homes,A,2022,6
577,Community and Housing,KELSTONE COURT NURSING HOME,885389,29-Sep-22,2920,0,126473,Older People Placements - East,321017              Nursing & Residential Care Homes,A,2022,6
578,Community and Housing,KELSTONE COURT NURSING HOME,885391,29-Sep-22,3000,0,126473,Older People Placements - East,321017              Nursing & Residential Care Homes,A,2022,6
579,Community and Housing,KELSTONE COURT NURSING HOME,885400,29-Sep-22,3000,0,126473,Older People Placements - East,321017              Nursing & Residential Care Homes,A,2022,6
580,Community and Housing,KELSTONE COURT NURSING HOME,885402,29-Sep-22,2920,0,126473,Older People Placements - East,321017              Nursing & Residential Care Homes,A,2022,6
581,Community and Housing,KELSTONE COURT NURSING HOME,885405,29-Sep-22,2920,0,126473,Older People Placements - East,321017              Nursing & Residential Care Homes,A,2022,6
582,Community and Housing,KELSTONE COURT NURSING HOME,885453,29-Sep-22,2920,0,126473,Older People Placements - East,321017              Nursing & Residential Care Homes,A,2022,6
583,Capital,TRAFFICWATCH (UK) LTD.,3008,30-Sep-22,1920,320,127163,Cycle Route Improvements,"390000              Works - Construction, Repair & Maintenance",A,2022,6
584,Community and Housing,REDACTED PERSONAL DATA,876466,13-Sep-22,668.24,0,127266,Phys/Sens Placements - East,DIRECT PAYMENTS,R,2022,6
585,Environment and Regeneration,TRL LIMITED,11616581,13-Sep-22,630.28,105.05,128700,Environmental Health-Pollution,180000              Environmental Services,A,2022,6
586,Environment and Regeneration,TRL LIMITED,11616582,28-Sep-22,1285.2,214.2,128700,LBR - Pollution,180000              Environmental Services,A,2022,6
587,Environment and Regeneration,TRL LIMITED,11616583,28-Sep-22,4345.04,724.17,128700,Wandsworth Air Quality,180000              Environmental Services,A,2022,6
588,Environment and Regeneration,TRL LIMITED,11616693,28-Sep-22,630.28,105.05,128700,Environmental Health-Pollution,180000              Environmental Services,A,2022,6
589,Environment and Regeneration,TRL LIMITED,11616694,28-Sep-22,1285.2,214.2,128700,LBR - Pollution,180000              Environmental Services,A,2022,6
590,Environment and Regeneration,TRL LIMITED,11616695,28-Sep-22,4345.04,724.17,128700,Wandsworth Air Quality,180000              Environmental Services,A,2022,6
591,Community and Housing,BUPA CARE HOMES,885022,28-Sep-22,36805.34,0,130491,Phys/Sens Placements - East,321017              Nursing & Residential Care Homes,A,2022,6
592,Community and Housing,BUPA CARE HOMES,885023,28-Sep-22,2217.94,0,130491,Phys/Sens Placements - East,321017              Nursing & Residential Care Homes,A,2022,6
593,Community and Housing,BUPA CARE HOMES,885069,29-Sep-22,6133.76,0,130491,Phys/Sens Placements - East,321017              Nursing & Residential Care Homes,A,2022,6
594,"Children, Schools and Family",OAKTREE PRE-SCHOOL NURSERY,P2 22 UPFRONTPAY,07-Sep-22,13003.2,0,131726,EARLY YEARS NURSERY GRANTS,170000              Education,A,2022,6
595,Corporate Services,DOMINO 4 LIMITED,D.44228,22-Sep-22,4785,797.5,132991,Marketing & Communication,190000              Facilities & Management Services                                                          Confirmed,A,2022,6
596,"Children, Schools and Family",NGA,102461,30-Sep-22,2205,0,133206, Governor Support,260000              Human Resources,A,2022,6
597,Community and Housing,VOYAGE CARE LTD,885019,28-Sep-22,2539.68,0,133700,Learning Disabilities Placemnt,321017              Nursing & Residential Care Homes,A,2022,6
598,Community and Housing,VOYAGE CARE LTD,885146,29-Sep-22,6393.92,0,133700,Learning Disabilities Placemnt,321017              Nursing & Residential Care Homes,A,2022,6
599,Community and Housing,VOYAGE CARE LTD,885248,29-Sep-22,7597.76,0,133700,Learning Disabilities Placemnt,321017              Nursing & Residential Care Homes,A,2022,6
600,Community and Housing,VOYAGE CARE LTD,885331,29-Sep-22,7246.76,0,133700,Learning Disabilities Placemnt,321017              Nursing & Residential Care Homes,A,2022,6
601,Unassigned,RED KITE CONSERVATION SERVICES,RK1138,26-Sep-22,5148,858,134026,Mitcham Common Conservators,"390000              Works - Construction, Repair & Maintenance",A,2022,6
602,Community and Housing,HOMECARE SERVICES LTD,28184,06-Sep-22,4454.8,0,134594,Phys/Sens Placements - East,321100              Social Community Care Supplies & Services - Children,A,2022,6
603,Community and Housing,Sunrise Rehabilitation Centre,880848,16-Sep-22,13293.64,0,135093,Learning Disabilities Placemnt,321017              Nursing & Residential Care Homes,A,2022,6
604,Community and Housing,Sunrise Rehabilitation Centre,885062,29-Sep-22,4923.4,0,135093,Learning Disabilities Placemnt,321017              Nursing & Residential Care Homes,A,2022,6
605,Community and Housing,Sunrise Rehabilitation Centre,885087,29-Sep-22,4923.4,0,135093,Learning Disabilities Placemnt,321017              Nursing & Residential Care Homes,A,2022,6
606,Community and Housing,Sunrise Rehabilitation Centre,885243,29-Sep-22,4873.96,0,135093,Learning Disabilities Placemnt,321017              Nursing & Residential Care Homes,A,2022,6
607,Community and Housing,Sunrise Rehabilitation Centre,885366,29-Sep-22,4762.72,0,135093,Learning Disabilities Placemnt,321017              Nursing & Residential Care Homes,A,2022,6
608,Community and Housing,Sunrise Rehabilitation Centre,885370,29-Sep-22,4886.32,0,135093,Learning Disabilities Placemnt,321017              Nursing & Residential Care Homes,A,2022,6
609,Community and Housing,Sunrise Rehabilitation Centre,885388,29-Sep-22,4923.4,0,135093,Learning Disabilities Placemnt,321017              Nursing & Residential Care Homes,A,2022,6
610,Community and Housing,Sunrise Rehabilitation Centre,885439,29-Sep-22,6102,0,135093,Learning Disabilities Placemnt,321017              Nursing & Residential Care Homes,A,2022,6
611,Community and Housing,Sunrise Rehabilitation Centre,885455,29-Sep-22,4120,0,135093,Learning Disabilities Placemnt,321017              Nursing & Residential Care Homes,A,2022,6
612,Community and Housing,SW LONDON ST GEORGES NHS TRUST,P0070331-SC,23-Sep-22,11113.6,0,135195,Mental Health Placements,310000              Healthcare,A,2022,6
613,Community and Housing,SW LONDON ST GEORGES NHS TRUST,P0070331-JDC,23-Sep-22,11113.6,0,135195,Mental Health Placements,310000              Healthcare,A,2022,6
614,Community and Housing,SW LONDON ST GEORGES NHS TRUST,P0070331-PAJ,23-Sep-22,11113.6,0,135195,Mental Health Placements,310000              Healthcare,A,2022,6
615,Community and Housing,SW LONDON ST GEORGES NHS TRUST,P0070331-MM,23-Sep-22,11113.6,0,135195,Mental Health Placements,310000              Healthcare,A,2022,6
616,Community and Housing,SW LONDON ST GEORGES NHS TRUST,P0070331-MR,23-Sep-22,11113.6,0,135195,Mental Health Placements,310000              Healthcare,A,2022,6
617,Community and Housing,SW LONDON ST GEORGES NHS TRUST,P0070331-LZ,23-Sep-22,11113.6,0,135195,Mental Health Placements,310000              Healthcare,A,2022,6
618,Community and Housing,SW LONDON ST GEORGES NHS TRUST,P0070332,23-Sep-22,21151.84,0,135195,Learning Disabilities Placemnt,310000              Healthcare,A,2022,6
619,Community and Housing,MERTON VISION,INV1902,07-Sep-22,5864.81,0,135428,Physical/Sensory Contracts,260000              Human Resources,A,2022,6
620,Community and Housing,MERTON VISION,INV1906,23-Sep-22,5864.81,0,135428,Physical/Sensory Contracts,260000              Human Resources,A,2022,6
621,Corporate Services,Lbox Communications (Beta Dist.South),328928,03-Oct-22,3964.27,660.71,135590,Printing,190000              Facilities & Management Services,A,2022,6
622,Community and Housing,REDACTED PERSONAL DATA,876881,13-Sep-22,1275.96,0,135784,Phys/Sens Placements - East,DIRECT PAYMENTS,R,2022,6
623,"Children, Schools and Family",REDACTED PERSONAL DATA,876377,12-Sep-22,554.92,0,135795,Fostering Recruit/Assessment,321100              Social Community Care Supplies & Services - Children,R,2022,6
624,"Children, Schools and Family",REDACTED PERSONAL DATA,883701,26-Sep-22,554.92,0,135795,Fostering Recruit/Assessment,321100              Social Community Care Supplies & Services - Children,R,2022,6
625,"Children, Schools and Family",Bright Horizons - Raynes Park,P2 22 UPFRONTPAY,07-Sep-22,22076.54,0,136040,EARLY YEARS NURSERY GRANTS,170000              Education,A,2022,6
626,Unassigned,ZURICH INSURANCE GROUP,QLA-01E223SEP22,21-Sep-22,100000,0,137315,Corporate Services,200000              Financial Services,A,2022,6
627,Unassigned,LB Wandsworth Pension Fund Account,INTERFUND02,23-Sep-22,1628.79,0,137418,London Borough of Merton,PENSIONS,A,2022,6
628,Community and Housing,REDACTED PERSONAL DATA,877252,13-Sep-22,1463.72,0,137843,Phys/Sens Placements - East,DIRECT PAYMENTS,R,2022,6
629,Community and Housing,REDACTED PERSONAL DATA,876515,13-Sep-22,1078,0,139365,Phys/Sens Placements - East,DIRECT PAYMENTS,R,2022,6
630,Community and Housing,REDACTED PERSONAL DATA,877149,13-Sep-22,509.12,0,140662,Phys/Sens Placements - East,DIRECT PAYMENTS,R,2022,6
631,Community and Housing,REDACTED PERSONAL DATA,876850,13-Sep-22,4263.88,0,140759,Phys/Sens Placements - East,DIRECT PAYMENTS,R,2022,6
632,Community and Housing,REDACTED PERSONAL DATA,876942,13-Sep-22,792.32,0,140759,Phys/Sens Placements - East,DIRECT PAYMENTS,R,2022,6
633,Community and Housing,SURREY AND BORDERS PARTNERSHIP,885210,29-Sep-22,11448.72,0,140911,Learning Disabilities Placemnt,321017              Nursing & Residential Care Homes,A,2022,6
634,Environment and Regeneration,KELTIC CLOTHING LTD,171009,29-Sep-22,956.22,159.37,141131,Civil Enforcement Officers,140000              Clothing,A,2022,6
635,Community and Housing,GARWOOD FOUNDATION,885093,29-Sep-22,2755.48,0,142358,Phys/Sens Placements - East,321017              Nursing & Residential Care Homes,A,2022,6
636,Community and Housing,GARWOOD FOUNDATION,885198,29-Sep-22,2755.48,0,142358,Older People Placements - East,321017              Nursing & Residential Care Homes,A,2022,6
637,Community and Housing,CHHG LTD T/A GRETTON HOMES,885411,29-Sep-22,7961.72,0,142442,Learning Disabilities Placemnt,321017              Nursing & Residential Care Homes,A,2022,6
638,Community and Housing,EVERGREEN PARTNERSHIP,885140,29-Sep-22,11775,0,142455,Learning Disabilities Placemnt,321017              Nursing & Residential Care Homes,A,2022,6
639,Community and Housing,EVERGREEN PARTNERSHIP,885158,29-Sep-22,6629.16,0,142455,Learning Disabilities Placemnt,321017              Nursing & Residential Care Homes,A,2022,6
640,Community and Housing,REDACTED PERSONAL DATA,880149,16-Sep-22,1052.08,0,143597,MH Housing Support Placements,321000              Social Community Care Supplies & Services - Adult,R,2022,6
641,Community and Housing,REDACTED PERSONAL DATA,880166,16-Sep-22,1315.04,0,143597,LD Housing Support Placements,321000              Social Community Care Supplies & Services - Adult,R,2022,6
642,Community and Housing,REDACTED PERSONAL DATA,880185,16-Sep-22,1462.32,0,143597,Learning Disabilities Placemnt,321000              Social Community Care Supplies & Services - Adult,R,2022,6
643,Corporate Services,REDACTED PERSONAL DATA,JR177,13-Sep-22,786,0,143840,Translation Service,TRANSLATIONS,R,2022,6
644,Community and Housing,REDACTED PERSONAL DATA,876835,13-Sep-22,3731.72,0,144689,Learning Disabilities Placemnt,DIRECT PAYMENTS,R,2022,6
645,"Children, Schools and Family",DF20 LTD,4388600,26-Sep-22,15968.4,2661.4,144747,School Meals,110000              Catering,A,2022,6
646,Community and Housing,CRAEGMOOR FACILITIES - WINDSOR,885193,29-Sep-22,6834.88,0,145152,Learning Disabilities Placemnt,321017              Nursing & Residential Care Homes,A,2022,6
647,"Children, Schools and Family",DATE VALLEY SCHOOL,P2 22 UPFRONTPAY,07-Sep-22,33288.19,0,145171,EARLY YEARS NURSERY GRANTS,170000              Education,A,2022,6
648,Community and Housing,REDACTED PERSONAL DATA,877025,13-Sep-22,4454.8,0,145882,Learning Disabilities Placemnt,DIRECT PAYMENTS,R,2022,6
649,Corporate Services,SW LONDON LAW CENTRES,SP GRT OCT 22,28-Sep-22,28000,0,146262,VOLUNTARY SECTOR COORDINATION,200000              Financial Services,A,2022,6
650,"Children, Schools and Family",REDACTED PERSONAL DATA,P2 22 UPFRONTPAY,07-Sep-22,1935.36,0,146388,EARLY YEARS NURSERY GRANTS,200000              Financial Services,R,2022,6
651,"Children, Schools and Family",ACORN NURSERY,P2 22 UPFRONTPAY,07-Sep-22,8730.96,0,147406,EARLY YEARS NURSERY GRANTS,200000              Financial Services,A,2022,6
652,"Children, Schools and Family",SPEECH CENTRE,110437,12-Sep-22,727.99,121.33,147920, Childrens Short Breaks,270000              Information Communication Technology,A,2022,6
653,Community and Housing,GENERATE,9717,27-Sep-22,1050.6,0,148332,Learning Disabilities Placemnt,321000              Social Community Care Supplies & Services - Adult,A,2022,6
654,Community and Housing,GENERATE,9711,27-Sep-22,824,0,148332,Learning Disabilities Placemnt,321000              Social Community Care Supplies & Services - Adult,A,2022,6
655,Community and Housing,GENERATE,9710,27-Sep-22,909,0,148332,Learning Disabilities Placemnt,321000              Social Community Care Supplies & Services - Adult,A,2022,6
656,Community and Housing,CHICHESTER HALL CARE HOME LTD,885398,29-Sep-22,2637.2,0,148358,Older People Placements - East,321017              Nursing & Residential Care Homes,A,2022,6
657,"Children, Schools and Family",Dicky Birds Pre Sch. Nurseries Queens Rd,P2 22 UPFRONTPAY,07-Sep-22,28896,0,148567,EARLY YEARS NURSERY GRANTS,200000              Financial Services,A,2022,6
658,"Children, Schools and Family",MARIA MONTESSORI CHILDREN'S,P2 22 UPFRONTPAY,07-Sep-22,14266.37,0,148568,EARLY YEARS NURSERY GRANTS,200000              Financial Services,A,2022,6
659,"Children, Schools and Family",REDACTED PERSONAL DATA,P2 22 UPFRONTPAY,07-Sep-22,3870.72,0,149524,EARLY YEARS NURSERY GRANTS,321100              Social Community Care Supplies & Services - Children                                      Confirmed,R,2022,6
660,"Children, Schools and Family",DONHEAD SCHOOL,P2 22 UPFRONTPAY,07-Sep-22,19319.04,0,149760,EARLY YEARS NURSERY GRANTS,170000              Education,A,2022,6
661,"Children, Schools and Family",DONHEAD SCHOOL,MCBRIEN22-3,16-Sep-22,3387,0,149760,Non-Delegated Statements,170000              Education,A,2022,6
662,"Children, Schools and Family",DONHEAD SCHOOL,OGIONWO22-3,16-Sep-22,1935,0,149760,Non-Delegated Statements,170000              Education,A,2022,6
663,"Children, Schools and Family",DONHEAD SCHOOL,OLIVER22-3,16-Sep-22,2661,0,149760,Non-Delegated Statements,170000              Education,A,2022,6
664,Unassigned,Canterbury Campus,SCHOOLS 2223/6 A,06-Sep-22,289726.91,0,150054,Schools,170000              Education,A,2022,6
665,Unassigned,BARNETT WADDINGHAM LLP,T23/1361,13-Sep-22,600,100,150927,Governance & Oversight Cost,PENSIONS,A,2022,6
666,Unassigned,BARNETT WADDINGHAM LLP,T22/10155,23-Sep-22,12270,2045,150927,Governance & Oversight Cost,PENSIONS,A,2022,6
667,Community and Housing,REDACTED PERSONAL DATA,876812,13-Sep-22,2544.32,0,151002,Older People Placements - East,DIRECT PAYMENTS,R,2022,6
668,Community and Housing,AIMS CARE PARTNERSHIP,885144,29-Sep-22,10560,0,151592,Learning Disabilities Placemnt,321017              Nursing & Residential Care Homes,A,2022,6
669,Community and Housing,AIMS CARE PARTNERSHIP,885184,29-Sep-22,3114.72,0,151592,Learning Disabilities Placemnt,321017              Nursing & Residential Care Homes,A,2022,6
670,Community and Housing,REDACTED PERSONAL DATA,876813,13-Sep-22,2269.96,0,151790,Phys/Sens Placements - East,DIRECT PAYMENTS,R,2022,6
671,Community and Housing,HOLISTIC COMMUNITY CARE - FC,P12A,09-Sep-22,1300.32,0,151996,Older People Placements - East,321000              Social Community Care Supplies & Services - Adult,A,2022,6
672,Community and Housing,HOLISTIC COMMUNITY CARE - FC,P13A,09-Sep-22,1289.57,0,151996,Older People Placements - East,321000              Social Community Care Supplies & Services - Adult,A,2022,6
673,Community and Housing,HOLISTIC COMMUNITY CARE - FC,P10A,09-Sep-22,650.16,0,151996,Older People Placements - East,321000              Social Community Care Supplies & Services - Adult,A,2022,6
674,Community and Housing,HOLISTIC COMMUNITY CARE - FC,P11A,09-Sep-22,1300.32,0,151996,Older People Placements - East,321000              Social Community Care Supplies & Services - Adult,A,2022,6
675,Community and Housing,HOLISTIC COMMUNITY CARE - FC,P03A,12-Sep-22,1358.94,0,151996,Older People Placements - East,321000              Social Community Care Supplies & Services - Adult,A,2022,6
676,Community and Housing,HOLISTIC COMMUNITY CARE - FC,P02A,13-Sep-22,1339.74,0,151996,Older People Placements - East,321000              Social Community Care Supplies & Services - Adult,A,2022,6
677,Community and Housing,HOLISTIC COMMUNITY CARE - FC,3099,15-Sep-22,5080,0,151996,Older People Placements - East,321000              Social Community Care Supplies & Services - Adult,A,2022,6
678,Community and Housing,HOLISTIC COMMUNITY CARE - FC,3098,15-Sep-22,4454.8,0,151996,Learning Disabilities Placemnt,321000              Social Community Care Supplies & Services - Adult,A,2022,6
679,Community and Housing,HOLISTIC COMMUNITY CARE - FC,3097,15-Sep-22,1006.51,0,151996,Older People Placements - East,321000              Social Community Care Supplies & Services - Adult,A,2022,6
680,Community and Housing,HOLISTIC COMMUNITY CARE - FC,P01A,20-Sep-22,1334.09,0,151996,Older People Placements - East,321000              Social Community Care Supplies & Services - Adult,A,2022,6
681,Community and Housing,HOLISTIC COMMUNITY CARE - FC,M222306/7,20-Sep-22,1068.2,0,151996,Older People Placements - East,321000              Social Community Care Supplies & Services - Adult,A,2022,6
682,Community and Housing,HOLISTIC COMMUNITY CARE - FC,M222306/32,20-Sep-22,625.71,0,151996,Older People Placements - East,321000              Social Community Care Supplies & Services - Adult,A,2022,6
683,Community and Housing,HOLISTIC COMMUNITY CARE - FC,M222306/10,20-Sep-22,627.03,0,151996,Older People Placements - East,321000              Social Community Care Supplies & Services - Adult,A,2022,6
684,Community and Housing,HOLISTIC COMMUNITY CARE - FC,M222306/2,20-Sep-22,2979.86,0,151996,Older People Placements - East,321000              Social Community Care Supplies & Services - Adult,A,2022,6
685,Community and Housing,HOLISTIC COMMUNITY CARE - FC,M222306/22,20-Sep-22,1367.42,0,151996,Older People Placements - East,321000              Social Community Care Supplies & Services - Adult,A,2022,6
686,Community and Housing,HOLISTIC COMMUNITY CARE - FC,M222306/4,20-Sep-22,2119.12,0,151996,Older People Placements - East,321000              Social Community Care Supplies & Services - Adult,A,2022,6
687,Community and Housing,HOLISTIC COMMUNITY CARE - FC,M222306/21,20-Sep-22,2767.25,0,151996,Older People Placements - East,321000              Social Community Care Supplies & Services - Adult,A,2022,6
688,Community and Housing,HOLISTIC COMMUNITY CARE - FC,M222306/9,20-Sep-22,747.04,0,151996,Older People Placements - East,321000              Social Community Care Supplies & Services - Adult,A,2022,6
689,Community and Housing,HOLISTIC COMMUNITY CARE - FC,M222306/15,20-Sep-22,846.48,0,151996,Older People Placements - East,321000              Social Community Care Supplies & Services - Adult,A,2022,6
690,Community and Housing,HOLISTIC COMMUNITY CARE - FC,M222306/16,20-Sep-22,1374.19,0,151996,Older People Placements - East,321000              Social Community Care Supplies & Services - Adult,A,2022,6
691,Community and Housing,HOLISTIC COMMUNITY CARE - FC,M222306/25,20-Sep-22,716.75,0,151996,Older People Placements - East,321000              Social Community Care Supplies & Services - Adult,A,2022,6
692,Community and Housing,HOLISTIC COMMUNITY CARE - FC,M222306/34,20-Sep-22,1138.86,0,151996,Older People Placements - East,321000              Social Community Care Supplies & Services - Adult,A,2022,6
693,Community and Housing,HOLISTIC COMMUNITY CARE - FC,M222306/6,20-Sep-22,1758.54,0,151996,Older People Placements - East,321000              Social Community Care Supplies & Services - Adult,A,2022,6
694,Community and Housing,HOLISTIC COMMUNITY CARE - FC,M222306/29,20-Sep-22,747.04,0,151996,Older People Placements - East,321000              Social Community Care Supplies & Services - Adult,A,2022,6
695,Community and Housing,REDACTED PERSONAL DATA,877327,13-Sep-22,7434,0,152015,Older People Placements - East,321000              Social Community Care Supplies & Services - Adult,R,2022,6
696,Corporate Services,WANDSWORTH CORPORATION,WC376792128M05D,14-Sep-22,803.75,0,152180,SLLP Client Income,OLA,A,2022,6
697,Community and Housing,REDACTED PERSONAL DATA,877182,13-Sep-22,954.6,0,152709,Older People Placements - East,DIRECT PAYMENTS,R,2022,6
698,Community and Housing,REDACTED PERSONAL DATA,876763,13-Sep-22,1587.84,0,152990,Learning Disabilities Placemnt,DIRECT PAYMENTS,R,2022,6
699,Community and Housing,LYNTON HALL NURSING HOME,885016,03-Oct-22,672.96,0,153795,Older People Placements - East,321017              Nursing & Residential Care Homes,A,2022,6
700,Community and Housing,LYNTON HALL NURSING HOME,885017,03-Oct-22,698.64,0,153795,Older People Placements - East,321017              Nursing & Residential Care Homes,A,2022,6
701,Community and Housing,LYNTON HALL NURSING HOME,885040,03-Oct-22,3102.04,0,153795,Older People Placements - East,321017              Nursing & Residential Care Homes,A,2022,6
702,Community and Housing,LYNTON HALL NURSING HOME,885045,03-Oct-22,2988.48,0,153795,Older People Placements - East,321017              Nursing & Residential Care Homes,A,2022,6
703,Community and Housing,LYNTON HALL NURSING HOME,885217,03-Oct-22,3249.6,0,153795,Older People Placements - East,321017              Nursing & Residential Care Homes,A,2022,6
704,Community and Housing,REDACTED PERSONAL DATA,877077,13-Sep-22,614.16,0,155411,Learning Disabilities Placemnt,DIRECT PAYMENTS,R,2022,6
705,"Children, Schools and Family",BEDELSFORD SCHOOL,DI104104135,21-Sep-22,6081.33,0,156132,Non-Delegated Statements,170000              Education,A,2022,6
706,Community and Housing,REDACTED PERSONAL DATA,877135,13-Sep-22,9751.56,0,156181,Phys/Sens Placements - East,DIRECT PAYMENTS,R,2022,6
707,Community and Housing,MOAT HOUSING ASSOCIATION,HANNIBAL ZEREZGI,02-Sep-22,2500,0,157496,Homelessness Prevention,200000              Financial Services,A,2022,6
708,Community and Housing,REDACTED PERSONAL DATA,876705,13-Sep-22,979.36,0,159542,Phys/Sens Placements - East,DIRECT PAYMENTS,R,2022,6
709,Community and Housing,REDACTED PERSONAL DATA,877199,13-Sep-22,3220,0,160044,Phys/Sens Placements - East,DIRECT PAYMENTS,R,2022,6
710,Community and Housing,METROPOLITAN THAMES VALLEY,3058606SM,13-Sep-22,2171,0,160080,Learning Disabilities Placemnt,321017              Nursing & Residential Care Homes,A,2022,6
711,Community and Housing,METROPOLITAN THAMES VALLEY,3058606LD,13-Sep-22,2171,0,160080,Learning Disabilities Placemnt,321017              Nursing & Residential Care Homes,A,2022,6
712,Community and Housing,METROPOLITAN THAMES VALLEY,3058605SC,13-Sep-22,2171,0,160080,Learning Disabilities Placemnt,321017              Nursing & Residential Care Homes,A,2022,6
713,Community and Housing,METROPOLITAN THAMES VALLEY,3058605GB,13-Sep-22,2171,0,160080,Learning Disabilities Placemnt,321017              Nursing & Residential Care Homes,A,2022,6
714,Community and Housing,METROPOLITAN THAMES VALLEY,3058360SM,13-Sep-22,2171,0,160080,Learning Disabilities Placemnt,321017              Nursing & Residential Care Homes,A,2022,6
715,Community and Housing,METROPOLITAN THAMES VALLEY,3058360LD,13-Sep-22,2171,0,160080,Learning Disabilities Placemnt,321017              Nursing & Residential Care Homes,A,2022,6
716,Community and Housing,METROPOLITAN THAMES VALLEY,3058360SC,13-Sep-22,2171,0,160080,Learning Disabilities Placemnt,321017              Nursing & Residential Care Homes,A,2022,6
717,Community and Housing,METROPOLITAN THAMES VALLEY,3058360GB,13-Sep-22,2171,0,160080,Learning Disabilities Placemnt,321017              Nursing & Residential Care Homes,A,2022,6
718,Community and Housing,METROPOLITAN THAMES VALLEY,3057763SM,13-Sep-22,2171,0,160080,Learning Disabilities Placemnt,321017              Nursing & Residential Care Homes,A,2022,6
719,Community and Housing,METROPOLITAN THAMES VALLEY,3057763LD,13-Sep-22,2171,0,160080,Learning Disabilities Placemnt,321017              Nursing & Residential Care Homes,A,2022,6
720,Community and Housing,METROPOLITAN THAMES VALLEY,3057763SC,13-Sep-22,2171,0,160080,Learning Disabilities Placemnt,321017              Nursing & Residential Care Homes,A,2022,6
721,Community and Housing,METROPOLITAN THAMES VALLEY,3057763GB,13-Sep-22,2171,0,160080,Learning Disabilities Placemnt,321017              Nursing & Residential Care Homes,A,2022,6
722,Community and Housing,METROPOLITAN THAMES VALLEY,3058359SM,13-Sep-22,2171,0,160080,Learning Disabilities Placemnt,321017              Nursing & Residential Care Homes,A,2022,6
723,Community and Housing,METROPOLITAN THAMES VALLEY,3058359LD,13-Sep-22,2171,0,160080,Learning Disabilities Placemnt,321017              Nursing & Residential Care Homes,A,2022,6
724,Community and Housing,METROPOLITAN THAMES VALLEY,3058359SC,13-Sep-22,2171,0,160080,Learning Disabilities Placemnt,321017              Nursing & Residential Care Homes,A,2022,6
725,Community and Housing,METROPOLITAN THAMES VALLEY,3058359GB,13-Sep-22,2171,0,160080,Learning Disabilities Placemnt,321017              Nursing & Residential Care Homes,A,2022,6
726,"Children, Schools and Family",REDACTED PERSONAL DATA,877556,13-Sep-22,1104.88,0,160147,Child Disabilities - Placement,CSF-DIRECT PAYMENTS,R,2022,6
727,Community and Housing,REDACTED PERSONAL DATA,876999,13-Sep-22,1272.8,0,160244,Phys/Sens Placements - East,DIRECT PAYMENTS,R,2022,6
728,Community and Housing,REDACTED PERSONAL DATA,877001,13-Sep-22,604.6,0,160273,Learning Disabilities Placemnt,DIRECT PAYMENTS,R,2022,6
729,Community and Housing,REDACTED PERSONAL DATA,876803,13-Sep-22,1018.24,0,160279,Phys/Sens Placements - East,DIRECT PAYMENTS,R,2022,6
730,"Children, Schools and Family",THE NATIONAL FOSTERING AGENCY,404836,22-Sep-22,5703.38,0,160464,Placements Under 18,321100              Social Community Care Supplies & Services - Children,A,2022,6
731,"Children, Schools and Family",THE NATIONAL FOSTERING AGENCY,404838,22-Sep-22,5703.38,0,160464,Placements Under 18,321100              Social Community Care Supplies & Services - Children,A,2022,6
732,"Children, Schools and Family",THE NATIONAL FOSTERING AGENCY,404835,22-Sep-22,3520.67,0,160464,Placements Under 18,321100              Social Community Care Supplies & Services - Children,A,2022,6
733,Environment and Regeneration,BRITISH GAS BUSINESS,967843987,30-Sep-22,714.58,34.02,160497,LBM Shops,370000              Utilities,A,2022,6
734,Capital,THORLUX LIGHTING,2303876,03-Oct-22,5391.36,898.56,160595,Works to other buildings,190000              Facilities & Management Services,A,2022,6
735,Community and Housing,WILLOW LODGE NURSING HOME,885232,29-Sep-22,13365.44,0,160658,Older People Placements - East,321017              Nursing & Residential Care Homes,A,2022,6
736,Corporate Services,LEXON LTD,134262,20-Sep-22,2108.7,0,160704,Printing,190000              Facilities & Management Services,A,2022,6
737,Community and Housing,REDACTED PERSONAL DATA,877317,13-Sep-22,540.96,0,160909,Older People Placements - East,DIRECT PAYMENTS,R,2022,6
738,"Children, Schools and Family",REDACTED PERSONAL DATA,874958,02-Sep-22,514.75,0,161094,Placements Under 18,321100              Social Community Care Supplies & Services - Children,R,2022,6
739,"Children, Schools and Family",REDACTED PERSONAL DATA,876017,09-Sep-22,514.75,0,161094,Placements Under 18,321100              Social Community Care Supplies & Services - Children,R,2022,6
740,"Children, Schools and Family",REDACTED PERSONAL DATA,880906,16-Sep-22,514.75,0,161094,Placements Under 18,321100              Social Community Care Supplies & Services - Children,R,2022,6
741,"Children, Schools and Family",REDACTED PERSONAL DATA,883244,23-Sep-22,514.75,0,161094,Placements Under 18,321100              Social Community Care Supplies & Services - Children,R,2022,6
742,"Children, Schools and Family",REDACTED PERSONAL DATA,886506,30-Sep-22,514.75,0,161094,Placements Under 18,321100              Social Community Care Supplies & Services - Children,R,2022,6
743,Corporate Services,REDACTED PERSONAL DATA,INVJG472,29-Sep-22,3642,607,162291,SLLP - Disbursements,280000              Legal Services                                                                            Confirmed,R,2022,6
744,Environment and Regeneration,KAT TRANSPORT LTD,61,21-Sep-22,2160,360,162381,Passenger Transport,360000              Passenger Transport,A,2022,6
745,Environment and Regeneration,KAT TRANSPORT LTD,62,21-Sep-22,2160,360,162381,Passenger Transport,360000              Passenger Transport,A,2022,6
746,Environment and Regeneration,KAT TRANSPORT LTD,63,21-Sep-22,1482,247,162381,Passenger Transport,360000              Passenger Transport,A,2022,6
747,Environment and Regeneration,KAT TRANSPORT LTD,66,21-Sep-22,888,148,162381,Passenger Transport,360000              Passenger Transport,A,2022,6
748,Environment and Regeneration,KAT TRANSPORT LTD,64,21-Sep-22,1320,220,162381,Passenger Transport,360000              Passenger Transport,A,2022,6
749,Environment and Regeneration,KAT TRANSPORT LTD,65,21-Sep-22,1680,280,162381,Passenger Transport,360000              Passenger Transport,A,2022,6
750,Environment and Regeneration,QUARTIX  LTD,659383,26-Sep-22,1053,175.5,162608,Civil Enforcement Officers,270000              Information Communication Technology,A,2022,6
751,Corporate Services,DATA INTERCHANGE PLC,UKSI102726,23-Sep-22,963.72,160.62,162623,Local Taxation Bailiffs,270000              Information Communication Technology,A,2022,6
752,"Children, Schools and Family",ELKLAN TRAINING LTD,INV7408,20-Sep-22,612,102,162625,Language & Learning Service,170000              Education,A,2022,6
753,"Children, Schools and Family",ELKLAN TRAINING LTD,INV-7303,29-Sep-22,528,0,162625,Language & Learning Service,170000              Education,A,2022,6
754,Community and Housing,REDACTED PERSONAL DATA,876587,13-Sep-22,1562.56,0,163392,Learning Disabilities Placemnt,DIRECT PAYMENTS,R,2022,6
755,"Children, Schools and Family",REDACTED PERSONAL DATA,874977,02-Sep-22,785.52,0,163471,Placements Under 18,200000              Financial Services,R,2022,6
756,"Children, Schools and Family",REDACTED PERSONAL DATA,874986,02-Sep-22,514.75,0,163471,Placements Under 18,200000              Financial Services,R,2022,6
757,"Children, Schools and Family",REDACTED PERSONAL DATA,876034,09-Sep-22,785.52,0,163471,Placements Under 18,200000              Financial Services,R,2022,6
758,"Children, Schools and Family",REDACTED PERSONAL DATA,876043,09-Sep-22,514.75,0,163471,Placements Under 18,200000              Financial Services,R,2022,6
759,"Children, Schools and Family",REDACTED PERSONAL DATA,880924,16-Sep-22,785.52,0,163471,Placements Under 18,200000              Financial Services,R,2022,6
760,"Children, Schools and Family",REDACTED PERSONAL DATA,880933,16-Sep-22,514.75,0,163471,Placements Under 18,200000              Financial Services,R,2022,6
761,"Children, Schools and Family",REDACTED PERSONAL DATA,883189,23-Sep-22,997.5,0,163471,UASC LAC Under 18,200000              Financial Services,R,2022,6
762,"Children, Schools and Family",REDACTED PERSONAL DATA,883262,23-Sep-22,785.52,0,163471,Placements Under 18,200000              Financial Services,R,2022,6
763,"Children, Schools and Family",REDACTED PERSONAL DATA,883271,23-Sep-22,514.75,0,163471,Placements Under 18,200000              Financial Services,R,2022,6
764,"Children, Schools and Family",REDACTED PERSONAL DATA,886539,30-Sep-22,785.52,0,163471,Placements Under 18,200000              Financial Services,R,2022,6
765,"Children, Schools and Family",REDACTED PERSONAL DATA,886552,30-Sep-22,514.75,0,163471,Placements Under 18,200000              Financial Services,R,2022,6
766,"Children, Schools and Family",LA PETITE FLEUR PRE-SCHOOL,P2 22 UPFRONTPAY,07-Sep-22,13666.8,0,163698,EARLY YEARS NURSERY GRANTS,200000              Financial Services,A,2022,6
767,Community and Housing,Active Prospects,885071,29-Sep-22,6103.76,0,163859,Learning Disabilities Placemnt,321017              Nursing & Residential Care Homes,A,2022,6
768,Community and Housing,REDACTED PERSONAL DATA,877305,13-Sep-22,1129.64,0,163971,Phys/Sens Placements - East,DIRECT PAYMENTS,R,2022,6
769,Corporate Services,SME INVOICE FINANCE LTD,17555,26-Sep-22,597,99.5,164106,Legal Shared Service,260000              Human Resources,A,2022,6
770,"Children, Schools and Family",BUMBLE BEES'S DAY NURSERY-COCC,P2 22 UPFRONTPAY,07-Sep-22,20664,0,164240,EARLY YEARS NURSERY GRANTS,200000              Financial Services,A,2022,6
771,Corporate Services,ZURICH INSURANCE COMPANY,QLA-01E223-0643,15-Sep-22,230852.45,0,164284,Insurance Premiums & Funding,200000              Financial Services,A,2022,6
772,Corporate Services,ZURICH INSURANCE COMPANY,QLA01E223-0633,13-Sep-22,41148.35,0,164284,Insurance Premiums & Funding,200000              Financial Services,A,2022,6
773,Corporate Services,ZURICH INSURANCE COMPANY,QLA01E223-0223,15-Sep-22,291941.44,0,164284,Insurance Premiums & Funding,200000              Financial Services,A,2022,6
774,Corporate Services,ZURICH INSURANCE COMPANY,TP-01E223-0223,14-Sep-22,562.8,0,164284,Insurance Premiums & Funding,200000              Financial Services,A,2022,6
775,Corporate Services,ZURICH INSURANCE COMPANY,HB-01E223-0211,14-Sep-22,2560.81,0,164284,Insurance Premiums & Funding,200000              Financial Services,A,2022,6
776,Corporate Services,ZURICH INSURANCE COMPANY,EI01E223-0017,13-Sep-22,54787.58,9131.26,164284,Insurance Premiums & Funding,200000              Financial Services,A,2022,6
777,Corporate Services,ZURICH INSURANCE COMPANY,F-01E223-0321,14-Sep-22,9657.14,0,164284,Insurance Premiums & Funding,200000              Financial Services,A,2022,6
778,Corporate Services,ZURICH INSURANCE COMPANY,F-01E223-0201,14-Sep-22,62347.45,0,164284,Insurance Premiums & Funding,200000              Financial Services,A,2022,6
779,Corporate Services,CLIFFE ENTERPRISE LTD,21782,27-Sep-22,24294,4049,164341,Printing,190000              Facilities & Management Services,A,2022,6
780,"Children, Schools and Family",LONDON COUNCILS,4323617,09-Sep-22,8500,0,164343, Central Administration,OLA,A,2022,6
781,Community and Housing,ENTERPRISE CARE SUPPORT LTD,19345,01-Sep-22,966.59,0,164431,Older People Placements - East,321000              Social Community Care Supplies & Services - Adult,A,2022,6
782,Community and Housing,ENTERPRISE CARE SUPPORT LTD,19344,01-Sep-22,595.19,0,164431,Older People Placements - East,321000              Social Community Care Supplies & Services - Adult,A,2022,6
783,Community and Housing,ENTERPRISE CARE SUPPORT LTD,19343,01-Sep-22,747.04,0,164431,Older People Placements - East,321000              Social Community Care Supplies & Services - Adult,A,2022,6
784,Community and Housing,ENTERPRISE CARE SUPPORT LTD,19457,28-Sep-22,756.63,0,164431,Older People Placements - East,321000              Social Community Care Supplies & Services - Adult,A,2022,6
785,Community and Housing,ENTERPRISE CARE SUPPORT LTD,19471,28-Sep-22,1081.92,0,164431,Older People Placements - East,321000              Social Community Care Supplies & Services - Adult,A,2022,6
786,Community and Housing,ENTERPRISE CARE SUPPORT LTD,19470,28-Sep-22,756.63,0,164431,Older People Placements - East,321000              Social Community Care Supplies & Services - Adult,A,2022,6
787,Community and Housing,ENTERPRISE CARE SUPPORT LTD,19464,28-Sep-22,1081.92,0,164431,Older People Placements - East,321000              Social Community Care Supplies & Services - Adult,A,2022,6
788,Community and Housing,ENTERPRISE CARE SUPPORT LTD,19462,28-Sep-22,2163.84,0,164431,Older People Placements - East,321000              Social Community Care Supplies & Services - Adult,A,2022,6
789,Community and Housing,ENTERPRISE CARE SUPPORT LTD,19461,28-Sep-22,891.17,0,164431,Older People Placements - East,321000              Social Community Care Supplies & Services - Adult,A,2022,6
790,Community and Housing,ENTERPRISE CARE SUPPORT LTD,19460,28-Sep-22,544.94,0,164431,Older People Placements - East,321000              Social Community Care Supplies & Services - Adult,A,2022,6
791,Community and Housing,ENTERPRISE CARE SUPPORT LTD,19459,28-Sep-22,701.91,0,164431,Learning Disabilities Placemnt,321000              Social Community Care Supplies & Services - Adult,A,2022,6
792,Community and Housing,ENTERPRISE CARE SUPPORT LTD,19456,28-Sep-22,756.63,0,164431,Older People Placements - East,321000              Social Community Care Supplies & Services - Adult,A,2022,6
793,Community and Housing,ENTERPRISE CARE SUPPORT LTD,19453,28-Sep-22,688.29,0,164431,Older People Placements - East,321000              Social Community Care Supplies & Services - Adult,A,2022,6
794,Community and Housing,ENTERPRISE CARE SUPPORT LTD,19450,28-Sep-22,3238.08,0,164431,Older People Placements - East,321000              Social Community Care Supplies & Services - Adult,A,2022,6
795,Community and Housing,ENTERPRISE CARE SUPPORT LTD,19448,28-Sep-22,543.19,0,164431,Older People Placements - East,321000              Social Community Care Supplies & Services - Adult,A,2022,6
796,Community and Housing,ENTERPRISE CARE SUPPORT LTD,19447,28-Sep-22,2814.42,0,164431,Older People Placements - East,321000              Social Community Care Supplies & Services - Adult,A,2022,6
797,Community and Housing,ENTERPRISE CARE SUPPORT LTD,19446,28-Sep-22,3343.09,0,164431,Older People Placements - East,321000              Social Community Care Supplies & Services - Adult,A,2022,6
798,Community and Housing,ENTERPRISE CARE SUPPORT LTD,19467,30-Sep-22,2814.42,0,164431,Older People Placements - East,321000              Social Community Care Supplies & Services - Adult,A,2022,6
799,Community and Housing,ENTERPRISE CARE SUPPORT LTD,19452,30-Sep-22,756.63,0,164431,Older People Placements - East,321000              Social Community Care Supplies & Services - Adult,A,2022,6
800,Community and Housing,BUPA CARE SERVICES BACS RECEIP,885258,29-Sep-22,8538.76,0,164629,Older People Placements - East,321017              Nursing & Residential Care Homes,A,2022,6
801,Community and Housing,REDACTED PERSONAL DATA,877318,13-Sep-22,1272.8,0,164694,Phys/Sens Placements - East,DIRECT PAYMENTS,R,2022,6
802,"Children, Schools and Family",SYNERGY FOSTERING LTD,INV-3881,07-Sep-22,7944.68,0,165111,Placements Under 18,321100              Social Community Care Supplies & Services - Children,A,2022,6
803,Unassigned,MARSTON GROUP,62342,23-Sep-22,1846.84,0,165202,Corporate Accountancy,200000              Financial Services,A,2022,6
804,Community and Housing,REDACTED PERSONAL DATA,877187,13-Sep-22,1349.48,0,165602,Learning Disabilities Placemnt,DIRECT PAYMENTS,R,2022,6
805,Community and Housing,REDACTED PERSONAL DATA,876694,13-Sep-22,2228.4,0,165619,Phys/Sens Placements - East,DIRECT PAYMENTS,R,2022,6
806,Community and Housing,REDACTED PERSONAL DATA,876902,13-Sep-22,3538.2,0,165619,Phys/Sens Placements - East,DIRECT PAYMENTS,R,2022,6
807,Community and Housing,BUPA CARE HOMES (ANS) LTD,881044,16-Sep-22,28237.32,0,165704,Older People Placements - East,321017              Nursing & Residential Care Homes,A,2022,6
808,Community and Housing,BUPA CARE HOMES (ANS) LTD,885419,29-Sep-22,4749.4,0,165704,Older People Placements - East,321017              Nursing & Residential Care Homes,A,2022,6
809,Community and Housing,REDACTED PERSONAL DATA,877110,13-Sep-22,1032.8,0,165786,Older People Placements - East,DIRECT PAYMENTS,R,2022,6
810,Community and Housing,REDACTED PERSONAL DATA,877329,13-Sep-22,700.8,0,166085,Learning Disabilities Placemnt,DIRECT PAYMENTS,R,2022,6
811,Community and Housing,REDACTED PERSONAL DATA,877099,13-Sep-22,1588.64,0,166158,Phys/Sens Placements - East,DIRECT PAYMENTS,R,2022,6
812,Environment and Regeneration,COMPLETE ECOLOGY LTD,Jul-23,06-Sep-22,930,155,166208,Parks & Recreation Grounds,240000              Horticultural                                                                             Confirmed,A,2022,6
813,"Children, Schools and Family",REDACTED PERSONAL DATA,P2 22 UPFRONTPAY,07-Sep-22,3870.72,0,166244,EARLY YEARS NURSERY GRANTS,200000              Financial Services,R,2022,6
814,Community and Housing,REDACTED PERSONAL DATA,876625,13-Sep-22,1209.16,0,166547,Learning Disabilities Placemnt,DIRECT PAYMENTS,R,2022,6
815,"Children, Schools and Family",REDACTED PERSONAL DATA,874909,02-Sep-22,1295.53,0,166742,Placements Under 18,321100              Social Community Care Supplies & Services - Children,R,2022,6
816,"Children, Schools and Family",REDACTED PERSONAL DATA,875967,09-Sep-22,1295.53,0,166742,Placements Under 18,321100              Social Community Care Supplies & Services - Children,R,2022,6
817,"Children, Schools and Family",REDACTED PERSONAL DATA,880859,16-Sep-22,1295.53,0,166742,Placements Under 18,321100              Social Community Care Supplies & Services - Children,R,2022,6
818,"Children, Schools and Family",REDACTED PERSONAL DATA,883198,23-Sep-22,1295.53,0,166742,Placements Under 18,321100              Social Community Care Supplies & Services - Children,R,2022,6
819,"Children, Schools and Family",REDACTED PERSONAL DATA,886425,30-Sep-22,1295.53,0,166742,Placements Under 18,321100              Social Community Care Supplies & Services - Children,R,2022,6
820,"Children, Schools and Family",WIMBLEDON DAY NURSERY,P2 22 UPFRONTPAY,07-Sep-22,24272.64,0,167298,EARLY YEARS NURSERY GRANTS,170000              Education,A,2022,6
821,"Children, Schools and Family",REDACTED PERSONAL DATA,P2 22 UPFRONTPAY,07-Sep-22,967.68,0,167790,EARLY YEARS NURSERY GRANTS,200000              Financial Services,R,2022,6
822,"Children, Schools and Family",THE MOAT SCHOOL,P220915,06-Sep-22,12694,0,167981,Non-Delegated Statements,200000              Financial Services,A,2022,6
823,Corporate Services,REDACTED PERSONAL DATA,10191905,09-Sep-22,1998,333,168092,Chief Executive,280000              Legal Services,R,2022,6
824,Capital,CBS Adaptation Design,1658,14-Sep-22,985.87,134.98,168147,Disabled Facilities Grant,200000              Financial Services,A,2022,6
825,Capital,CBS Adaptation Design,1659,14-Sep-22,2394.22,311.54,168147,Disabled Facilities Grant,200000              Financial Services,A,2022,6
826,Capital,CBS Adaptation Design,1660,20-Sep-22,840,140,168147,Disabled Facilities Grant,200000              Financial Services,A,2022,6
827,Capital,CBS Adaptation Design,1662,29-Sep-22,917.52,102.42,168147,Disabled Facilities Grant,200000              Financial Services,A,2022,6
828,Capital,CBS Adaptation Design,1663,29-Sep-22,1628.5,183.92,168147,Disabled Facilities Grant,200000              Financial Services,A,2022,6
829,Capital,CBS Adaptation Design,1664,29-Sep-22,2506.26,330.21,168147,Disabled Facilities Grant,200000              Financial Services,A,2022,6
830,Capital,CBS Adaptation Design,1668,29-Sep-22,2560.15,338.69,168147,Disabled Facilities Grant,200000              Financial Services,A,2022,6
831,Corporate Services,LANGUAGE BANK,MTS-090822,01-Sep-22,951,158.5,168229,Translation Service,TRANSLATIONS,A,2022,6
832,Corporate Services,LANGUAGE BANK,MTS-100822,01-Sep-22,939,156.5,168229,Translation Service,TRANSLATIONS,A,2022,6
833,Corporate Services,LANGUAGE BANK,MTS230822,13-Sep-22,744,124,168229,Translation Service,TRANSLATIONS,A,2022,6
834,Corporate Services,LANGUAGE BANK,MTS-240822,13-Sep-22,795,132.5,168229,Translation Service,TRANSLATIONS,A,2022,6
835,Corporate Services,LANGUAGE BANK,MTS260822,13-Sep-22,681,113.5,168229,Translation Service,TRANSLATIONS,A,2022,6
836,Corporate Services,LANGUAGE BANK,MTS-010922,20-Sep-22,708,118,168229,Translation Service,TRANSLATIONS,A,2022,6
837,Corporate Services,LANGUAGE BANK,MTS-180822,20-Sep-22,855,142.5,168229,Translation Service,TRANSLATIONS,A,2022,6
838,Corporate Services,LANGUAGE BANK,MTS-160822,20-Sep-22,918,153,168229,Translation Service,TRANSLATIONS,A,2022,6
839,Corporate Services,LANGUAGE BANK,MTS-060922,27-Sep-22,849,141.5,168229,Translation Service,TRANSLATIONS,A,2022,6
840,Corporate Services,LANGUAGE BANK,MTS-090922,30-Sep-22,744,124,168229,Translation Service,TRANSLATIONS,A,2022,6
841,Community and Housing,REDACTED PERSONAL DATA,876732,13-Sep-22,572.76,0,168403,Learning Disabilities Placemnt,DIRECT PAYMENTS,R,2022,6
842,Corporate Services,FIRMSTEP,154386,30-Sep-22,30600,5100,168454,Business Systems,270000              Information Communication Technology,A,2022,6
843,"Children, Schools and Family",WILLOWS PRE SCHOOL,P2 22 UPFRONTPAY,13-Sep-22,14736.96,0,168752,EARLY YEARS NURSERY GRANTS,170000              Education,A,2022,6
844,Community and Housing,FITZROY SUPPORT,885104,29-Sep-22,6414.52,0,169400,Learning Disabilities Placemnt,321017              Nursing & Residential Care Homes,A,2022,6
845,"Children, Schools and Family",REDACTED PERSONAL DATA,877727,15-Sep-22,594,0,169403,CWD Placements,CSF-DIRECT PAYMENTS,R,2022,6
846,Capital,KC Services Group,38398,26-Sep-22,17100,2850,169420,Malmesbury,"390000              Works - Construction, Repair & Maintenance",A,2022,6
847,Capital,KC Services Group,38399,26-Sep-22,34200,5700,169420,Pelham,"390000              Works - Construction, Repair & Maintenance",A,2022,6
848,Community and Housing,SAFESPACES (CORNHOLME) LTD,SI00005910,23-Sep-22,9460.41,1576.74,169699,LD Fieldwork SW,410000              Social Community Care Supplies & Services                                                 Confirmed,A,2022,6
849,Corporate Services,REDACTED PERSONAL DATA,171155-4,20-Sep-22,1200,0,170002,SLLP - Disbursements,280000              Legal Services                                                                            Confirmed,R,2022,6
850,"Children, Schools and Family",JULIUS RUTHERFOORD AND CO LTD,INVS145468,12-Sep-22,1077.19,179.53,170092,Newminster CC Building Mgt,130000              Cleaning & Janitorial,A,2022,6
851,"Children, Schools and Family",JULIUS RUTHERFOORD AND CO LTD,INVS145422,12-Sep-22,857.51,142.92,170092,Ivy Garden CC Building,130000              Cleaning & Janitorial,A,2022,6
852,"Children, Schools and Family",JULIUS RUTHERFOORD AND CO LTD,INVS145289,12-Sep-22,734.34,122.39,170092,Church Road Building,130000              Cleaning & Janitorial,A,2022,6
853,"Children, Schools and Family",JULIUS RUTHERFOORD AND CO LTD,INVS145263,12-Sep-22,1155.05,192.51,170092,Bond Road Building,130000              Cleaning & Janitorial,A,2022,6
854,"Children, Schools and Family",JULIUS RUTHERFOORD AND CO LTD,INVS145226,12-Sep-22,734.34,122.39,170092,Lower Morden CC Building Mgt,130000              Cleaning & Janitorial,A,2022,6
855,"Children, Schools and Family",JULIUS RUTHERFOORD AND CO LTD,INVS145012,12-Sep-22,1077.19,179.53,170092,Newminster CC Building Mgt,130000              Cleaning & Janitorial,A,2022,6
856,"Children, Schools and Family",JULIUS RUTHERFOORD AND CO LTD,INVS143791,12-Sep-22,1155.05,192.51,170092,Bond Road Building,130000              Cleaning & Janitorial,A,2022,6
857,"Children, Schools and Family",JULIUS RUTHERFOORD AND CO LTD,INVS144275,12-Sep-22,1155.05,192.51,170092,Bond Road Building,130000              Cleaning & Janitorial,A,2022,6
858,Corporate Services,JULIUS RUTHERFOORD AND CO LTD,INVS145906,21-Sep-22,3044.86,507.48,170092,PDC,130000              Cleaning & Janitorial,A,2022,6
859,"Children, Schools and Family",SENSATIONAL KIDS,INV-6088,20-Sep-22,2385,0,170195,Non-Delegated Statements,321100              Social Community Care Supplies & Services - Children,A,2022,6
860,Community and Housing,INDEPENDENCE HOMES LTD,885363,29-Sep-22,7935.88,0,170527,Learning Disabilities Placemnt,321017              Nursing & Residential Care Homes,A,2022,6
861,"Children, Schools and Family",GREATER LONDON FOSTERING LTD,35945,22-Sep-22,3516.95,0,170596,Placements Under 18,321100              Social Community Care Supplies & Services - Children,A,2022,6
862,"Children, Schools and Family",GREATER LONDON FOSTERING LTD,35946,22-Sep-22,3448.13,0,170596,Placements Under 18,321100              Social Community Care Supplies & Services - Children,A,2022,6
863,"Children, Schools and Family",GREATER LONDON FOSTERING LTD,35943,22-Sep-22,3565,0,170596,Placements Under 18,321100              Social Community Care Supplies & Services - Children,A,2022,6
864,"Children, Schools and Family",GREATER LONDON FOSTERING LTD,35944,22-Sep-22,2760,0,170596,Placements Under 18,321100              Social Community Care Supplies & Services - Children,A,2022,6
865,"Children, Schools and Family",GREATER LONDON FOSTERING LTD,35947,22-Sep-22,834.96,0,170596,Placements Under 18,321100              Social Community Care Supplies & Services - Children,A,2022,6
866,"Children, Schools and Family",CENMAC,CPS!2100,16-Sep-22,2435,0,170767,Non-Delegated Statements,321100              Social Community Care Supplies & Services - Children,A,2022,6
867,Community and Housing,REDACTED PERSONAL DATA,876873,13-Sep-22,1591,0,170878,Learning Disabilities Placemnt,DIRECT PAYMENTS,R,2022,6
868,"Children, Schools and Family",LIVABILITY,A150/155629,03-Oct-22,19664.67,0,170900,Non-Maintained Post 16 SEN,170000              Education,A,2022,6
869,Community and Housing,REDACTED PERSONAL DATA,876744,13-Sep-22,1304.64,0,171056,Phys/Sens Placements - East,DIRECT PAYMENTS,R,2022,6
870,Community and Housing,ST GEORGES RES. CARE HOME,885409,29-Sep-22,4871.4,0,171491,Learning Disabilities Placemnt,321017              Nursing & Residential Care Homes,A,2022,6
871,Community and Housing,ST GEORGES RES. CARE HOME,885433,29-Sep-22,4024.2,0,171491,Learning Disabilities Placemnt,321017              Nursing & Residential Care Homes,A,2022,6
872,Corporate Services,SSD LIMITED,SI449,05-Sep-22,4936.8,822.8,171736,Corporate Services Buildings,190000              Facilities & Management Services,A,2022,6
873,"Children, Schools and Family",REDACTED PERSONAL DATA,877553,13-Sep-22,1050.06,0,171943,Child Disabilities - Placement,CSF-DIRECT PAYMENTS,R,2022,6
874,Community and Housing,REDACTED PERSONAL DATA,876729,13-Sep-22,588.08,0,172070,Learning Disabilities Placemnt,DIRECT PAYMENTS,R,2022,6
875,Community and Housing,NORBURY PROPERTY SERV LDN LTD,SI-7631,23-Sep-22,12295.83,0,172104,Bed & Breakfast - accomm,321000              Social Community Care Supplies & Services - Adult,A,2022,6
876,Community and Housing,EALING COUNCIL,885063,29-Sep-22,2985.92,0,172129,Mental Health Placements,OLA,A,2022,6
877,Community and Housing,CARRICKS BROOK,885076,29-Sep-22,6536.16,0,172297,Learning Disabilities Placemnt,321017              Nursing & Residential Care Homes,A,2022,6
878,Community and Housing,BROADHAM CARE LTD,885127,29-Sep-22,7386.96,0,172298,Learning Disabilities Placemnt,321017              Nursing & Residential Care Homes,A,2022,6
879,Community and Housing,BROADHAM CARE LTD,885392,29-Sep-22,6135.44,0,172298,Learning Disabilities Placemnt,321017              Nursing & Residential Care Homes,A,2022,6
880,"Children, Schools and Family",PLAYSAFETY LIMITED,66193,03-Oct-22,594,99,172454, Youth Office Premises Cost,330000              Sports & Playground Equipment & Maintenance,A,2022,6
881,Community and Housing,REDACTED PERSONAL DATA,876948,13-Sep-22,845.76,0,172912,Learning Disabilities Placemnt,DIRECT PAYMENTS,R,2022,6
882,Community and Housing,REDACTED PERSONAL DATA,876766,13-Sep-22,890.96,0,172914,Learning Disabilities Placemnt,DIRECT PAYMENTS,R,2022,6
883,"Children, Schools and Family",REDACTED PERSONAL DATA,876329,12-Sep-22,552.32,0,172922,Fostering Recruit/Assessment,321100              Social Community Care Supplies & Services - Children,R,2022,6
884,"Children, Schools and Family",REDACTED PERSONAL DATA,883653,26-Sep-22,552.32,0,172922,Fostering Recruit/Assessment,321100              Social Community Care Supplies & Services - Children,R,2022,6
885,Community and Housing,REDACTED PERSONAL DATA,877361,13-Sep-22,636,0,172936,Phys/Sens Placements - East,DIRECT PAYMENTS,R,2022,6
886,"Children, Schools and Family",EAGLE HOUSE SCHOOL (SUTTON),EHS22/021,03-Oct-22,20253.33,0,173087,Non-Delegated Statements,170000              Education,A,2022,6
887,Corporate Services,ALTODIGITAL NETWORKS LTD,762316ALTO,20-Sep-22,55842.18,9307.03,173240,Corp Print Strategy,190000              Facilities & Management Services,A,2022,6
888,Community and Housing,HAVERING COURT NURSING HOME,885002,28-Sep-22,1656,0,173297,Older People Placements - East,321017              Nursing & Residential Care Homes,A,2022,6
889,Community and Housing,HAVERING COURT NURSING HOME,885043,29-Sep-22,4954.12,0,173297,Older People Placements - East,321017              Nursing & Residential Care Homes,A,2022,6
890,Community and Housing,REDACTED PERSONAL DATA,876448,13-Sep-22,706.6,0,173308,Phys/Sens Placements - East,DIRECT PAYMENTS,R,2022,6
891,Environment and Regeneration,SOUTH EAST LEASEHOLD,199,03-Oct-22,780,130,173335,Spatial Policy,150000              Consultancy,A,2022,6
892,"Children, Schools and Family",REDACTED PERSONAL DATA,876259,12-Sep-22,719.06,0,173600,Fostering Recruit/Assessment,321100              Social Community Care Supplies & Services - Children,R,2022,6
893,"Children, Schools and Family",REDACTED PERSONAL DATA,883582,26-Sep-22,719.06,0,173600,Fostering Recruit/Assessment,321100              Social Community Care Supplies & Services - Children,R,2022,6
894,"Children, Schools and Family",REDACTED PERSONAL DATA,877661,13-Sep-22,3603.24,0,173793,Child Disabilities - Placement,CSF-DIRECT PAYMENTS,R,2022,6
895,Community and Housing,HARBOUR CARE (UK) LTD,885342,29-Sep-22,6448.68,0,173947,Learning Disabilities Placemnt,321017              Nursing & Residential Care Homes,A,2022,6
896,"Children, Schools and Family",REDACTED PERSONAL DATA,874591,01-Sep-22,1650,0,174212, Statementing-Transport,CSF-DIRECT PAYMENTS,R,2022,6
897,"Children, Schools and Family",REDACTED PERSONAL DATA,877585,13-Sep-22,2200,0,174212, Statementing-Transport,CSF-DIRECT PAYMENTS,R,2022,6
898,Community and Housing,ASHINGTON HOUSE,885097,29-Sep-22,4406.68,0,174259,Learning Disabilities Placemnt,321017              Nursing & Residential Care Homes,A,2022,6
899,Community and Housing,REDACTED PERSONAL DATA,876622,13-Sep-22,779.6,0,174449,Phys/Sens Placements - East,DIRECT PAYMENTS,R,2022,6
900,Community and Housing,REDACTED PERSONAL DATA,877159,13-Sep-22,2702,0,174465,Older People Placements - East,DIRECT PAYMENTS,R,2022,6
901,Community and Housing,PRECIOUS HOMES LTD,VER002491,13-Sep-22,10423.35,0,174641,Learning Disabilities Placemnt,321017              Nursing & Residential Care Homes,A,2022,6
902,Community and Housing,SUPREME HOMES,30143,13-Sep-22,3280,0,174758,Mental Health Placements,321017              Nursing & Residential Care Homes,A,2022,6
903,Community and Housing,SUPREME HOMES,30022A,20-Sep-22,3280,0,174758,Mental Health Placements,321017              Nursing & Residential Care Homes,A,2022,6
904,Community and Housing,ALPENBEST LIMITED,21082022-510147,21-Sep-22,950.74,0,174789,Older People Placements - East,321000              Social Community Care Supplies & Services - Adult,A,2022,6
905,Community and Housing,ALPENBEST LIMITED,21082022-963516,21-Sep-22,545.57,0,174789,Older People Placements - East,321000              Social Community Care Supplies & Services - Adult,A,2022,6
906,Community and Housing,ALPENBEST LIMITED,28082022-510147,21-Sep-22,950.74,0,174789,Older People Placements - East,321000              Social Community Care Supplies & Services - Adult,A,2022,6
907,Community and Housing,ALPENBEST LIMITED,28082022-963516,21-Sep-22,534.1,0,174789,Older People Placements - East,321000              Social Community Care Supplies & Services - Adult,A,2022,6
908,Community and Housing,ALPENBEST LIMITED,04092022-844086,21-Sep-22,506.52,0,174789,Older People Placements - East,321000              Social Community Care Supplies & Services - Adult,A,2022,6
909,Community and Housing,ALPENBEST LIMITED,04092022-510147,21-Sep-22,999.59,0,174789,Older People Placements - East,321000              Social Community Care Supplies & Services - Adult,A,2022,6
910,Community and Housing,ALPENBEST LIMITED,04092022-963516,21-Sep-22,557.41,0,174789,Older People Placements - East,321000              Social Community Care Supplies & Services - Adult,A,2022,6
911,Community and Housing,ALPENBEST LIMITED,11092022-510147,21-Sep-22,950.74,0,174789,Older People Placements - East,321000              Social Community Care Supplies & Services - Adult,A,2022,6
912,Community and Housing,ALPENBEST LIMITED,11092022-963516,21-Sep-22,564.5,0,174789,Older People Placements - East,321000              Social Community Care Supplies & Services - Adult,A,2022,6
913,Community and Housing,SUTTON COURT CARE CENTRE,885141,29-Sep-22,2827.36,0,174833,Older People Placements - East,321017              Nursing & Residential Care Homes,A,2022,6
914,Community and Housing,SUTTON COURT CARE CENTRE,885234,29-Sep-22,3163.36,0,174833,Older People Placements - East,321017              Nursing & Residential Care Homes,A,2022,6
915,Community and Housing,SUTTON COURT CARE CENTRE,885260,29-Sep-22,4049.6,0,174833,Phys/Sens Placements - East,321017              Nursing & Residential Care Homes,A,2022,6
916,Community and Housing,SUTTON COURT CARE CENTRE,885414,29-Sep-22,4097.28,0,174833,Phys/Sens Placements - East,321017              Nursing & Residential Care Homes,A,2022,6
917,Community and Housing,REDACTED PERSONAL DATA,876925,13-Sep-22,636.4,0,174975,Learning Disabilities Placemnt,DIRECT PAYMENTS,R,2022,6
918,"Children, Schools and Family",REDACTED PERSONAL DATA,877608,15-Sep-22,648.56,0,175042,CWD Placements,CSF-DIRECT PAYMENTS,R,2022,6
919,Corporate Services,COSMIC EUROPE LIMTED,UK6773,23-Sep-22,1026,171,175169,Translation Service,TRANSLATIONS,A,2022,6
920,Corporate Services,COSMIC EUROPE LIMTED,UK6774,23-Sep-22,1128,188,175169,Translation Service,TRANSLATIONS,A,2022,6
921,Corporate Services,COSMIC EUROPE LIMTED,UK6804,27-Sep-22,1938,323,175169,Translation Service,TRANSLATIONS,A,2022,6
922,Corporate Services,COSMIC EUROPE LIMTED,UK6807,27-Sep-22,618,103,175169,Translation Service,TRANSLATIONS,A,2022,6
923,Corporate Services,COSMIC EUROPE LIMTED,UK6809,27-Sep-22,660,110,175169,Translation Service,TRANSLATIONS,A,2022,6
924,"Children, Schools and Family",REDACTED PERSONAL DATA,876217,12-Sep-22,539.84,0,175254,Fostering Recruit/Assessment,321100              Social Community Care Supplies & Services - Children,R,2022,6
925,"Children, Schools and Family",REDACTED PERSONAL DATA,883540,26-Sep-22,539.84,0,175254,Fostering Recruit/Assessment,321100              Social Community Care Supplies & Services - Children,R,2022,6
926,Community and Housing,KISIMUL SCHOOL,885037,29-Sep-22,11109.72,0,175545,Learning Disabilities Placemnt,321017              Nursing & Residential Care Homes,A,2022,6
927,Community and Housing,KISIMUL SCHOOL,885420,29-Sep-22,11826.92,0,175545,Learning Disabilities Placemnt,321017              Nursing & Residential Care Homes,A,2022,6
928,Community and Housing,REDACTED PERSONAL DATA,876757,13-Sep-22,1781.92,0,175782,Phys/Sens Placements - East,DIRECT PAYMENTS,R,2022,6
929,Community and Housing,REDACTED PERSONAL DATA,877042,13-Sep-22,1336.44,0,175960,Learning Disabilities Placemnt,DIRECT PAYMENTS,R,2022,6
930,Environment and Regeneration,M J MAPP LTD,127000/4082,05-Sep-22,6991.52,1165.25,176206,Parking - Car Parks,250000              Housing Management,A,2022,6
931,Community and Housing,Care for Veterans,885328,29-Sep-22,4294.28,0,176384,Phys/Sens Placements - East,321017              Nursing & Residential Care Homes,A,2022,6
932,"Children, Schools and Family",LONDON BOROUGH OF WANDSWORTH,2101032158,15-Sep-22,2701.84,0,176557,Placements Under 18,OLA,A,2022,6
933,"Children, Schools and Family",LONDON BOROUGH OF WANDSWORTH,2100994790,27-Sep-22,2701.84,0,176557,Placements Under 18,OLA,A,2022,6
934,Community and Housing,REDACTED PERSONAL DATA,876481,13-Sep-22,572.76,0,176619,Phys/Sens Placements - East,DIRECT PAYMENTS,R,2022,6
935,Community and Housing,REDACTED PERSONAL DATA,877314,13-Sep-22,5345.76,0,176783,Phys/Sens Placements - East,DIRECT PAYMENTS,R,2022,6
936,"Children, Schools and Family",THE PRE-SCHOOL GROUP LTD,P2 22 UPFRONTPAY,07-Sep-22,25305.5,0,176785,EARLY YEARS NURSERY GRANTS,200000              Financial Services,A,2022,6
937,Corporate Services,SPRINGFIELD ADVICE AND LAW CENTRE,SP GRT OCT 22,28-Sep-22,29500,0,176852,VOLUNTARY SECTOR COORDINATION,200000              Financial Services,A,2022,6
938,Community and Housing,REDACTED PERSONAL DATA,877249,13-Sep-22,1813.76,0,176868,Phys/Sens Placements - East,DIRECT PAYMENTS,R,2022,6
939,Community and Housing,SPRING LAKE CARE HOME LTD,885208,29-Sep-22,11418,0,177067,Learning Disabilities Placemnt,321017              Nursing & Residential Care Homes,A,2022,6
940,Community and Housing,SPRING LAKE CARE HOME LTD,885406,29-Sep-22,6468,0,177067,Learning Disabilities Placemnt,321017              Nursing & Residential Care Homes,A,2022,6
941,Community and Housing,REDACTED PERSONAL DATA,877293,13-Sep-22,652.32,0,177115,Phys/Sens Placements - East,DIRECT PAYMENTS,R,2022,6
942,"Children, Schools and Family",REDACTED PERSONAL DATA,876224,12-Sep-22,931,0,177211,Fostering Recruit/Assessment,321100              Social Community Care Supplies & Services - Children,R,2022,6
943,"Children, Schools and Family",REDACTED PERSONAL DATA,883547,26-Sep-22,931,0,177211,Fostering Recruit/Assessment,321100              Social Community Care Supplies & Services - Children,R,2022,6
944,"Children, Schools and Family",EXPERT IN MIND,33771,02-Sep-22,2020.02,336.67,177342,Family Supp SafeGuard - Place,280000              Legal Services                                                                            Confirmed,A,2022,6
945,Corporate Services,EXPERT IN MIND,33532,13-Sep-22,864,144,177342,SLLP - Disbursements,280000              Legal Services                                                                            Confirmed,A,2022,6
946,Corporate Services,EXPERT IN MIND,36315,21-Sep-22,550.8,91.8,177342,SLLP - Disbursements,280000              Legal Services                                                                            Confirmed,A,2022,6
947,Community and Housing,HYTYME B AND B,26395,20-Sep-22,13060.8,2176.8,177425,Bed & Breakfast - accomm,321000              Social Community Care Supplies & Services - Adult,A,2022,6
948,Community and Housing,REDACTED PERSONAL DATA,876628,13-Sep-22,710.2,0,177453,Phys/Sens Placements - East,DIRECT PAYMENTS,R,2022,6
949,Community and Housing,REDACTED PERSONAL DATA,876597,13-Sep-22,724.72,0,177476,Learning Disabilities Placemnt,DIRECT PAYMENTS,R,2022,6
950,Community and Housing,REDACTED PERSONAL DATA,876485,13-Sep-22,1197.28,0,177502,Phys/Sens Placements - East,DIRECT PAYMENTS,R,2022,6
951,"Children, Schools and Family",BUTTERFLIES CHILDCARE LIMITED,P2 22 UPFRONTPAY,07-Sep-22,14002.8,0,177504,EARLY YEARS NURSERY GRANTS,200000              Financial Services,A,2022,6
952,Environment and Regeneration,SUSTAINABLE MERTON,22/23 N CIL FUND,26-Sep-22,39000,0,177594,Reg & Partnerhips Staffing,190000              Facilities & Management Services,A,2022,6
953,Corporate Services,HPI LIMITED,6160-001365558,20-Sep-22,645.04,107.51,177649,Local Taxation Bailiffs,200000              Financial Services,A,2022,6
954,Community and Housing,THE ARTEMIS TEAM LIMITED,14437,13-Sep-22,5193.4,865.57,177680,Learning Disabilities Placemnt,290000              Arts & Leisure Services,A,2022,6
955,Community and Housing,REDACTED PERSONAL DATA,877201,13-Sep-22,572.76,0,177739,Phys/Sens Placements - East,DIRECT PAYMENTS,R,2022,6
956,Community and Housing,REDACTED PERSONAL DATA,877133,13-Sep-22,668.2,0,177785,Phys/Sens Placements - East,DIRECT PAYMENTS,R,2022,6
957,"Children, Schools and Family",REDACTED PERSONAL DATA,P2 22 UPFRONTPAY,07-Sep-22,967.68,0,177813,EARLY YEARS NURSERY GRANTS,200000              Financial Services,R,2022,6
958,Unassigned,EDENRED (UK GROUP) LTD,CV SEPT 22,06-Sep-22,800.4,0,177846,Corporate Accountancy,321100              Social Community Care Supplies & Services - Children,A,2022,6
959,Community and Housing,WORKSHOP 305,ASC0155,02-Sep-22,762.6,0,177941,Learning Disabilities Placemnt,321000              Social Community Care Supplies & Services - Adult,A,2022,6
960,Community and Housing,WORKSHOP 305,ASCO154,02-Sep-22,762.6,0,177941,Learning Disabilities Placemnt,321000              Social Community Care Supplies & Services - Adult,A,2022,6
961,Community and Housing,WORKSHOP 305,ASCO153,02-Sep-22,762.6,0,177941,Learning Disabilities Placemnt,321000              Social Community Care Supplies & Services - Adult,A,2022,6
962,Community and Housing,WORKSHOP 305,ASCO152,02-Sep-22,762.6,0,177941,Learning Disabilities Placemnt,321000              Social Community Care Supplies & Services - Adult,A,2022,6
963,Community and Housing,WORKSHOP 305,RAG155,15-Sep-22,807.6,0,177941,Learning Disabilities Placemnt,321000              Social Community Care Supplies & Services - Adult,A,2022,6
964,Community and Housing,WORKSHOP 305,IALA156,15-Sep-22,538.4,0,177941,Learning Disabilities Placemnt,321000              Social Community Care Supplies & Services - Adult,A,2022,6
965,Community and Housing,WORKSHOP 305,RAG156,15-Sep-22,807.6,0,177941,Learning Disabilities Placemnt,321000              Social Community Care Supplies & Services - Adult,A,2022,6
966,Community and Housing,WORKSHOP 305,ASCO156,21-Sep-22,762.6,0,177941,Learning Disabilities Placemnt,321000              Social Community Care Supplies & Services - Adult,A,2022,6
967,Community and Housing,REDACTED PERSONAL DATA,876471,13-Sep-22,731.4,0,177967,Learning Disabilities Placemnt,DIRECT PAYMENTS,R,2022,6
968,Community and Housing,REDACTED PERSONAL DATA,877056,13-Sep-22,890.96,0,177999,Learning Disabilities Placemnt,DIRECT PAYMENTS,R,2022,6
969,Community and Housing,REDACTED PERSONAL DATA,877089,13-Sep-22,3784,0,178412,Learning Disabilities Placemnt,DIRECT PAYMENTS,R,2022,6
970,"Children, Schools and Family",Little Hearts Pre School,P2 22 UPFRONTPAY,07-Sep-22,18133.92,0,178454,EARLY YEARS NURSERY GRANTS,200000              Financial Services,A,2022,6
971,Community and Housing,BRAMBLEDOWN CARE HOME,885218,29-Sep-22,7448.8,0,178465,Phys/Sens Placements - East,321017              Nursing & Residential Care Homes,A,2022,6
972,Community and Housing,SPEAR,997,14-Sep-22,35000,0,178524,Supporting People (HRS),321000              Social Community Care Supplies & Services - Adult,A,2022,6
973,Community and Housing,SPEAR,998,14-Sep-22,36250,0,178524,Supporting People (HRS),321000              Social Community Care Supplies & Services - Adult,A,2022,6
974,Corporate Services,THOMSON REUTERS,614885321,15-Sep-22,607.2,101.2,178554,SLLP - Disbursements,260000              Human Resources,A,2022,6
975,Community and Housing,LOVE WALK RESIDENTIAL HOME,885216,29-Sep-22,3381.4,0,178620,Phys/Sens Placements - East,321017              Nursing & Residential Care Homes,A,2022,6
976,Community and Housing,KEW HOUSE,885223,29-Sep-22,3289.24,0,178621,Older People Placements - East,321017              Nursing & Residential Care Homes,A,2022,6
977,Community and Housing,KEW HOUSE,885300,29-Sep-22,5800,0,178621,Older People Placements - East,321017              Nursing & Residential Care Homes,A,2022,6
978,Community and Housing,REDACTED PERSONAL DATA,876857,13-Sep-22,919.76,0,178767,Learning Disabilities Placemnt,DIRECT PAYMENTS,R,2022,6
979,Community and Housing,REDACTED PERSONAL DATA,877083,13-Sep-22,1882.52,0,178802,Learning Disabilities Placemnt,DIRECT PAYMENTS,R,2022,6
980,Community and Housing,REDACTED PERSONAL DATA,876909,13-Sep-22,1430.44,0,178874,Learning Disabilities Placemnt,DIRECT PAYMENTS,R,2022,6
981,"Children, Schools and Family",MODERN MONTESSORI INTL. LTD,P2 22 UPFRONTPAY,07-Sep-22,7801.92,0,178883,EARLY YEARS NURSERY GRANTS,200000              Financial Services,A,2022,6
982,Community and Housing,REDACTED PERSONAL DATA,877220,13-Sep-22,1336.44,0,179049,Learning Disabilities Placemnt,DIRECT PAYMENTS,R,2022,6
983,"Children, Schools and Family",WILLOWS PRE-SCHOOL,P2 22 UPFRONTPAY,13-Sep-22,19071.36,0,179134,EARLY YEARS NURSERY GRANTS,170000              Education,A,2022,6
984,Corporate Services,HAYS SPECIALIST RECRUITM'T LTD,1012228745,07-Sep-22,3000,500,179169,Facilities,260000              Human Resources,A,2022,6
985,Community and Housing,REDACTED PERSONAL DATA,877289,13-Sep-22,1193.28,0,179299,Older People Placements - East,DIRECT PAYMENTS,R,2022,6
986,Community and Housing,REDACTED PERSONAL DATA,877006,13-Sep-22,1739.6,0,179332,Phys/Sens Placements - East,DIRECT PAYMENTS,R,2022,6
987,Community and Housing,REDACTED PERSONAL DATA,876434,13-Sep-22,4318.6,0,179383,Learning Disabilities Placemnt,DIRECT PAYMENTS,R,2022,6
988,Community and Housing,ELYSIUM CARE PARTNERSHIPS LTD,885125,29-Sep-22,10202.48,0,179734,Learning Disabilities Placemnt,321017              Nursing & Residential Care Homes,A,2022,6
989,Community and Housing,ELYSIUM CARE PARTNERSHIPS LTD,885250,29-Sep-22,9049.16,0,179734,Learning Disabilities Placemnt,321017              Nursing & Residential Care Homes,A,2022,6
990,Community and Housing,ELYSIUM CARE PARTNERSHIPS LTD,885266,29-Sep-22,3462.2,0,179734,Learning Disabilities Placemnt,321017              Nursing & Residential Care Homes,A,2022,6
991,Community and Housing,ELYSIUM CARE PARTNERSHIPS LTD,885382,29-Sep-22,9821,0,179734,Learning Disabilities Placemnt,321017              Nursing & Residential Care Homes,A,2022,6
992,Community and Housing,WESTHOPE LTD,885220,29-Sep-22,5292.32,0,179748,Learning Disabilities Placemnt,321017              Nursing & Residential Care Homes,A,2022,6
993,Environment and Regeneration,BARKLANDS TREE SPECIALISTS,298,03-Oct-22,3000,500,179780,Tree Safety (Schools),240000              Horticultural,A,2022,6
994,Environment and Regeneration,BARKLANDS TREE SPECIALISTS,295,30-Sep-22,5827.5,971.25,179780,Pks Rec Grds (Unloc),240000              Horticultural,A,2022,6
995,Environment and Regeneration,BARKLANDS TREE SPECIALISTS,290,30-Sep-22,8797.5,1466.25,179780,Highways GM Contract,240000              Horticultural,A,2022,6
996,Environment and Regeneration,BARKLANDS TREE SPECIALISTS,294,30-Sep-22,4926.9,821.15,179780,Highways GM Contract,240000              Horticultural,A,2022,6
997,Environment and Regeneration,BARKLANDS TREE SPECIALISTS,296,30-Sep-22,2861.96,476.99,179780,Highways GM Contract,240000              Horticultural,A,2022,6
998,Environment and Regeneration,BARKLANDS TREE SPECIALISTS,297,30-Sep-22,1080,180,179780,Highways GM Contract,240000              Horticultural,A,2022,6
999,"Children, Schools and Family",ROEHAMPTON LODGE PRIORY,4290002254,03-Oct-22,22076,0,179785,Non-Delegated Statements,170000              Education,A,2022,6
1000,"Children, Schools and Family",ROEHAMPTON LODGE PRIORY,4290002262,03-Oct-22,20857,0,179785,Non-Delegated Statements,170000              Education,A,2022,6
1001,Community and Housing,SUNNINGDALE HOUSE CARE HOME,885375,29-Sep-22,2575,0,179794,Learning Disabilities Placemnt,321017              Nursing & Residential Care Homes,A,2022,6
1002,Community and Housing,SUNLIGHT HOUSE,885161,29-Sep-22,7667.6,0,179813,Learning Disabilities Placemnt,321017              Nursing & Residential Care Homes,A,2022,6
1003,Community and Housing,SUNLIGHT HOUSE,885272,29-Sep-22,5140,0,179813,Learning Disabilities Placemnt,321017              Nursing & Residential Care Homes,A,2022,6
1004,"Children, Schools and Family",COLLIERS WOOD VILLAGE DAY NUR.,P2 22 UPFRONTPAY,07-Sep-22,24842.16,0,179896,EARLY YEARS NURSERY GRANTS,200000              Financial Services,A,2022,6
1005,Community and Housing,BHAKTI SHYAMA CARE CENTRE,885442,29-Sep-22,2985.6,0,179993,Older People Placements - East,321017              Nursing & Residential Care Homes,A,2022,6
1006,"Children, Schools and Family",REAMCARE LTD,LHSRPAMO92201,12-Sep-22,20105.67,0,180045,Placements Under 18,321100              Social Community Care Supplies & Services - Children Residential,A,2022,6
1007,Community and Housing,REDACTED PERSONAL DATA,877251,13-Sep-22,1109.32,0,180174,Older People Placements - East,DIRECT PAYMENTS,R,2022,6
1008,Community and Housing,SUNRISE DAY CARE,DP4717,08-Sep-22,3013.08,0,180196,Phys/Sens Placements - East,321000              Social Community Care Supplies & Services - Adult,A,2022,6
1009,Community and Housing,SUNRISE DAY CARE,DP4715,08-Sep-22,1437.84,0,180196,Older People Placements - East,321000              Social Community Care Supplies & Services - Adult,A,2022,6
1010,Community and Housing,SUNRISE DAY CARE,DP4716,08-Sep-22,1961.12,0,180196,Older People Placements - East,321000              Social Community Care Supplies & Services - Adult,A,2022,6
1011,Community and Housing,SUNRISE DAY CARE,4285,08-Sep-22,510.24,0,180196,Older People Placements - East,321000              Social Community Care Supplies & Services - Adult,A,2022,6
1012,Community and Housing,SUNRISE DAY CARE,4271,08-Sep-22,510.24,0,180196,Older People Placements - East,321000              Social Community Care Supplies & Services - Adult,A,2022,6
1013,Community and Housing,SUNRISE DAY CARE,4284,08-Sep-22,510.24,0,180196,Older People Placements - East,321000              Social Community Care Supplies & Services - Adult,A,2022,6
1014,Community and Housing,SUNRISE DAY CARE,4283,08-Sep-22,510.24,0,180196,Older People Placements - East,321000              Social Community Care Supplies & Services - Adult,A,2022,6
1015,Community and Housing,SUNRISE DAY CARE,4275,08-Sep-22,680.32,0,180196,Learning Disabilities Placemnt,321000              Social Community Care Supplies & Services - Adult,A,2022,6
1016,Community and Housing,SUNRISE DAY CARE,4274,23-Sep-22,510.24,0,180196,Older People Placements - East,321000              Social Community Care Supplies & Services - Adult,A,2022,6
1017,Community and Housing,REDACTED PERSONAL DATA,877097,13-Sep-22,3945.68,0,180232,Older People Placements - East,DIRECT PAYMENTS,R,2022,6
1018,Community and Housing,REDACTED PERSONAL DATA,876955,13-Sep-22,509.12,0,180242,Phys/Sens Placements - East,DIRECT PAYMENTS,R,2022,6
1019,Community and Housing,REDACTED PERSONAL DATA,876474,13-Sep-22,954.6,0,180282,Phys/Sens Placements - East,DIRECT PAYMENTS,R,2022,6
1020,Community and Housing,REDACTED PERSONAL DATA,877068,13-Sep-22,510.24,0,180285,Older People Placements - East,DIRECT PAYMENTS,R,2022,6
1021,Community and Housing,SEVACARE,57325-514140A,13-Sep-22,817.32,0,180307,Older People Placements - East,321000              Social Community Care Supplies & Services - Adult,A,2022,6
1022,Community and Housing,SEVACARE,58905-514140,16-Sep-22,1251,0,180307,Older People Placements - East,321000              Social Community Care Supplies & Services - Adult,A,2022,6
1023,Community and Housing,SEVACARE,58905-752403,16-Sep-22,934.08,0,180307,Older People Placements - East,321000              Social Community Care Supplies & Services - Adult,A,2022,6
1024,Community and Housing,SEVACARE,58905-791266,16-Sep-22,583.8,0,180307,Older People Placements - East,321000              Social Community Care Supplies & Services - Adult,A,2022,6
1025,Community and Housing,SEVACARE,58905-14419,16-Sep-22,1017.48,0,180307,Older People Placements - East,321000              Social Community Care Supplies & Services - Adult,A,2022,6
1026,Community and Housing,SEVACARE,58905-506355,16-Sep-22,867.36,0,180307,Phys/Sens Placements - East,321000              Social Community Care Supplies & Services - Adult,A,2022,6
1027,Community and Housing,SEVACARE,58905-569458,16-Sep-22,1367.76,0,180307,Phys/Sens Placements - East,321000              Social Community Care Supplies & Services - Adult,A,2022,6
1028,Community and Housing,SEVACARE,58905-41998,16-Sep-22,550.44,0,180307,Phys/Sens Placements - East,321000              Social Community Care Supplies & Services - Adult,A,2022,6
1029,Community and Housing,SEVACARE,58905-52108,16-Sep-22,600.48,0,180307,Learning Disabilities Placemnt,321000              Social Community Care Supplies & Services - Adult,A,2022,6
1030,Community and Housing,SEVACARE,58905-505367,16-Sep-22,2135.04,0,180307,Older People Placements - East,321000              Social Community Care Supplies & Services - Adult,A,2022,6
1031,Community and Housing,SEVACARE,58905-872605,16-Sep-22,617.16,0,180307,Older People Placements - East,321000              Social Community Care Supplies & Services - Adult,A,2022,6
1032,Community and Housing,SEVACARE,58905-79481,16-Sep-22,1438.48,0,180307,Older People Placements - East,321000              Social Community Care Supplies & Services - Adult,A,2022,6
1033,Community and Housing,SEVACARE,58905-867847,16-Sep-22,1050.84,0,180307,Older People Placements - East,321000              Social Community Care Supplies & Services - Adult,A,2022,6
1034,Community and Housing,SEVACARE,58905-565513,16-Sep-22,2852.28,0,180307,Phys/Sens Placements - East,321000              Social Community Care Supplies & Services - Adult,A,2022,6
1035,Community and Housing,SEVACARE,58905-78739,16-Sep-22,667.2,0,180307,Learning Disabilities Placemnt,321000              Social Community Care Supplies & Services - Adult,A,2022,6
1036,Community and Housing,SEVACARE,58905-74975,16-Sep-22,1718.04,0,180307,Older People Placements - East,321000              Social Community Care Supplies & Services - Adult,A,2022,6
1037,Community and Housing,SEVACARE,58905-38267,16-Sep-22,1050.84,0,180307,Older People Placements - East,321000              Social Community Care Supplies & Services - Adult,A,2022,6
1038,Community and Housing,SEVACARE,58905-68278,16-Sep-22,2835.6,0,180307,Learning Disabilities Placemnt,321000              Social Community Care Supplies & Services - Adult,A,2022,6
1039,Community and Housing,SEVACARE,58905-72268,16-Sep-22,1301.04,0,180307,Learning Disabilities Placemnt,321000              Social Community Care Supplies & Services - Adult,A,2022,6
1040,Community and Housing,SEVACARE,58905-732707,16-Sep-22,884.04,0,180307,Older People Placements - East,321000              Social Community Care Supplies & Services - Adult,A,2022,6
1041,Community and Housing,SEVACARE,58905-654036,16-Sep-22,600.48,0,180307,Older People Placements - East,321000              Social Community Care Supplies & Services - Adult,A,2022,6
1042,Community and Housing,SEVACARE,58905-871695,16-Sep-22,950.76,0,180307,Older People Placements - East,321000              Social Community Care Supplies & Services - Adult,A,2022,6
1043,Community and Housing,SEVACARE,58905-503697,16-Sep-22,834,0,180307,Older People Placements - East,321000              Social Community Care Supplies & Services - Adult,A,2022,6
1044,Community and Housing,SEVACARE,58905-533922,16-Sep-22,9340.8,0,180307,Older People Placements - East,321000              Social Community Care Supplies & Services - Adult,A,2022,6
1045,Community and Housing,SEVACARE,58905-869265,16-Sep-22,688.05,0,180307,Older People Placements - East,321000              Social Community Care Supplies & Services - Adult,A,2022,6
1046,Community and Housing,SEVACARE,04.09.22/20,20-Sep-22,1974.67,0,180307,Older People Placements - East,321000              Social Community Care Supplies & Services - Adult,A,2022,6
1047,Community and Housing,SEVACARE,04.09.22/25,20-Sep-22,763.31,0,180307,Older People Placements - East,321000              Social Community Care Supplies & Services - Adult,A,2022,6
1048,Community and Housing,SEVACARE,04.09.22/11,20-Sep-22,1157.79,0,180307,Older People Placements - East,321000              Social Community Care Supplies & Services - Adult,A,2022,6
1049,Community and Housing,SEVACARE,04.09.22/8,20-Sep-22,652.68,0,180307,Older People Placements - East,321000              Social Community Care Supplies & Services - Adult,A,2022,6
1050,Community and Housing,SEVACARE,04.09.22/12,20-Sep-22,758.52,0,180307,Older People Placements - East,321000              Social Community Care Supplies & Services - Adult,A,2022,6
1051,"Children, Schools and Family",RESTORE PLC,1283216,20-Sep-22,773.88,128.98,180441,Head of CSC & Youth Inclusion,190000              Facilities & Management Services,A,2022,6
1052,Corporate Services,RESTORE PLC,1285344,20-Sep-22,725.69,120.95,180441,Legal Shared Service,190000              Facilities & Management Services,A,2022,6
1053,"Children, Schools and Family",RESTORE PLC,1285342,26-Sep-22,551.28,91.88,180441,Fostering Recruit/Assessment,190000              Facilities & Management Services,A,2022,6
1054,Community and Housing,REDACTED PERSONAL DATA,877213,13-Sep-22,1320.52,0,180447,Older People Placements - East,DIRECT PAYMENTS,R,2022,6
1055,Community and Housing,REDACTED PERSONAL DATA,877259,13-Sep-22,500.96,0,180478,Phys/Sens Placements - East,DIRECT PAYMENTS,R,2022,6
1056,Corporate Services,FINANCIAL DATA MANAGEMENT PLC,223064,27-Sep-22,522,87,180550,Printing,190000              Facilities & Management Services,A,2022,6
1057,"Children, Schools and Family",REDACTED PERSONAL DATA,874905,02-Sep-22,514.75,0,180579,UASC LAC Under 18,321100              Social Community Care Supplies & Services - Children,R,2022,6
1058,"Children, Schools and Family",REDACTED PERSONAL DATA,874959,02-Sep-22,514.75,0,180579,UASC LAC Under 18,321100              Social Community Care Supplies & Services - Children,R,2022,6
1059,"Children, Schools and Family",REDACTED PERSONAL DATA,875963,09-Sep-22,514.75,0,180579,UASC LAC Under 18,321100              Social Community Care Supplies & Services - Children,R,2022,6
1060,"Children, Schools and Family",REDACTED PERSONAL DATA,876018,09-Sep-22,514.75,0,180579,UASC LAC Under 18,321100              Social Community Care Supplies & Services - Children,R,2022,6
1061,"Children, Schools and Family",REDACTED PERSONAL DATA,880855,16-Sep-22,514.75,0,180579,UASC LAC Under 18,321100              Social Community Care Supplies & Services - Children,R,2022,6
1062,"Children, Schools and Family",REDACTED PERSONAL DATA,880907,16-Sep-22,514.75,0,180579,UASC LAC Under 18,321100              Social Community Care Supplies & Services - Children,R,2022,6
1063,"Children, Schools and Family",REDACTED PERSONAL DATA,883194,23-Sep-22,514.75,0,180579,UASC LAC Under 18,321100              Social Community Care Supplies & Services - Children,R,2022,6
1064,"Children, Schools and Family",REDACTED PERSONAL DATA,883245,23-Sep-22,514.75,0,180579,UASC LAC Under 18,321100              Social Community Care Supplies & Services - Children,R,2022,6
1065,"Children, Schools and Family",REDACTED PERSONAL DATA,886421,30-Sep-22,514.75,0,180579,UASC LAC Under 18,321100              Social Community Care Supplies & Services - Children,R,2022,6
1066,"Children, Schools and Family",REDACTED PERSONAL DATA,886510,30-Sep-22,514.75,0,180579,UASC LAC Under 18,321100              Social Community Care Supplies & Services - Children,R,2022,6
1067,Corporate Services,SOFTCAT LTD,INVUK452025,09-Sep-22,16286.82,2714.47,180603,IT Service Delivery,270000              Information Communication Technology,A,2022,6
1068,Unassigned,SOFTCAT LTD,INVUK550768,22-Sep-22,1672.1,278.68,180603,CHAS IT,270000              Information Communication Technology,A,2022,6
1069,Environment and Regeneration,HMCTS,TECBATCH2022,06-Sep-22,25000,0,180649,Operational Running Costs,350000              Street & Traffic Management,A,2022,6
1070,"Children, Schools and Family",FLYNN TREE CARE,1009,05-Sep-22,550,0,180696, Children's Centres Support,240000              Horticultural                                                                             Confirmed,A,2022,6
1071,Community and Housing,REDACTED PERSONAL DATA,877084,13-Sep-22,1030.16,0,180793,Phys/Sens Placements - East,DIRECT PAYMENTS,R,2022,6
1072,Unassigned,LOVE WIMBLEDON LTD BUS.IMP.DIS,4702,30-Sep-22,584.16,97.36,180802,Corporate Services,200000              Financial Services,A,2022,6
1073,Community and Housing,REDACTED PERSONAL DATA,877014,13-Sep-22,763.68,0,180804,Learning Disabilities Placemnt,DIRECT PAYMENTS,R,2022,6
1074,"Children, Schools and Family",FIVE RIVERS CHILD CARE,97451,22-Sep-22,6421.43,0,180823,Placements Under 18,360000              Passenger Transport                                                                       Confirmed,A,2022,6
1075,"Children, Schools and Family",FIVE RIVERS CHILD CARE,96787,20-Sep-22,6421.43,0,180823,Placements Under 18,360000              Passenger Transport                                                                       Confirmed,A,2022,6
1076,Community and Housing,REDACTED PERSONAL DATA,880147,16-Sep-22,749.28,0,180839,LD Housing Support Placements,321000              Social Community Care Supplies & Services - Adult,R,2022,6
1077,Community and Housing,REDACTED PERSONAL DATA,876781,13-Sep-22,576.72,0,180866,Phys/Sens Placements - East,DIRECT PAYMENTS,R,2022,6
1078,Community and Housing,REDACTED PERSONAL DATA,876823,13-Sep-22,1336.44,0,180866,Phys/Sens Placements - East,DIRECT PAYMENTS,R,2022,6
1079,Community and Housing,REDACTED PERSONAL DATA,876723,13-Sep-22,2156,0,180889,Older People Placements - East,DIRECT PAYMENTS,R,2022,6
1080,Community and Housing,SENAD ECCLESBOURNE LODGE,885061,29-Sep-22,9810.88,0,180904,Learning Disabilities Placemnt,321017              Nursing & Residential Care Homes,A,2022,6
1081,Community and Housing,REDACTED PERSONAL DATA,876650,13-Sep-22,890.96,0,180999,Older People Placements - East,DIRECT PAYMENTS,R,2022,6
1082,Community and Housing,REDACTED PERSONAL DATA,876970,13-Sep-22,3238.48,0,181128,Older People Placements - East,DIRECT PAYMENTS,R,2022,6
1083,Community and Housing,REDACTED PERSONAL DATA,876953,13-Sep-22,2227.4,0,181129,Older People Placements - East,DIRECT PAYMENTS,R,2022,6
1084,Community and Housing,REDACTED PERSONAL DATA,877069,13-Sep-22,1400.08,0,181418,Phys/Sens Placements - East,DIRECT PAYMENTS,R,2022,6
1085,"Children, Schools and Family",BINDMANS LLP,NIA4/3/LB/RH,15-Sep-22,2530,200,181461,UASC Care Leavers Over 18,280000              Legal Services                                                                            Confirmed,A,2022,6
1086,"Children, Schools and Family",Dicky Birds Nurseries Ltd - Pelham Road,P2 22 UPFRONTPAY,07-Sep-22,16470.72,0,181874,EARLY YEARS NURSERY GRANTS,200000              Financial Services,A,2022,6
1087,Corporate Services,PSW PAPER AND PRINT LTD,INV111084,12-Sep-22,748.23,124.71,181895,PrintUnit-HighVolPhtcopying,190000              Facilities & Management Services,A,2022,6
1088,"Children, Schools and Family",LOVE LANE DAY NURSERY,P2 22 UPFRONTPAY,07-Sep-22,19133.52,0,181933,EARLY YEARS NURSERY GRANTS,200000              Financial Services,A,2022,6
1089,Community and Housing,REDACTED PERSONAL DATA,876581,13-Sep-22,519.52,0,182083,Learning Disabilities Placemnt,DIRECT PAYMENTS,R,2022,6
1090,Environment and Regeneration,NOAH'S ARK ENVIRONMENTAL SERV.,MT082022,23-Sep-22,2700.6,450.1,182143,Dog Control,180000              Environmental Services,A,2022,6
1091,Corporate Services,REDACTED PERSONAL DATA,1631/JN,28-Sep-22,1020,170,182247,SLLP - Disbursements,280000              Legal Services                                                                            Confirmed,R,2022,6
1092,Community and Housing,REDACTED PERSONAL DATA,876684,13-Sep-22,954.6,0,182317,Phys/Sens Placements - East,DIRECT PAYMENTS,R,2022,6
1093,Community and Housing,REDACTED PERSONAL DATA,876700,13-Sep-22,4454.8,0,182348,Older People Placements - East,DIRECT PAYMENTS,R,2022,6
1094,Environment and Regeneration,BIRKIN CLEANING SERVICES LTD,26601,22-Sep-22,1956.71,326.12,182414,Vestry Hall,130000              Cleaning & Janitorial,A,2022,6
1095,Corporate Services,BIRKIN CLEANING SERVICES LTD,26467,22-Sep-22,1312.31,218.72,182414,Corporate Contracts - FM,130000              Cleaning & Janitorial,A,2022,6
1096,Community and Housing,BIRKIN CLEANING SERVICES LTD,26465,22-Sep-22,1629.23,271.54,182414,Morden Library,130000              Cleaning & Janitorial,A,2022,6
1097,Environment and Regeneration,BIRKIN CLEANING SERVICES LTD,26468,22-Sep-22,2894.94,482.49,182414,Vestry Hall,130000              Cleaning & Janitorial,A,2022,6
1098,Corporate Services,BIRKIN CLEANING SERVICES LTD,26466,22-Sep-22,2213.82,368.97,182414,Corporate Contracts - FM,130000              Cleaning & Janitorial,A,2022,6
1099,Corporate Services,BIRKIN CLEANING SERVICES LTD,26464,22-Sep-22,24732.96,4122.16,182414,Corporate Contracts - FM,130000              Cleaning & Janitorial,A,2022,6
1100,Environment and Regeneration,BIRKIN CLEANING SERVICES LTD,26469,22-Sep-22,632.6,105.43,182414,Durnsford industrial estate,130000              Cleaning & Janitorial,A,2022,6
1101,Community and Housing,BIRKIN CLEANING SERVICES LTD,26472,22-Sep-22,966.26,161.04,182414,Wimbledon Library,130000              Cleaning & Janitorial,A,2022,6
1102,Community and Housing,BIRKIN CLEANING SERVICES LTD,26473,22-Sep-22,1585.7,264.28,182414,Mitcham Library,130000              Cleaning & Janitorial,A,2022,6
1103,Corporate Services,BIRKIN CLEANING SERVICES LTD,26470,22-Sep-22,7869.83,1311.64,182414,Corporate Contracts - FM,130000              Cleaning & Janitorial,A,2022,6
1104,Community and Housing,BIRKIN CLEANING SERVICES LTD,26471,22-Sep-22,3193.69,532.28,182414,Wimbledon Library,130000              Cleaning & Janitorial,A,2022,6
1105,Community and Housing,BIRKIN CLEANING SERVICES LTD,26474,22-Sep-22,1920.73,320.12,182414,Pollards Hill Library,130000              Cleaning & Janitorial,A,2022,6
1106,Community and Housing,BIRKIN CLEANING SERVICES LTD,26480,22-Sep-22,697.76,116.29,182414,Eastway Day Centre,130000              Cleaning & Janitorial,A,2022,6
1107,Community and Housing,BIRKIN CLEANING SERVICES LTD,26476,22-Sep-22,558.96,93.16,182414,West Barnes Lib,130000              Cleaning & Janitorial,A,2022,6
1108,Community and Housing,BIRKIN CLEANING SERVICES LTD,26475,22-Sep-22,950.88,158.48,182414,Raynes Park Library,130000              Cleaning & Janitorial,A,2022,6
1109,"Children, Schools and Family",BIRKIN CLEANING SERVICES LTD,26478,22-Sep-22,679.97,113.33,182414,Merton Youth Centres.,130000              Cleaning & Janitorial,A,2022,6
1110,"Children, Schools and Family",BIRKIN CLEANING SERVICES LTD,26477,22-Sep-22,683.54,113.92,182414,Merton Youth Centres.,130000              Cleaning & Janitorial,A,2022,6
1111,Community and Housing,BIRKIN CLEANING SERVICES LTD,26479,22-Sep-22,1941.66,323.61,182414,All Saints Day Centre,130000              Cleaning & Janitorial,A,2022,6
1112,"Children, Schools and Family",BIRKIN CLEANING SERVICES LTD,26482,22-Sep-22,1334.64,222.44,182414,Acacia IGC Building Management,130000              Cleaning & Janitorial,A,2022,6
1113,Community and Housing,BIRKIN CLEANING SERVICES LTD,26481,22-Sep-22,1962.97,327.16,182414,JMC  Day Centre,130000              Cleaning & Janitorial,A,2022,6
1114,Environment and Regeneration,BIRKIN CLEANING SERVICES LTD,26487,22-Sep-22,817.45,136.24,182414,Transport-Contract Hire,130000              Cleaning & Janitorial,A,2022,6
1115,"Children, Schools and Family",BIRKIN CLEANING SERVICES LTD,26484,22-Sep-22,1302.7,217.12,182414,Brightwell,130000              Cleaning & Janitorial,A,2022,6
1116,Community and Housing,BIRKIN CLEANING SERVICES LTD,26485,22-Sep-22,1314.83,219.14,182414,Donald Hope Library,130000              Cleaning & Janitorial,A,2022,6
1117,"Children, Schools and Family",BIRKIN CLEANING SERVICES LTD,26483,22-Sep-22,683.65,113.94,182414,Adventure Playground Project,130000              Cleaning & Janitorial,A,2022,6
1118,Community and Housing,BIRKIN CLEANING SERVICES LTD,26488,22-Sep-22,1668.67,278.11,182414,Highpath (DayCentre) Leyton Rd,130000              Cleaning & Janitorial,A,2022,6
1119,Community and Housing,BIRKIN CLEANING SERVICES LTD,25767,16-Sep-22,1668.67,278.11,182414,Highpath (DayCentre) Leyton Rd,130000              Cleaning & Janitorial,A,2022,6
1120,"Children, Schools and Family",BIRKIN CLEANING SERVICES LTD,26537,22-Sep-22,2233.45,372.24,182414,Steers Mead BuildingManagement,130000              Cleaning & Janitorial,A,2022,6
1121,Environment and Regeneration,BIRKIN CLEANING SERVICES LTD,25766,16-Sep-22,817.45,136.24,182414,Transport-Contract Hire,130000              Cleaning & Janitorial,A,2022,6
1122,Community and Housing,BIRKIN CLEANING SERVICES LTD,25759,16-Sep-22,697.76,116.29,182414,Eastway Day Centre,130000              Cleaning & Janitorial,A,2022,6
1123,"Children, Schools and Family",BIRKIN CLEANING SERVICES LTD,25763,22-Sep-22,1302.7,217.12,182414,Brightwell,130000              Cleaning & Janitorial,A,2022,6
1124,Community and Housing,BIRKIN CLEANING SERVICES LTD,25764,22-Sep-22,1314.83,219.14,182414,Donald Hope Library,130000              Cleaning & Janitorial,A,2022,6
1125,Community and Housing,BIRKIN CLEANING SERVICES LTD,25760,22-Sep-22,1962.97,327.16,182414,JMC  Day Centre,130000              Cleaning & Janitorial,A,2022,6
1126,"Children, Schools and Family",BIRKIN CLEANING SERVICES LTD,25756,30-Sep-22,683.54,113.92,182414,Merton Youth Centres.,130000              Cleaning & Janitorial,A,2022,6
1127,Community and Housing,BIRKIN CLEANING SERVICES LTD,25758,30-Sep-22,1941.66,323.61,182414,All Saints Day Centre,130000              Cleaning & Janitorial,A,2022,6
1128,"Children, Schools and Family",BIRKIN CLEANING SERVICES LTD,25757,30-Sep-22,679.97,113.33,182414,Merton Youth Centres.,130000              Cleaning & Janitorial,A,2022,6
1129,Community and Housing,VENTURE HOUSING(LONDON)LTD,VHG/A413521,20-Sep-22,22509.1,0,182482,Bed & Breakfast - accomm,321000              Social Community Care Supplies & Services - Adult,A,2022,6
1130,"Children, Schools and Family",REDACTED PERSONAL DATA,877548,13-Sep-22,829.8,0,182494,Child Disabilities - Placement,DIRECT PAYMENTS,R,2022,6
1131,Community and Housing,REDACTED PERSONAL DATA,876859,13-Sep-22,1877.4,0,182584,Phys/Sens Placements - East,DIRECT PAYMENTS,R,2022,6
1132,"Children, Schools and Family",KINGSWOOD DAYCARE NURSERY LTD,P2 22 UPFRONTPAY,07-Sep-22,36736.56,0,182740,EARLY YEARS NURSERY GRANTS,200000              Financial Services,A,2022,6
1133,Community and Housing,REDACTED PERSONAL DATA,877340,13-Sep-22,5223.56,0,182894,Learning Disabilities Placemnt,DIRECT PAYMENTS,R,2022,6
1134,Community and Housing,REDACTED PERSONAL DATA,876692,13-Sep-22,4103.12,0,183167,Older People Placements - East,DIRECT PAYMENTS,R,2022,6
1135,Community and Housing,ST ANTONYS CARE HOME,885160,29-Sep-22,2838.12,0,183206,Older People Placements - East,321017              Nursing & Residential Care Homes,A,2022,6
1136,Community and Housing,ST ANTONYS CARE HOME,885173,29-Sep-22,2838.12,0,183206,Older People Placements - East,321017              Nursing & Residential Care Homes,A,2022,6
1137,Community and Housing,ST ANTONYS CARE HOME,885177,29-Sep-22,3600,0,183206,Older People Placements - East,321017              Nursing & Residential Care Homes,A,2022,6
1138,Community and Housing,ST ANTONYS CARE HOME,885249,29-Sep-22,3428.57,0,183206,Older People Placements - East,321017              Nursing & Residential Care Homes,A,2022,6
1139,Community and Housing,ST ANTONYS CARE HOME,885384,29-Sep-22,3071.12,0,183206,Older People Placements - East,321017              Nursing & Residential Care Homes,A,2022,6
1140,Community and Housing,ST ANTONYS CARE HOME,885437,29-Sep-22,2617.84,0,183206,Older People Placements - East,321017              Nursing & Residential Care Homes,A,2022,6
1141,"Children, Schools and Family",WEBBASED,INV104540,02-Sep-22,1560,260,183269, Governor Support,270000              Information Communication Technology,A,2022,6
1142,"Children, Schools and Family",CRESSEY OASIS EDUCATION LTD,1867,03-Oct-22,23152.3,0,183299,Non-Delegated Statements,170000              Education,A,2022,6
1143,"Children, Schools and Family",CRESSEY OASIS EDUCATION LTD,1865,03-Oct-22,31000,0,183299,Non-Delegated Statements,170000              Education,A,2022,6
1144,Community and Housing,CENTRAL MEDICAL CENTRE,Q122-23/APR-JUN,30-Sep-22,940,0,183386,PH - Sexual Health,310000              Healthcare,A,2022,6
1145,Community and Housing,AP CHEMIST,BPPND/00000038,27-Sep-22,671.64,8.84,183395,PH - Sexual Health,310000              Healthcare,A,2022,6
1146,Community and Housing,BARKERS CHEMIST,DQCB/00000062,27-Sep-22,553.01,4.91,183398,PH - Sexual Health,310000              Healthcare,A,2022,6
1147,Community and Housing,REDACTED PERSONAL DATA,876655,13-Sep-22,1170.44,0,183460,Learning Disabilities Placemnt,DIRECT PAYMENTS,R,2022,6
1148,Community and Housing,REDACTED PERSONAL DATA,876461,13-Sep-22,795.52,0,183464,Phys/Sens Placements - East,DIRECT PAYMENTS,R,2022,6
1149,"Children, Schools and Family",WIMBLEDON DAY NURSERY 2,P2 22 UPFRONTPAY,07-Sep-22,21094.08,0,183490,EARLY YEARS NURSERY GRANTS,200000              Financial Services,A,2022,6
1150,Community and Housing,CREST MANOR LTD,CM0776,20-Sep-22,8067.75,0,183548,Bed & Breakfast - accomm,250000              Housing Management,A,2022,6
1151,Community and Housing,Kent House Care Home,885323,29-Sep-22,2884,0,183560,Older People Placements - East,321017              Nursing & Residential Care Homes,A,2022,6
1152,Environment and Regeneration,TOTAL COMPUTER NETWORKS,SI867268,15-Sep-22,636,106,183646,Civil Enforcement Officers,270000              Information Communication Technology,A,2022,6
1153,Corporate Services,GAZPROM MARKETING AND TRADING LTD,INV02455131,23-Sep-22,11651.14,1941.86,183658,Facilities,370000              Utilities,A,2022,6
1154,Community and Housing,REDACTED PERSONAL DATA,877123,13-Sep-22,890.96,0,183690,Older People Placements - East,DIRECT PAYMENTS,R,2022,6
1155,Community and Housing,HOUNSLOW AND RICHM'D COMM H'CARE,HI21067,22-Sep-22,16617.5,0,183949,PH - Prevention,310000              Healthcare,A,2022,6
1156,Community and Housing,REDACTED PERSONAL DATA,877336,13-Sep-22,679.2,0,184011,Older People Placements - East,DIRECT PAYMENTS,R,2022,6
1157,"Children, Schools and Family",LEXTOX,258475,07-Sep-22,986.4,164.4,184053,Family Supp SafeGuard - Place,280000              Legal Services,A,2022,6
1158,Community and Housing,REDACTED PERSONAL DATA,876954,13-Sep-22,2530.08,0,184175,Older People Placements - East,DIRECT PAYMENTS,R,2022,6
1159,"Children, Schools and Family",SUNNYHILL PRIMARY SCHOOL,SUN000293,12-Sep-22,2947.57,0,184196,Non-Delegated Statements,170000              Education,A,2022,6
1160,Community and Housing,CROWNWISE LTD,MP/167/104,13-Sep-22,1160,0,184360,Mental Health Placements,321000              Social Community Care Supplies & Services - Adult,A,2022,6
1161,Community and Housing,CROWNWISE LTD,SH/167/090,13-Sep-22,1950,0,184360,Mental Health Placements,321000              Social Community Care Supplies & Services - Adult,A,2022,6
1162,Community and Housing,MARIAN HOUSE NURSING HOME,885105,29-Sep-22,2834.56,0,184385,Older People Placements - East,321017              Nursing & Residential Care Homes,A,2022,6
1163,"Children, Schools and Family",REDACTED PERSONAL DATA,875024,02-Sep-22,549.61,0,184386,Placements Under 18,321100              Social Community Care Supplies & Services - Children,R,2022,6
1164,"Children, Schools and Family",REDACTED PERSONAL DATA,876081,09-Sep-22,549.61,0,184386,Placements Under 18,321100              Social Community Care Supplies & Services - Children,R,2022,6
1165,"Children, Schools and Family",REDACTED PERSONAL DATA,880972,16-Sep-22,649.61,0,184386,Placements Under 18,321100              Social Community Care Supplies & Services - Children,R,2022,6
